Workbook

Sheet Risultati Atleta
B1: Cognome Nome | C1: Bianchessi Maurizio | D1: Minuscole Maiuscole Spazi | Q1: Anno | R1: KM | S1: n° gare | T1: mezze | U1: marat
D2: =IFERROR(VLOOKUP(C1,'Elenco Atleti'!A:B,1,0),0) -> Bianchessi Maurizio | Q2: 2024 | R2: 205.487 | S2: 4 | T2: 1 | U2: 2
Q3: 2023 | R3: 183.882 | S3: 7 | T3: 1 | U3: 3
Q4: 2022 | R4: 42.097 | S4: 2 | T4: 1 | U4: 0
Q5: 2021 | R5: 84.39 | S5: 2 | T5: 0 | U5: 2
C6: =IF(D2=0,"CORREGGI NOMINATIVO","") ->  | Q6: 2020 | R6: 21.097 | S6: 1 | T6: 1 | U6: 0
Q7: 2019 | R7: 136.584 | S7: 5 | T7: 2 | U7: 2
C8: =CONCATENATE("partecipazione - primo anno - ",SMALL(J15:J49999,1)," - ultimo anno - ",LARGE(J15:J9999,1)," -") -> partecipazione - primo anno - 2018 - ultimo anno - 2024 - | Q8: 2018 | R8: 21.097 | S8: 1 | T8: 1 | U8: 0
C9: =IFERROR(CONCATENATE("migliore 10.000 : ",HOUR(D9),":",MINUTE(D9),":",SECOND(D9)),"migliore 10.000") -> migliore 10.000 : 0:54:37 | D9: =IFERROR(SMALL(K15:K49999,1),"non diputata") -> 0.03792824074 | Q9: Totale | R9: 694.634 | S9: 22 | T9: 7 | U9: 9
C10: =IFERROR(CONCATENATE("migliore mezza maratona : ",HOUR(D10),":",MINUTE(D10),":",SECOND(D10)),"migliore mezza maratona") -> migliore mezza maratona : 1:51:52 | D10: =IFERROR(SMALL(L15:L49999,1),"non diputata") -> 0.07768518519
C11: =IFERROR(CONCATENATE("migliore maratona : ",HOUR(D11),":",MINUTE(D11),":",SECOND(D11)),"migliore maratona") -> migliore maratona : 4:19:45 | D11: =IFERROR(SMALL(M15:M49999,1),"non diputata") -> 0.1803819444
C12: =CONCATENATE("distanza maggiore percorsa : km ",LARGE(F15:F19995,1)) -> distanza maggiore percorsa : km 100
A14: ATLETA | B14: DATA | C14: GARA | D14: LUOGO | E14: PR | F14: KM | G14: Crono | H14: m/km | I14: km/h | J14: Anno | K14: dieci | L14: mezze | M14: marat | N14: n.mez | O14: n.mar
A15: Bianchessi Maurizio | B15: 2024-12-31 | H15: =IF(F15="","",IF(G15="","",+G15/F15)) ->  | I15: =IF(F15="","",IF(G15="","",+F15/G15/24)) ->  | J15: =IF(B15="","",IFERROR(YEAR(+B15),MID(+B15,(LEN(+B15))-3,4))+1-1) -> 2024 | K15: =IF(F15<>10,"",IF(F15=10,+G15,0)) ->  | L15: =IF(F15<>21.097,"",IF(F15=21.097,+G15,0)) ->  | M15: =IF(F15<>42.195,"",IF(F15=42.195,+G15,0)) ->  | N15: =IF(F15=21.097,1,0) -> 0 | O15: =IF(F15=42.195,1,0) -> 0
A16: Bianchessi Maurizio | B16: 2024-10-13 | C16: Chicago Marathon | D16: Chicago | E16: USA | F16: 42.195 | G16: 0.2359259259 | H16: =IF(F16="","",IF(G16="","",+G16/F16)) -> 0.005591324231 | I16: =IF(F16="","",IF(G16="","",+F16/G16/24)) -> 7.452021193 | J16: 2024 | K16: =IF(F16<>10,"",IF(F16=10,+G16,0)) ->  | L16: =IF(F16<>21.097,"",IF(F16=21.097,+G16,0)) ->  | M16: =IF(F16<>42.195,"",IF(F16=42.195,+G16,0)) -> 0.2359259259 | N16: =IF(F16=21.097,1,0) -> 0 | O16: =IF(F16=42.195,1,0) -> 1
A17: Bianchessi Maurizio | B17: 2024-05-25 | C17: 49^ 100 km del Passatore | D17: Firenze - Faenza | E17: FI | F17: 100 | G17: 0.7742824074 | H17: =IF(F17="","",IF(G17="","",+G17/F17)) -> 0.007742824074 | I17: =IF(F17="","",IF(G17="","",+F17/G17/24)) -> 5.381326796 | J17: 2024 | N17: 0 | O17: 0
A18: Bianchessi Maurizio | B18: 2024-04-15 | C18: 128^ Boston Marathon | D18: Boston | E18: USA | F18: 42.195 | G18: 0.2170949074 | H18: 0.005145038687 | I18: 8.098416591 | J18: 2024 | M18: 0.2170949074 | N18: 0 | O18: 1
A19: Bianchessi Maurizio | B19: 2024-01-28 | C19: 3^ Novara Half Marathon | D19: Novara | E19: NO | F19: 21.097 | G19: 0.09831018519 | H19: 0.00465991303 | I19: 8.941511655 | J19: 2024 | L19: 0.09831018519 | N19: 1 | O19: 0
A20: Bianchessi Maurizio | B20: 2023-12-31 | J20: 2023 | L20: =IF(F20<>21.097,"",IF(F20=21.097,+G20,0)) ->  | N20: 0 | O20: 0
A21: Bianchessi Maurizio | B21: 2023-11-05 | C21: TCS New York City Marathon | D21: New York | E21: USA | F21: 42.195 | G21: 0.2157986111 | H21: 0.005114317126 | I21: 8.147063556 | J21: =IF(B21="","",IFERROR(YEAR(+B21),MID(+B21,(LEN(+B21))-3,4))+1-1) -> 2023 | M21: 0.2157986111 | N21: 0 | O21: 1
A22: Bianchessi Maurizio | B22: 2023-09-24 | C22: Berlin Marathon | D22: Berlino | E22: D | F22: 42.195 | G22: 0.1926041667 | H22: 0.004564620611 | I22: 9.128177393 | J22: =IF(B22="","",IFERROR(YEAR(+B22),MID(+B22,(LEN(+B22))-3,4))+1-1) -> 2023 | M22: 0.1926041667 | N22: 0 | O22: 1
A23: Bianchessi Maurizio | B23: 2023-07-29 | C23: 5^ MEHT Monterosa Est Himalayan Trail Scenic 22K-disl.+1.700 mt | D23: Macugnaga | E23: VB | F23: 22 | G23: 0.2804976852 | H23: 0.01274989478 | I23: 3.268000825 | J23: 2023 | N23: 0 | O23: 0
A24: Bianchessi Maurizio | B24: 2023-05-13 | C24: 16^ Running Day | D24: Saronno | E24: VA | F24: 10 | G24: 0.03792824074 | H24: 0.003792824074 | I24: 10.98565761 | J24: 2023 | K24: 0.03792824074 | N24: 0 | O24: 0
A25: Bianchessi Maurizio | B25: 2023-03-19 | C25: Run Rome the Marathon | D25: Roma | E25: RM | F25: 42.195 | G25: 0.2073958333 | H25: 0.004915175574 | I25: 8.477147162 | J25: 2023 | M25: 0.2073958333 | N25: 0 | O25: 1
A26: Bianchessi Maurizio | B26: 2023-02-12 | C26: 16^ Giulietta e Romeo Half Marathon | D26: Verona | E26: VR | F26: 21.097 | G26: 0.08604166667 | H26: 0.004078383972 | I26: 10.21646489 | J26: 2023 | L26: 0.08604166667 | N26: 1 | O26: 0
A27: Bianchessi Maurizio | B27: 2023-01-15 | C27: 91^ Cinque Mulini Cross Country | D27: San Vittore Olona | E27: MI | F27: 4.2 | G27: 0.01585648148 | H27: 0.003775352734 | I27: 11.03649635 | J27: 2023 | N27: 0 | O27: 0
A28: Bianchessi Maurizio | B28: 2022-12-31 | J28: 2022 | N28: 0 | O28: 0
A29: Bianchessi Maurizio | B29: 2022-11-27 | C29: Ganten Milano21 Half Marathon | D29: Milano | E29: MI | F29: 21.097 | G29: 0.08811342593 | H29: 0.004176585577 | I29: 9.976251149 | J29: 2022 | L29: 0.08811342593 | N29: 1 | O29: 0
A30: Bianchessi Maurizio | B30: 2022-10-02 | C30: Salomon Running Milano Top Cup 21K | D30: Milano | E30: MI | F30: 21 | G30: 0.09165509259 | H30: 0.004364528219 | I30: 9.546659932 | J30: 2022 | N30: 0 | O30: 0
A31: Bianchessi Maurizio | B31: 2021-12-31 | J31: 2021 | N31: 0 | O31: 0
A32: Bianchessi Maurizio | B32: 2021-11-14 | C32: 22^ Maratona di Ravenna Citta' d'Arte | D32: Ravenna | E32: RA | F32: 42.195 | G32: 0.1987615741 | H32: 0.004710548029 | I32: 8.845396844 | J32: 2021 | M32: 0.1987615741 | N32: 0 | O32: 1
A33: Bianchessi Maurizio | B33: 2021-10-03 | C33: 41^ London Marathon | D33: Londra | E33: UK | F33: 42.195 | G33: 0.1963888889 | H33: 0.004654316599 | I33: 8.952263083 | J33: 2021 | M33: 0.1963888889 | N33: 0 | O33: 1
A34: Bianchessi Maurizio | B34: 2020-12-31 | J34: 2020 | N34: 0 | O34: 0
A35: Bianchessi Maurizio | B35: 2020-02-23 | C35: Napoli City Half Marathon | D35: Napoli | E35: NA | F35: 21.097 | G35: 0.08530092593 | H35: 0.004043272784 | I35: 10.30518318 | J35: 2020 | L35: 0.08530092593 | N35: 1 | O35: 0
A36: Bianchessi Maurizio | B36: 2019-12-31 | J36: 2019 | N36: 0 | O36: 0
A37: Bianchessi Maurizio | B37: 2019-11-24 | C37: 3^ Milano21 Half Marathon | D37: Milano | E37: MI | F37: 21.097 | G37: 0.07768518519 | H37: 0.003682285879 | I37: 11.31543504 | J37: 2019 | L37: 0.07768518519 | N37: 1 | O37: 0
A38: Bianchessi Maurizio | B38: 2019-11-10 | C38: Maratona di Ravenna Citta' d'Arte | D38: Ravenna | E38: RA | F38: 42.195 | G38: 0.1803819444 | H38: 0.004274960172 | I38: 9.7466795 | J38: 2019 | M38: 0.1803819444 | N38: 0 | O38: 1
A39: Bianchessi Maurizio | B39: 2019-10-27 | C39: 5^ Laus Half Marathon | D39: Lodi | E39: LO | F39: 21.097 | G39: 0.07916666667 | H39: 0.003752508256 | I39: 11.10368421 | J39: 2019 | L39: 0.07916666667 | N39: 1 | O39: 0
A40: Bianchessi Maurizio | B40: 2019-06-20 | C40: Correndo per Kalika | D40: Cesate | E40: MI | F40: 10 | G40: 0.03892361111 | H40: 0.003892361111 | I40: 10.70472792 | J40: 2019 | K40: 0.03892361111 | N40: 0 | O40: 0
A41: Bianchessi Maurizio | B41: 2019-04-07 | C41: Generali Milano Marathon | D41: Milano | E41: MI | F41: 42.195 | G41: 0.1851157407 | H41: 0.004387148732 | I41: 9.497436539 | J41: 2019 | M41: 0.1851157407 | N41: 0 | O41: 1
A42: Bianchessi Maurizio | B42: 2018-12-31 | J42: 2018 | N42: 0 | O42: 0
A43: Bianchessi Maurizio | B43: 2018-03-24 | C43: Campionato Mondiale di Mezza Maratona | D43: Valencia | E43: E | F43: 21.097 | G43: 0.0859375 | H43: 0.004073446462 | I43: 10.22884848 | J43: 2018 | L43: 0.0859375 | N43: 1 | O43: 0
N44: 0 | O44: 0
N45: 0 | O45: 0
N46: 0 | O46: 0
N47: 0 | O47: 0
N48: 0 | O48: 0
N49: 0 | O49: 0
N50: 0 | O50: 0
N51: 0 | O51: 0
N52: 0 | O52: 0
N53: 0 | O53: 0
N54: 0 | O54: 0
N55: 0 | O55: 0
N56: 0 | O56: 0
N57: 0 | O57: 0
N58: 0 | O58: 0
N59: 0 | O59: 0
N60: 0 | O60: 0
N61: 0 | O61: 0
N62: 0 | O62: 0
N63: 0 | O63: 0
N64: 0 | O64: 0
N65: 0 | O65: 0
N66: 0 | O66: 0
N67: 0 | O67: 0
N68: 0 | O68: 0
N69: 0 | O69: 0
N70: 0 | O70: 0
N71: 0 | O71: 0
N72: 0 | O72: 0
N73: 0 | O73: 0
N74: 0 | O74: 0
N75: 0 | O75: 0
N76: 0 | O76: 0
N77: 0 | O77: 0
N78: 0 | O78: 0
N79: 0 | O79: 0
K80: =IF(F80<>10,"",IF(F80=10,+G80,0)) ->  | L80: =IF(F80<>21.097,"",IF(F80=21.097,+G80,0)) ->  | M80: =IF(F80<>42.195,"",IF(F80=42.195,+G80,0)) ->  | N80: =IF(F80=21.097,1,0) -> 0 | O80: =IF(F80=42.195,1,0) -> 0
H81: =IF(F81="","",IF(G81="","",+G81/F81)) ->  | I81: =IF(F81="","",IF(G81="","",+F81/G81/24)) ->  | N81: 0 | O81: 0
N82: 0 | O82: 0
N83: 0 | O83: 0
N84: 0 | O84: 0
N85: 0 | O85: 0
J86: =IF(B86="","",IFERROR(YEAR(+B86),MID(+B86,(LEN(+B86))-3,4))+1-1) ->  | N86: 0 | O86: 0
N87: 0 | O87: 0
N88: 0 | O88: 0
N89: 0 | O89: 0
N90: 0 | O90: 0
N91: 0 | O91: 0
N92: 0 | O92: 0
N93: 0 | O93: 0
N94: 0 | O94: 0
N95: 0 | O95: 0
N96: 0 | O96: 0
N97: 0 | O97: 0
N98: 0 | O98: 0
N99: 0 | O99: 0
N100: 0 | O100: 0
N101: 0 | O101: 0
N102: 0 | O102: 0
N103: 0 | O103: 0
N104: 0 | O104: 0
N105: 0 | O105: 0
N106: 0 | O106: 0
N107: 0 | O107: 0
N108: 0 | O108: 0
N109: 0 | O109: 0
N110: 0 | O110: 0
N111: 0 | O111: 0
N112: 0 | O112: 0
N113: 0 | O113: 0
N114: 0 | O114: 0
N115: 0 | O115: 0
N116: 0 | O116: 0
N117: 0 | O117: 0
N118: 0 | O118: 0
N119: 0 | O119: 0
N120: 0 | O120: 0
N121: 0 | O121: 0
N122: 0 | O122: 0
N123: 0 | O123: 0
N124: 0 | O124: 0
N125: 0 | O125: 0
N126: 0 | O126: 0
N127: 0 | O127: 0
N128: 0 | O128: 0
N129: 0 | O129: 0
N130: 0 | O130: 0
N131: 0 | O131: 0
N132: 0 | O132: 0
N133: 0 | O133: 0
N134: 0 | O134: 0
N135: 0 | O135: 0
N136: 0 | O136: 0
N137: 0 | O137: 0
N138: 0 | O138: 0
N139: 0 | O139: 0
N140: 0 | O140: 0
N141: 0 | O141: 0
N142: 0 | O142: 0
N143: 0 | O143: 0
K144: =IF(F144<>10,"",IF(F144=10,+G144,0)) ->  | L144: =IF(F144<>21.097,"",IF(F144=21.097,+G144,0)) ->  | M144: =IF(F144<>42.195,"",IF(F144=42.195,+G144,0)) ->  | N144: =IF(F144=21.097,1,0) -> 0 | O144: =IF(F144=42.195,1,0) -> 0
H145: =IF(F145="","",IF(G145="","",+G145/F145)) ->  | I145: =IF(F145="","",IF(G145="","",+F145/G145/24)) ->  | N145: 0 | O145: 0
N146: 0 | O146: 0
N147: 0 | O147: 0
N148: 0 | O148: 0
N149: 0 | O149: 0
J150: =IF(B150="","",IFERROR(YEAR(+B150),MID(+B150,(LEN(+B150))-3,4))+1-1) ->  | N150: 0 | O150: 0
N151: 0 | O151: 0
N152: 0 | O152: 0
N153: 0 | O153: 0
N154: 0 | O154: 0
N155: 0 | O155: 0
N156: 0 | O156: 0
N157: 0 | O157: 0
N158: 0 | O158: 0
N159: 0 | O159: 0
N160: 0 | O160: 0
N161: 0 | O161: 0
N162: 0 | O162: 0
N163: 0 | O163: 0
N164: 0 | O164: 0
N165: 0 | O165: 0
N166: 0 | O166: 0
N167: 0 | O167: 0
N168: 0 | O168: 0
N169: 0 | O169: 0
N170: 0 | O170: 0
N171: 0 | O171: 0
N172: 0 | O172: 0
N173: 0 | O173: 0
N174: 0 | O174: 0
N175: 0 | O175: 0
N176: 0 | O176: 0
N177: 0 | O177: 0
N178: 0 | O178: 0
N179: 0 | O179: 0
N180: 0 | O180: 0
N181: 0 | O181: 0
N182: 0 | O182: 0
N183: 0 | O183: 0
N184: 0 | O184: 0
N185: 0 | O185: 0
N186: 0 | O186: 0
N187: 0 | O187: 0
N188: 0 | O188: 0
N189: 0 | O189: 0
N190: 0 | O190: 0
N191: 0 | O191: 0
N192: 0 | O192: 0
N193: 0 | O193: 0
N194: 0 | O194: 0
N195: 0 | O195: 0
N196: 0 | O196: 0
N197: 0 | O197: 0
N198: 0 | O198: 0
N199: 0 | O199: 0
N200: 0 | O200: 0
N201: 0 | O201: 0
... 4299 more rows

Sheet Classifica Fidal Punti
H8: Clikkare sul segno + davanti al nome per vedere le gare
D9: Somma di Punti | E9: Anno | H9: Clikkare sul segno - davanti al nome per comprimere
D10: Atleta Fidal | E10: 2024 | H10: Non vengono assegnati punti per le frazioni di KM
C11: =IF(ISERROR(VLOOKUP(D11,'Elenco Atleti'!A:A,1,0)),+C10,+C10+1) -> 1 | D11: Merli Giuseppe | E11: 432
C12: =IF(ISERROR(VLOOKUP(D12,'Elenco Atleti'!A:A,1,0)),+C11,+C11+1) -> 2 | D12: Monticelli Luca | E12: 417
C13: =IF(ISERROR(VLOOKUP(D13,'Elenco Atleti'!A:A,1,0)),+C12,+C12+1) -> 3 | D13: Colombo Annalisa | E13: 403
C14: =IF(ISERROR(VLOOKUP(D14,'Elenco Atleti'!A:A,1,0)),+C13,+C13+1) -> 4 | D14: Podda Laura | E14: 365
C15: =IF(ISERROR(VLOOKUP(D15,'Elenco Atleti'!A:A,1,0)),+C14,+C14+1) -> 5 | D15: Tagliabue Massimiliano | E15: 344
C16: =IF(ISERROR(VLOOKUP(D16,'Elenco Atleti'!A:A,1,0)),+C15,+C15+1) -> 6 | D16: Parravicini Andrea | E16: 329
C17: =IF(ISERROR(VLOOKUP(D17,'Elenco Atleti'!A:A,1,0)),+C16,+C16+1) -> 7 | D17: Perin Valentina | E17: 323
C18: =IF(ISERROR(VLOOKUP(D18,'Elenco Atleti'!A:A,1,0)),+C17,+C17+1) -> 8 | D18: Zaffaroni Stefano | E18: 303
C19: =IF(ISERROR(VLOOKUP(D19,'Elenco Atleti'!A:A,1,0)),+C18,+C18+1) -> 9 | D19: Gigante Rocco | E19: 290
C20: =IF(ISERROR(VLOOKUP(D20,'Elenco Atleti'!A:A,1,0)),+C19,+C19+1) -> 10 | D20: Abeni Stefano | E20: 283
C21: =IF(ISERROR(VLOOKUP(D21,'Elenco Atleti'!A:A,1,0)),+C20,+C20+1) -> 11 | D21: Fava Stefano | E21: 268
C22: =IF(ISERROR(VLOOKUP(D22,'Elenco Atleti'!A:A,1,0)),+C21,+C21+1) -> 12 | D22: Matranga Matteo | E22: 267
C23: =IF(ISERROR(VLOOKUP(D23,'Elenco Atleti'!A:A,1,0)),+C22,+C22+1) -> 13 | D23: Fiorio Bruno | E23: 257
C24: =IF(ISERROR(VLOOKUP(D24,'Elenco Atleti'!A:A,1,0)),+C23,+C23+1) -> 14 | D24: Vitiello Claudio | E24: 253
C25: =IF(ISERROR(VLOOKUP(D25,'Elenco Atleti'!A:A,1,0)),+C24,+C24+1) -> 15 | D25: Sambrotta Paolo | E25: 249
C26: =IF(ISERROR(VLOOKUP(D26,'Elenco Atleti'!A:A,1,0)),+C25,+C25+1) -> 16 | D26: Falco Mauro | E26: 247
C27: =IF(ISERROR(VLOOKUP(D27,'Elenco Atleti'!A:A,1,0)),+C26,+C26+1) -> 17 | D27: Martinelli Luigi | E27: 242
C28: =IF(ISERROR(VLOOKUP(D28,'Elenco Atleti'!A:A,1,0)),+C27,+C27+1) -> 18 | D28: Settembrini Gemma | E28: 241
C29: =IF(ISERROR(VLOOKUP(D29,'Elenco Atleti'!A:A,1,0)),+C28,+C28+1) -> 19 | D29: Sciarappa Franco | E29: 239
C30: =IF(ISERROR(VLOOKUP(D30,'Elenco Atleti'!A:A,1,0)),+C29,+C29+1) -> 20 | D30: Roncoroni Luisella | E30: 238
C31: =IF(ISERROR(VLOOKUP(D31,'Elenco Atleti'!A:A,1,0)),+C30,+C30+1) -> 21 | D31: Fusi Roberto | E31: 230
C32: =IF(ISERROR(VLOOKUP(D32,'Elenco Atleti'!A:A,1,0)),+C31,+C31+1) -> 22 | D32: Pozzi Lia | E32: 224
C33: =IF(ISERROR(VLOOKUP(D33,'Elenco Atleti'!A:A,1,0)),+C32,+C32+1) -> 23 | D33: Copelli Mauro | E33: 206
C34: =IF(ISERROR(VLOOKUP(D34,'Elenco Atleti'!A:A,1,0)),+C33,+C33+1) -> 24 | D34: Bianchessi Maurizio | E34: 205
C35: =IF(ISERROR(VLOOKUP(D35,'Elenco Atleti'!A:A,1,0)),+C34,+C34+1) -> 25 | D35: Pantano Enrico | E35: 203
C36: =IF(ISERROR(VLOOKUP(D36,'Elenco Atleti'!A:A,1,0)),+C35,+C35+1) -> 26 | D36: Clerici Federica | E36: 197
C37: =IF(ISERROR(VLOOKUP(D37,'Elenco Atleti'!A:A,1,0)),+C36,+C36+1) -> 27 | D37: Fittavolini Andrea | E37: 197
C38: =IF(ISERROR(VLOOKUP(D38,'Elenco Atleti'!A:A,1,0)),+C37,+C37+1) -> 28 | D38: Galli Andrea | E38: 197
C39: =IF(ISERROR(VLOOKUP(D39,'Elenco Atleti'!A:A,1,0)),+C38,+C38+1) -> 29 | D39: Dan Fabrizio | E39: 194
C40: =IF(ISERROR(VLOOKUP(D40,'Elenco Atleti'!A:A,1,0)),+C39,+C39+1) -> 30 | D40: Cocomazzi Graziella | E40: 188
C41: =IF(ISERROR(VLOOKUP(D41,'Elenco Atleti'!A:A,1,0)),+C40,+C40+1) -> 31 | D41: Pigozzi Marta | E41: 185
C42: =IF(ISERROR(VLOOKUP(D42,'Elenco Atleti'!A:A,1,0)),+C41,+C41+1) -> 32 | D42: Cavalli Luigi | E42: 185
C43: =IF(ISERROR(VLOOKUP(D43,'Elenco Atleti'!A:A,1,0)),+C42,+C42+1) -> 33 | D43: Gambirasi Stefano | E43: 175
C44: =IF(ISERROR(VLOOKUP(D44,'Elenco Atleti'!A:A,1,0)),+C43,+C43+1) -> 34 | D44: Villa Maria Rosa | E44: 169
C45: =IF(ISERROR(VLOOKUP(D45,'Elenco Atleti'!A:A,1,0)),+C44,+C44+1) -> 35 | D45: Strada Paola | E45: 169
C46: =IF(ISERROR(VLOOKUP(D46,'Elenco Atleti'!A:A,1,0)),+C45,+C45+1) -> 36 | D46: Pintus Patrizio | E46: 163
C47: =IF(ISERROR(VLOOKUP(D47,'Elenco Atleti'!A:A,1,0)),+C46,+C46+1) -> 37 | D47: Urso Vincenzo | E47: 155
C48: =IF(ISERROR(VLOOKUP(D48,'Elenco Atleti'!A:A,1,0)),+C47,+C47+1) -> 38 | D48: Bertuolo Fabio | E48: 154
C49: =IF(ISERROR(VLOOKUP(D49,'Elenco Atleti'!A:A,1,0)),+C48,+C48+1) -> 39 | D49: Virlan Liliana | E49: 153
C50: =IF(ISERROR(VLOOKUP(D50,'Elenco Atleti'!A:A,1,0)),+C49,+C49+1) -> 40 | D50: Tragella Claudio | E50: 147
C51: =IF(ISERROR(VLOOKUP(D51,'Elenco Atleti'!A:A,1,0)),+C50,+C50+1) -> 41 | D51: Castiglioni Cristina | E51: 145
C52: =IF(ISERROR(VLOOKUP(D52,'Elenco Atleti'!A:A,1,0)),+C51,+C51+1) -> 42 | D52: Antonietti Daris | E52: 133
C53: =IF(ISERROR(VLOOKUP(D53,'Elenco Atleti'!A:A,1,0)),+C52,+C52+1) -> 43 | D53: Pavan Stefania | E53: 132
C54: =IF(ISERROR(VLOOKUP(D54,'Elenco Atleti'!A:A,1,0)),+C53,+C53+1) -> 44 | D54: Dones Silvia | E54: 130
C55: =IF(ISERROR(VLOOKUP(D55,'Elenco Atleti'!A:A,1,0)),+C54,+C54+1) -> 45 | D55: Vergottini Giada | E55: 128
C56: =IF(ISERROR(VLOOKUP(D56,'Elenco Atleti'!A:A,1,0)),+C55,+C55+1) -> 46 | D56: Mitrano Fabio | E56: 128
C57: =IF(ISERROR(VLOOKUP(D57,'Elenco Atleti'!A:A,1,0)),+C56,+C56+1) -> 47 | D57: Cattaneo Marco | E57: 126
C58: =IF(ISERROR(VLOOKUP(D58,'Elenco Atleti'!A:A,1,0)),+C57,+C57+1) -> 48 | D58: Bernasconi Carlo | E58: 125
C59: =IF(ISERROR(VLOOKUP(D59,'Elenco Atleti'!A:A,1,0)),+C58,+C58+1) -> 49 | D59: Scapecchi Luca | E59: 122
C60: =IF(ISERROR(VLOOKUP(D60,'Elenco Atleti'!A:A,1,0)),+C59,+C59+1) -> 50 | D60: Fusetti Martina | E60: 122
C61: =IF(ISERROR(VLOOKUP(D61,'Elenco Atleti'!A:A,1,0)),+C60,+C60+1) -> 51 | D61: Medugno Roberto | E61: 112
C62: =IF(ISERROR(VLOOKUP(D62,'Elenco Atleti'!A:A,1,0)),+C61,+C61+1) -> 52 | D62: Legnani Katia | E62: 111
C63: =IF(ISERROR(VLOOKUP(D63,'Elenco Atleti'!A:A,1,0)),+C62,+C62+1) -> 53 | D63: Lamberti Ottavia | E63: 109
C64: =IF(ISERROR(VLOOKUP(D64,'Elenco Atleti'!A:A,1,0)),+C63,+C63+1) -> 54 | D64: Mantegazza Francesco | E64: 106
C65: =IF(ISERROR(VLOOKUP(D65,'Elenco Atleti'!A:A,1,0)),+C64,+C64+1) -> 55 | D65: Licata Francesco | E65: 104
C66: =IF(ISERROR(VLOOKUP(D66,'Elenco Atleti'!A:A,1,0)),+C65,+C65+1) -> 56 | D66: Cecchini Claudia | E66: 104
C67: =IF(ISERROR(VLOOKUP(D67,'Elenco Atleti'!A:A,1,0)),+C66,+C66+1) -> 57 | D67: Bollino Francesco | E67: 103
C68: =IF(ISERROR(VLOOKUP(D68,'Elenco Atleti'!A:A,1,0)),+C67,+C67+1) -> 58 | D68: Minotti Vanila | E68: 103
C69: =IF(ISERROR(VLOOKUP(D69,'Elenco Atleti'!A:A,1,0)),+C68,+C68+1) -> 59 | D69: Carlomagno Marcello | E69: 102
C70: =IF(ISERROR(VLOOKUP(D70,'Elenco Atleti'!A:A,1,0)),+C69,+C69+1) -> 60 | D70: Cattaneo Fabio | E70: 102
C71: =IF(ISERROR(VLOOKUP(D71,'Elenco Atleti'!A:A,1,0)),+C70,+C70+1) -> 61 | D71: Zaffaroni Chiara | E71: 101
C72: =IF(ISERROR(VLOOKUP(D72,'Elenco Atleti'!A:A,1,0)),+C71,+C71+1) -> 62 | D72: Doardo Diego | E72: 98
C73: =IF(ISERROR(VLOOKUP(D73,'Elenco Atleti'!A:A,1,0)),+C72,+C72+1) -> 63 | D73: Algisi Nadia | E73: 97
C74: =IF(ISERROR(VLOOKUP(D74,'Elenco Atleti'!A:A,1,0)),+C73,+C73+1) -> 64 | D74: Giudici Alberto | E74: 97
C75: =IF(ISERROR(VLOOKUP(D75,'Elenco Atleti'!A:A,1,0)),+C74,+C74+1) -> 65 | D75: Clerici Lorenzo | E75: 93
C76: =IF(ISERROR(VLOOKUP(D76,'Elenco Atleti'!A:A,1,0)),+C75,+C75+1) -> 66 | D76: Agati Silvana | E76: 91
C77: =IF(ISERROR(VLOOKUP(D77,'Elenco Atleti'!A:A,1,0)),+C76,+C76+1) -> 67 | D77: Gallinaro Maria Laura | E77: 91
C78: =IF(ISERROR(VLOOKUP(D78,'Elenco Atleti'!A:A,1,0)),+C77,+C77+1) -> 68 | D78: Beretta Alberto | E78: 90
C79: =IF(ISERROR(VLOOKUP(D79,'Elenco Atleti'!A:A,1,0)),+C78,+C78+1) -> 69 | D79: Zanardi Paolo | E79: 89
C80: =IF(ISERROR(VLOOKUP(D80,'Elenco Atleti'!A:A,1,0)),+C79,+C79+1) -> 70 | D80: Romani Federico | E80: 86
C81: =IF(ISERROR(VLOOKUP(D81,'Elenco Atleti'!A:A,1,0)),+C80,+C80+1) -> 71 | D81: Sola Fabio | E81: 84
C82: =IF(ISERROR(VLOOKUP(D82,'Elenco Atleti'!A:A,1,0)),+C81,+C81+1) -> 72 | D82: Damiani Emanuele | E82: 83
C83: =IF(ISERROR(VLOOKUP(D83,'Elenco Atleti'!A:A,1,0)),+C82,+C82+1) -> 73 | D83: Vago Paola | E83: 82
C84: =IF(ISERROR(VLOOKUP(D84,'Elenco Atleti'!A:A,1,0)),+C83,+C83+1) -> 74 | D84: Pelaia Cosimo | E84: 82
C85: =IF(ISERROR(VLOOKUP(D85,'Elenco Atleti'!A:A,1,0)),+C84,+C84+1) -> 75 | D85: Villa Simone | E85: 82
C86: =IF(ISERROR(VLOOKUP(D86,'Elenco Atleti'!A:A,1,0)),+C85,+C85+1) -> 76 | D86: Sambrotta Ovidio | E86: 81
C87: =IF(ISERROR(VLOOKUP(D87,'Elenco Atleti'!A:A,1,0)),+C86,+C86+1) -> 77 | D87: Rossetti Greco Maura | E87: 80
C88: =IF(ISERROR(VLOOKUP(D88,'Elenco Atleti'!A:A,1,0)),+C87,+C87+1) -> 78 | D88: Alberio Marco | E88: 80
C89: =IF(ISERROR(VLOOKUP(D89,'Elenco Atleti'!A:A,1,0)),+C88,+C88+1) -> 79 | D89: D'Arrigo Valentina | E89: 75
C90: =IF(ISERROR(VLOOKUP(D90,'Elenco Atleti'!A:A,1,0)),+C89,+C89+1) -> 80 | D90: Palermo Silvia | E90: 75
C91: =IF(ISERROR(VLOOKUP(D91,'Elenco Atleti'!A:A,1,0)),+C90,+C90+1) -> 81 | D91: Bellitti Santo | E91: 74
C92: =IF(ISERROR(VLOOKUP(D92,'Elenco Atleti'!A:A,1,0)),+C91,+C91+1) -> 82 | D92: Rossini Alessandro | E92: 72
C93: =IF(ISERROR(VLOOKUP(D93,'Elenco Atleti'!A:A,1,0)),+C92,+C92+1) -> 83 | D93: Brancati Daniele | E93: 71
C94: =IF(ISERROR(VLOOKUP(D94,'Elenco Atleti'!A:A,1,0)),+C93,+C93+1) -> 84 | D94: Rosiello Maria Cristina | E94: 70
C95: =IF(ISERROR(VLOOKUP(D95,'Elenco Atleti'!A:A,1,0)),+C94,+C94+1) -> 85 | D95: Monti Franco | E95: 70
C96: =IF(ISERROR(VLOOKUP(D96,'Elenco Atleti'!A:A,1,0)),+C95,+C95+1) -> 86 | D96: Girola Carla | E96: 69
C97: =IF(ISERROR(VLOOKUP(D97,'Elenco Atleti'!A:A,1,0)),+C96,+C96+1) -> 87 | D97: Arcerito Lorenzo | E97: 68
C98: =IF(ISERROR(VLOOKUP(D98,'Elenco Atleti'!A:A,1,0)),+C97,+C97+1) -> 88 | D98: D'Antoni Vincenzo | E98: 65
C99: =IF(ISERROR(VLOOKUP(D99,'Elenco Atleti'!A:A,1,0)),+C98,+C98+1) -> 89 | D99: D'Andrea Federico | E99: 63
C100: =IF(ISERROR(VLOOKUP(D100,'Elenco Atleti'!A:A,1,0)),+C99,+C99+1) -> 90 | D100: Mosca Omar | E100: 62
C101: =IF(ISERROR(VLOOKUP(D101,'Elenco Atleti'!A:A,1,0)),+C100,+C100+1) -> 91 | D101: Gobbo Mattia | E101: 61
C102: =IF(ISERROR(VLOOKUP(D102,'Elenco Atleti'!A:A,1,0)),+C101,+C101+1) -> 92 | D102: Lombardi Antonio | E102: 59
C103: =IF(ISERROR(VLOOKUP(D103,'Elenco Atleti'!A:A,1,0)),+C102,+C102+1) -> 93 | D103: Cassinari Roberto | E103: 59
C104: =IF(ISERROR(VLOOKUP(D104,'Elenco Atleti'!A:A,1,0)),+C103,+C103+1) -> 94 | D104: Valentini Lorenzo | E104: 58
C105: =IF(ISERROR(VLOOKUP(D105,'Elenco Atleti'!A:A,1,0)),+C104,+C104+1) -> 95 | D105: Matera Vittorio | E105: 58
C106: =IF(ISERROR(VLOOKUP(D106,'Elenco Atleti'!A:A,1,0)),+C105,+C105+1) -> 96 | D106: Natale Lucia | E106: 56
C107: =IF(ISERROR(VLOOKUP(D107,'Elenco Atleti'!A:A,1,0)),+C106,+C106+1) -> 97 | D107: Medina Adrian | E107: 56
C108: =IF(ISERROR(VLOOKUP(D108,'Elenco Atleti'!A:A,1,0)),+C107,+C107+1) -> 98 | D108: Fisicaro Giuseppe | E108: 52
C109: =IF(ISERROR(VLOOKUP(D109,'Elenco Atleti'!A:A,1,0)),+C108,+C108+1) -> 99 | D109: Finotto Francesco | E109: 52
C110: =IF(ISERROR(VLOOKUP(D110,'Elenco Atleti'!A:A,1,0)),+C109,+C109+1) -> 100 | D110: Calcatelli Francesco | E110: 51
C111: =IF(ISERROR(VLOOKUP(D111,'Elenco Atleti'!A:A,1,0)),+C110,+C110+1) -> 101 | D111: Barzaghi Marco | E111: 51
C112: =IF(ISERROR(VLOOKUP(D112,'Elenco Atleti'!A:A,1,0)),+C111,+C111+1) -> 102 | D112: Colpani Marco | E112: 50
C113: =IF(ISERROR(VLOOKUP(D113,'Elenco Atleti'!A:A,1,0)),+C112,+C112+1) -> 103 | D113: Paglialonga Daniele | E113: 48
C114: =IF(ISERROR(VLOOKUP(D114,'Elenco Atleti'!A:A,1,0)),+C113,+C113+1) -> 104 | D114: Alario Francesco | E114: 48
C115: =IF(ISERROR(VLOOKUP(D115,'Elenco Atleti'!A:A,1,0)),+C114,+C114+1) -> 105 | D115: Colombo Laura | E115: 48
C116: =IF(ISERROR(VLOOKUP(D116,'Elenco Atleti'!A:A,1,0)),+C115,+C115+1) -> 106 | D116: Scubla Andrea | E116: 45
C117: =IF(ISERROR(VLOOKUP(D117,'Elenco Atleti'!A:A,1,0)),+C116,+C116+1) -> 107 | D117: Bruni Davide | E117: 43
C118: =IF(ISERROR(VLOOKUP(D118,'Elenco Atleti'!A:A,1,0)),+C117,+C117+1) -> 108 | D118: Salvaggio Fabio | E118: 42
C119: =IF(ISERROR(VLOOKUP(D119,'Elenco Atleti'!A:A,1,0)),+C118,+C118+1) -> 109 | D119: Polidori Vidal Giovanni | E119: 42
C120: =IF(ISERROR(VLOOKUP(D120,'Elenco Atleti'!A:A,1,0)),+C119,+C119+1) -> 110 | D120: Derlino Paola | E120: 41
C121: =IF(ISERROR(VLOOKUP(D121,'Elenco Atleti'!A:A,1,0)),+C120,+C120+1) -> 111 | D121: Khoujji Bouchra | E121: 40
C122: =IF(ISERROR(VLOOKUP(D122,'Elenco Atleti'!A:A,1,0)),+C121,+C121+1) -> 112 | D122: Branchini Davide | E122: 40
C123: =IF(ISERROR(VLOOKUP(D123,'Elenco Atleti'!A:A,1,0)),+C122,+C122+1) -> 113 | D123: Marcomin Lorenzo | E123: 40
C124: =IF(ISERROR(VLOOKUP(D124,'Elenco Atleti'!A:A,1,0)),+C123,+C123+1) -> 114 | D124: Legnani Silvia | E124: 40
C125: =IF(ISERROR(VLOOKUP(D125,'Elenco Atleti'!A:A,1,0)),+C124,+C124+1) -> 115 | D125: Orsini Graziella | E125: 38
C126: =IF(ISERROR(VLOOKUP(D126,'Elenco Atleti'!A:A,1,0)),+C125,+C125+1) -> 116 | D126: Melis Sofia | E126: 38
C127: =IF(ISERROR(VLOOKUP(D127,'Elenco Atleti'!A:A,1,0)),+C126,+C126+1) -> 117 | D127: Zoni Maura | E127: 36
C128: =IF(ISERROR(VLOOKUP(D128,'Elenco Atleti'!A:A,1,0)),+C127,+C127+1) -> 118 | D128: Conegliano Marcello | E128: 33
C129: =IF(ISERROR(VLOOKUP(D129,'Elenco Atleti'!A:A,1,0)),+C128,+C128+1) -> 119 | D129: Lapa Orihuela Hubert | E129: 32
C130: =IF(ISERROR(VLOOKUP(D130,'Elenco Atleti'!A:A,1,0)),+C129,+C129+1) -> 120 | D130: Guzzetti Luigi | E130: 31
C131: =IF(ISERROR(VLOOKUP(D131,'Elenco Atleti'!A:A,1,0)),+C130,+C130+1) -> 121 | D131: La Duca Debora | E131: 31
C132: =IF(ISERROR(VLOOKUP(D132,'Elenco Atleti'!A:A,1,0)),+C131,+C131+1) -> 122 | D132: Chiodini Luca | E132: 31
C133: =IF(ISERROR(VLOOKUP(D133,'Elenco Atleti'!A:A,1,0)),+C132,+C132+1) -> 123 | D133: Coppola Matteo | E133: 31
C134: =IF(ISERROR(VLOOKUP(D134,'Elenco Atleti'!A:A,1,0)),+C133,+C133+1) -> 124 | D134: Sala Fabrizio | E134: 30
C135: =IF(ISERROR(VLOOKUP(D135,'Elenco Atleti'!A:A,1,0)),+C134,+C134+1) -> 125 | D135: Colombo Andrea 2 | E135: 30
C136: =IF(ISERROR(VLOOKUP(D136,'Elenco Atleti'!A:A,1,0)),+C135,+C135+1) -> 126 | D136: Conti Enrico | E136: 30
C137: =IF(ISERROR(VLOOKUP(D137,'Elenco Atleti'!A:A,1,0)),+C136,+C136+1) -> 127 | D137: Franchi Raffaella | E137: 29
C138: =IF(ISERROR(VLOOKUP(D138,'Elenco Atleti'!A:A,1,0)),+C137,+C137+1) -> 128 | D138: Frascadore Angelo | E138: 28
C139: =IF(ISERROR(VLOOKUP(D139,'Elenco Atleti'!A:A,1,0)),+C138,+C138+1) -> 129 | D139: Musti Simona | E139: 28
C140: =IF(ISERROR(VLOOKUP(D140,'Elenco Atleti'!A:A,1,0)),+C139,+C139+1) -> 130 | D140: Passaro Mattia | E140: 25
C141: =IF(ISERROR(VLOOKUP(D141,'Elenco Atleti'!A:A,1,0)),+C140,+C140+1) -> 131 | D141: Benzi Dennis | E141: 23
C142: =IF(ISERROR(VLOOKUP(D142,'Elenco Atleti'!A:A,1,0)),+C141,+C141+1) -> 132 | D142: Branchini Massimiliano | E142: 22
C143: =IF(ISERROR(VLOOKUP(D143,'Elenco Atleti'!A:A,1,0)),+C142,+C142+1) -> 133 | D143: Moioli Andrea | E143: 22
C144: =IF(ISERROR(VLOOKUP(D144,'Elenco Atleti'!A:A,1,0)),+C143,+C143+1) -> 134 | D144: Colombo Lorenzo | E144: 21
C145: =IF(ISERROR(VLOOKUP(D145,'Elenco Atleti'!A:A,1,0)),+C144,+C144+1) -> 135 | D145: Cervellera Daniele | E145: 21
C146: =IF(ISERROR(VLOOKUP(D146,'Elenco Atleti'!A:A,1,0)),+C145,+C145+1) -> 136 | D146: Federico Simone | E146: 21
C147: =IF(ISERROR(VLOOKUP(D147,'Elenco Atleti'!A:A,1,0)),+C146,+C146+1) -> 137 | D147: Terranova Giulia | E147: 21
C148: =IF(ISERROR(VLOOKUP(D148,'Elenco Atleti'!A:A,1,0)),+C147,+C147+1) -> 138 | D148: Ohazuruike Nnawuihe Luca | E148: 21
C149: =IF(ISERROR(VLOOKUP(D149,'Elenco Atleti'!A:A,1,0)),+C148,+C148+1) -> 139 | D149: Puppi Alessandro | E149: 21
C150: =IF(ISERROR(VLOOKUP(D150,'Elenco Atleti'!A:A,1,0)),+C149,+C149+1) -> 140 | D150: Mazzocchi Alice | E150: 21
C151: =IF(ISERROR(VLOOKUP(D151,'Elenco Atleti'!A:A,1,0)),+C150,+C150+1) -> 141 | D151: Mazzocchi Claudia | E151: 21
C152: =IF(ISERROR(VLOOKUP(D152,'Elenco Atleti'!A:A,1,0)),+C151,+C151+1) -> 142 | D152: Piuri Fabio | E152: 20
C153: =IF(ISERROR(VLOOKUP(D153,'Elenco Atleti'!A:A,1,0)),+C152,+C152+1) -> 143 | D153: Oliva Alberto | E153: 19
C154: =IF(ISERROR(VLOOKUP(D154,'Elenco Atleti'!A:A,1,0)),+C153,+C153+1) -> 144 | D154: Accardi Angela | E154: 19
C155: =IF(ISERROR(VLOOKUP(D155,'Elenco Atleti'!A:A,1,0)),+C154,+C154+1) -> 145 | D155: Bosco Franca | E155: 18
C156: =IF(ISERROR(VLOOKUP(D156,'Elenco Atleti'!A:A,1,0)),+C155,+C155+1) -> 146 | D156: Pellati Benedetta | E156: 16
C157: =IF(ISERROR(VLOOKUP(D157,'Elenco Atleti'!A:A,1,0)),+C156,+C156+1) -> 147 | D157: Montani Fabio | E157: 15
C158: =IF(ISERROR(VLOOKUP(D158,'Elenco Atleti'!A:A,1,0)),+C157,+C157+1) -> 148 | D158: Cremona Andrea | E158: 14
C159: =IF(ISERROR(VLOOKUP(D159,'Elenco Atleti'!A:A,1,0)),+C158,+C158+1) -> 149 | D159: Del Gaudio Giuseppe | E159: 12
C160: =IF(ISERROR(VLOOKUP(D160,'Elenco Atleti'!A:A,1,0)),+C159,+C159+1) -> 150 | D160: Mandelli Daniela | E160: 12
C161: =IF(ISERROR(VLOOKUP(D161,'Elenco Atleti'!A:A,1,0)),+C160,+C160+1) -> 151 | D161: Fusi Cesare | E161: 11
C162: =IF(ISERROR(VLOOKUP(D162,'Elenco Atleti'!A:A,1,0)),+C161,+C161+1) -> 152 | D162: Decima Irene | E162: 10
C163: =IF(ISERROR(VLOOKUP(D163,'Elenco Atleti'!A:A,1,0)),+C162,+C162+1) -> 153 | D163: Vitiello Raffaela | E163: 10
C164: =IF(ISERROR(VLOOKUP(D164,'Elenco Atleti'!A:A,1,0)),+C163,+C163+1) -> 154 | D164: Ivanov Davide | E164: 10
C165: =IF(ISERROR(VLOOKUP(D165,'Elenco Atleti'!A:A,1,0)),+C164,+C164+1) -> 155 | D165: Re Ferrè Piero | E165: 10
C166: =IF(ISERROR(VLOOKUP(D166,'Elenco Atleti'!A:A,1,0)),+C165,+C165+1) -> 156 | D166: Benz Loris | E166: 10
C167: =IF(ISERROR(VLOOKUP(D167,'Elenco Atleti'!A:A,1,0)),+C166,+C166+1) -> 157 | D167: Vignoni Chiara | E167: 10
C168: =IF(ISERROR(VLOOKUP(D168,'Elenco Atleti'!A:A,1,0)),+C167,+C167+1) -> 158 | D168: Galli Matteo | E168: 10
C169: =IF(ISERROR(VLOOKUP(D169,'Elenco Atleti'!A:A,1,0)),+C168,+C168+1) -> 159 | D169: Magnoni Marco | E169: 10
C170: =IF(ISERROR(VLOOKUP(D170,'Elenco Atleti'!A:A,1,0)),+C169,+C169+1) -> 160 | D170: Piazza Simone | E170: 10
C171: =IF(ISERROR(VLOOKUP(D171,'Elenco Atleti'!A:A,1,0)),+C170,+C170+1) -> 161 | D171: Moraes Pinto Michelle | E171: 10
C172: =IF(ISERROR(VLOOKUP(D172,'Elenco Atleti'!A:A,1,0)),+C171,+C171+1) -> 162 | D172: Boarin Daniele | E172: 10
C173: =IF(ISERROR(VLOOKUP(D173,'Elenco Atleti'!A:A,1,0)),+C172,+C172+1) -> 163 | D173: Ambrosi Stefano | E173: 10
C174: =IF(ISERROR(VLOOKUP(D174,'Elenco Atleti'!A:A,1,0)),+C173,+C173+1) -> 164 | D174: Agnelli Fabrizio | E174: 10
C175: =IF(ISERROR(VLOOKUP(D175,'Elenco Atleti'!A:A,1,0)),+C174,+C174+1) -> 165 | D175: Azzani Tiziana | E175: 10
C176: =IF(ISERROR(VLOOKUP(D176,'Elenco Atleti'!A:A,1,0)),+C175,+C175+1) -> 166 | D176: Bordoni Luca | E176: 9
C177: =IF(ISERROR(VLOOKUP(D177,'Elenco Atleti'!A:A,1,0)),+C176,+C176+1) -> 167 | D177: Lettieri Umberto | E177: 9
C178: =IF(ISERROR(VLOOKUP(D178,'Elenco Atleti'!A:A,1,0)),+C177,+C177+1) -> 168 | D178: Pieri Silvia | E178: 8
C179: =IF(ISERROR(VLOOKUP(D179,'Elenco Atleti'!A:A,1,0)),+C178,+C178+1) -> 169 | D179: Antonini Marco | E179: 8
C180: =IF(ISERROR(VLOOKUP(D180,'Elenco Atleti'!A:A,1,0)),+C179,+C179+1) -> 170 | D180: Raimondi Marco | E180: 0
C181: =IF(ISERROR(VLOOKUP(D181,'Elenco Atleti'!A:A,1,0)),+C180,+C180+1) -> 171 | D181: Cipriano Antonio | E181: 0
C182: =IF(ISERROR(VLOOKUP(D182,'Elenco Atleti'!A:A,1,0)),+C181,+C181+1) -> 172 | D182: Pittoni Cristian | E182: 0
C183: =IF(ISERROR(VLOOKUP(D183,'Elenco Atleti'!A:A,1,0)),+C182,+C182+1) -> 173 | D183: Farci Giuseppe | E183: 0
C184: =IF(ISERROR(VLOOKUP(D184,'Elenco Atleti'!A:A,1,0)),+C183,+C183+1) -> 174 | D184: Croci Stefano | E184: 0
C185: =IF(ISERROR(VLOOKUP(D185,'Elenco Atleti'!A:A,1,0)),+C184,+C184+1) -> 175 | D185: Sala Paolo | E185: 0
C186: =IF(ISERROR(VLOOKUP(D186,'Elenco Atleti'!A:A,1,0)),+C185,+C185+1) -> 176 | D186: Cappelletti Marco | E186: 0
C187: =IF(ISERROR(VLOOKUP(D187,'Elenco Atleti'!A:A,1,0)),+C186,+C186+1) -> 177 | D187: Balzarotti Paolo | E187: 0
C188: =IF(ISERROR(VLOOKUP(D188,'Elenco Atleti'!A:A,1,0)),+C187,+C187+1) -> 178 | D188: Patrese Benedetta | E188: 0
C189: =IF(ISERROR(VLOOKUP(D189,'Elenco Atleti'!A:A,1,0)),+C188,+C188+1) -> 179 | D189: Pieri Ilaria | E189: 0
C190: =IF(ISERROR(VLOOKUP(D190,'Elenco Atleti'!A:A,1,0)),+C189,+C189+1) -> 180 | D190: Cattaneo Valerio | E190: 0
C191: =IF(ISERROR(VLOOKUP(D191,'Elenco Atleti'!A:A,1,0)),+C190,+C190+1) -> 181 | D191: Bernareggi Nicolò | E191: 0
C192: =IF(ISERROR(VLOOKUP(D192,'Elenco Atleti'!A:A,1,0)),+C191,+C191+1) -> 182 | D192: Castelli Giulia | E192: 0
C193: =IF(ISERROR(VLOOKUP(D193,'Elenco Atleti'!A:A,1,0)),+C192,+C192+1) -> 183 | D193: Ferrara Silvia | E193: 0
C194: =IF(ISERROR(VLOOKUP(D194,'Elenco Atleti'!A:A,1,0)),+C193,+C193+1) -> 184 | D194: Raimondi Elena | E194: 0
C195: =IF(ISERROR(VLOOKUP(D195,'Elenco Atleti'!A:A,1,0)),+C194,+C194+1) -> 185 | D195: Tagliabue Gaia | E195: 0
C196: =IF(ISERROR(VLOOKUP(D196,'Elenco Atleti'!A:A,1,0)),+C195,+C195+1) -> 186 | D196: Ceglia Roberto | E196: 0
C197: =IF(ISERROR(VLOOKUP(D197,'Elenco Atleti'!A:A,1,0)),+C196,+C196+1) -> 187 | D197: Cipolla Giovanni | E197: 0
C198: =IF(ISERROR(VLOOKUP(D198,'Elenco Atleti'!A:A,1,0)),+C197,+C197+1) -> 188 | D198: Zamagna Augusto | E198: 0
C199: =IF(ISERROR(VLOOKUP(D199,'Elenco Atleti'!A:A,1,0)),+C198,+C198+1) -> 188
C200: =IF(ISERROR(VLOOKUP(D200,'Elenco Atleti'!A:A,1,0)),+C199,+C199+1) -> 188
C201: =IF(ISERROR(VLOOKUP(D201,'Elenco Atleti'!A:A,1,0)),+C200,+C200+1) -> 188
C202: =IF(ISERROR(VLOOKUP(D202,'Elenco Atleti'!A:A,1,0)),+C201,+C201+1) -> 188
C203: =IF(ISERROR(VLOOKUP(D203,'Elenco Atleti'!A:A,1,0)),+C202,+C202+1) -> 188
C204: =IF(ISERROR(VLOOKUP(D204,'Elenco Atleti'!A:A,1,0)),+C203,+C203+1) -> 188
C205: =IF(ISERROR(VLOOKUP(D205,'Elenco Atleti'!A:A,1,0)),+C204,+C204+1) -> 188
C206: =IF(ISERROR(VLOOKUP(D206,'Elenco Atleti'!A:A,1,0)),+C205,+C205+1) -> 188
C207: =IF(ISERROR(VLOOKUP(D207,'Elenco Atleti'!A:A,1,0)),+C206,+C206+1) -> 188
... 9970 more rows

Sheet Classifica Trail Punti
E9: Anno | H9: Clikkare sul segno + davanti al nome per vedere le gare
E10: 2024 | H10: Clikkare sul segno - davanti al nome per comprimere
C11: =IF(ISERROR(VLOOKUP(D11,'Elenco Atleti'!A:A,1,0)),+C10,+C10+1) -> 0 | D11: Atleta Fidal | E11: Pt Trail | F11: Dislivello | G11: Km Trail | H11: Somma dei KM (ogni 100 metri 0,1 pt.) e del dislivello (+D/1.000)
C12: =IF(ISERROR(VLOOKUP(D12,'Elenco Atleti'!A:A,1,0)),+C11,+C11+1) -> 1 | D12: Tagliabue Massimiliano | E12: 527.07 | F12: 20297 | G12: 324.1
C13: =IF(ISERROR(VLOOKUP(D13,'Elenco Atleti'!A:A,1,0)),+C12,+C12+1) -> 2 | D13: Perin Valentina | E13: 527.07 | F13: 20297 | G13: 324.1
C14: =IF(ISERROR(VLOOKUP(D14,'Elenco Atleti'!A:A,1,0)),+C13,+C13+1) -> 3 | D14: Colombo Annalisa | E14: 522.3 | F14: 20060 | G14: 321.7001
C15: =IF(ISERROR(VLOOKUP(D15,'Elenco Atleti'!A:A,1,0)),+C14,+C14+1) -> 4 | D15: Zaffaroni Stefano | E15: 442.2 | F15: 16840 | G15: 273.8
C16: =IF(ISERROR(VLOOKUP(D16,'Elenco Atleti'!A:A,1,0)),+C15,+C15+1) -> 5 | D16: Fava Stefano | E16: 360.65 | F16: 13465 | G16: 226
C17: =IF(ISERROR(VLOOKUP(D17,'Elenco Atleti'!A:A,1,0)),+C16,+C16+1) -> 6 | D17: Vitiello Claudio | E17: 267.58 | F17: 9038 | G17: 177.2
C18: =IF(ISERROR(VLOOKUP(D18,'Elenco Atleti'!A:A,1,0)),+C17,+C17+1) -> 7 | D18: Clerici Federica | E18: 199 | F18: 7950 | G18: 119.5001
C19: =IF(ISERROR(VLOOKUP(D19,'Elenco Atleti'!A:A,1,0)),+C18,+C18+1) -> 8 | D19: Pozzi Lia | E19: 159.72 | F19: 6742 | G19: 92.3
C20: =IF(ISERROR(VLOOKUP(D20,'Elenco Atleti'!A:A,1,0)),+C19,+C19+1) -> 9 | D20: Sambrotta Paolo | E20: 134.6 | F20: 5480 | G20: 79.8
C21: =IF(ISERROR(VLOOKUP(D21,'Elenco Atleti'!A:A,1,0)),+C20,+C20+1) -> 10 | D21: Zaffaroni Chiara | E21: 124.72 | F21: 4472 | G21: 80
C22: =IF(ISERROR(VLOOKUP(D22,'Elenco Atleti'!A:A,1,0)),+C21,+C21+1) -> 11 | D22: Medugno Roberto | E22: 122.7 | F22: 4960 | G22: 73.1
C23: =IF(ISERROR(VLOOKUP(D23,'Elenco Atleti'!A:A,1,0)),+C22,+C22+1) -> 12 | D23: Villa Simone | E23: 108.8 | F23: 3860 | G23: 70.2
C24: =IF(ISERROR(VLOOKUP(D24,'Elenco Atleti'!A:A,1,0)),+C23,+C23+1) -> 13 | D24: Cavalli Luigi | E24: 101 | F24: 4200 | G24: 59
C25: =IF(ISERROR(VLOOKUP(D25,'Elenco Atleti'!A:A,1,0)),+C24,+C24+1) -> 14 | D25: Dones Silvia | E25: 85.5 | F25: 3450 | G25: 51
C26: =IF(ISERROR(VLOOKUP(D26,'Elenco Atleti'!A:A,1,0)),+C25,+C25+1) -> 15 | D26: Roncoroni Luisella | E26: 78.3 | F26: 3360 | G26: 44.7
C27: =IF(ISERROR(VLOOKUP(D27,'Elenco Atleti'!A:A,1,0)),+C26,+C26+1) -> 16 | D27: Fiorio Bruno | E27: 78.3 | F27: 3360 | G27: 44.7
C28: =IF(ISERROR(VLOOKUP(D28,'Elenco Atleti'!A:A,1,0)),+C27,+C27+1) -> 17 | D28: Castiglioni Cristina | E28: 76.4 | F28: 2730 | G28: 49.1
C29: =IF(ISERROR(VLOOKUP(D29,'Elenco Atleti'!A:A,1,0)),+C28,+C28+1) -> 18 | D29: Damiani Emanuele | E29: 71.2 | F29: 2520 | G29: 46
C30: =IF(ISERROR(VLOOKUP(D30,'Elenco Atleti'!A:A,1,0)),+C29,+C29+1) -> 19 | D30: Lombardi Antonio | E30: 69.9 | F30: 2810 | G30: 41.8
C31: =IF(ISERROR(VLOOKUP(D31,'Elenco Atleti'!A:A,1,0)),+C30,+C30+1) -> 20 | D31: Branchini Davide | E31: 64.87 | F31: 2487 | G31: 40
C32: =IF(ISERROR(VLOOKUP(D32,'Elenco Atleti'!A:A,1,0)),+C31,+C31+1) -> 21 | D32: Fusi Roberto | E32: 58.93 | F32: 1593 | G32: 43
C33: =IF(ISERROR(VLOOKUP(D33,'Elenco Atleti'!A:A,1,0)),+C32,+C32+1) -> 22 | D33: Podda Laura | E33: 58.93 | F33: 1593 | G33: 43
C34: =IF(ISERROR(VLOOKUP(D34,'Elenco Atleti'!A:A,1,0)),+C33,+C33+1) -> 23 | D34: Doardo Diego | E34: 58.7 | F34: 2700 | G34: 31.7
C35: =IF(ISERROR(VLOOKUP(D35,'Elenco Atleti'!A:A,1,0)),+C34,+C34+1) -> 24 | D35: Sciarappa Franco | E35: 58.2 | F35: 2750 | G35: 30.7
C36: =IF(ISERROR(VLOOKUP(D36,'Elenco Atleti'!A:A,1,0)),+C35,+C35+1) -> 25 | D36: Bertuolo Fabio | E36: 58.2 | F36: 2750 | G36: 30.7
C37: =IF(ISERROR(VLOOKUP(D37,'Elenco Atleti'!A:A,1,0)),+C36,+C36+1) -> 26 | D37: Girola Carla | E37: 58 | F37: 2300 | G37: 35
C38: =IF(ISERROR(VLOOKUP(D38,'Elenco Atleti'!A:A,1,0)),+C37,+C37+1) -> 27 | D38: Matera Vittorio | E38: 57.2 | F38: 2750 | G38: 29.7
C39: =IF(ISERROR(VLOOKUP(D39,'Elenco Atleti'!A:A,1,0)),+C38,+C38+1) -> 28 | D39: D'Antoni Vincenzo | E39: 51 | F39: 1600 | G39: 35
C40: =IF(ISERROR(VLOOKUP(D40,'Elenco Atleti'!A:A,1,0)),+C39,+C39+1) -> 29 | D40: Cocomazzi Graziella | E40: 45.3 | F40: 2260 | G40: 22.7
C41: =IF(ISERROR(VLOOKUP(D41,'Elenco Atleti'!A:A,1,0)),+C40,+C40+1) -> 30 | D41: Rossetti Greco Maura | E41: 40.5 | F41: 1550 | G41: 25
C42: =IF(ISERROR(VLOOKUP(D42,'Elenco Atleti'!A:A,1,0)),+C41,+C41+1) -> 31 | D42: Carlomagno Marcello | E42: 40.5 | F42: 1550 | G42: 25
C43: =IF(ISERROR(VLOOKUP(D43,'Elenco Atleti'!A:A,1,0)),+C42,+C42+1) -> 32 | D43: Branchini Massimiliano | E43: 35.2 | F43: 1320 | G43: 22
C44: =IF(ISERROR(VLOOKUP(D44,'Elenco Atleti'!A:A,1,0)),+C43,+C43+1) -> 33 | D44: Moioli Andrea | E44: 35.2 | F44: 1320 | G44: 22
C45: =IF(ISERROR(VLOOKUP(D45,'Elenco Atleti'!A:A,1,0)),+C44,+C44+1) -> 34 | D45: Conti Enrico | E45: 30 | F45: 900 | G45: 21
C46: =IF(ISERROR(VLOOKUP(D46,'Elenco Atleti'!A:A,1,0)),+C45,+C45+1) -> 35 | D46: Pigozzi Marta | E46: 26 | F46: 1000 | G46: 16
C47: =IF(ISERROR(VLOOKUP(D47,'Elenco Atleti'!A:A,1,0)),+C46,+C46+1) -> 36 | D47: Pellati Benedetta | E47: 26 | F47: 1000 | G47: 16
C48: =IF(ISERROR(VLOOKUP(D48,'Elenco Atleti'!A:A,1,0)),+C47,+C47+1) -> 37 | D48: Copelli Mauro | E48: 26 | F48: 1000 | G48: 16
C49: =IF(ISERROR(VLOOKUP(D49,'Elenco Atleti'!A:A,1,0)),+C48,+C48+1) -> 38 | D49: Colombo Andrea 2 | E49: 25.93 | F49: 493 | G49: 21
C50: =IF(ISERROR(VLOOKUP(D50,'Elenco Atleti'!A:A,1,0)),+C49,+C49+1) -> 39 | D50: Monticelli Luca | E50: 25.93 | F50: 493 | G50: 21
C51: =IF(ISERROR(VLOOKUP(D51,'Elenco Atleti'!A:A,1,0)),+C50,+C50+1) -> 40 | D51: Fittavolini Andrea | E51: 25.93 | F51: 493 | G51: 21
C52: =IF(ISERROR(VLOOKUP(D52,'Elenco Atleti'!A:A,1,0)),+C51,+C51+1) -> 41 | D52: Fusetti Martina | E52: 25.93 | F52: 493 | G52: 21
C53: =IF(ISERROR(VLOOKUP(D53,'Elenco Atleti'!A:A,1,0)),+C52,+C52+1) -> 42 | D53: Passaro Mattia | E53: 23 | F53: 800 | G53: 15
C54: =IF(ISERROR(VLOOKUP(D54,'Elenco Atleti'!A:A,1,0)),+C53,+C53+1) -> 43 | D54: Mitrano Fabio | E54: 20.5 | F54: 850 | G54: 12
C55: =IF(ISERROR(VLOOKUP(D55,'Elenco Atleti'!A:A,1,0)),+C54,+C54+1) -> 44 | D55: Alberio Marco | E55: 16.2 | F55: 1150 | G55: 4.7
C56: =IF(ISERROR(VLOOKUP(D56,'Elenco Atleti'!A:A,1,0)),+C55,+C55+1) -> 45 | D56: Valentini Lorenzo | E56: 0 | F56: 0 | G56: 0
C57: =IF(ISERROR(VLOOKUP(D57,'Elenco Atleti'!A:A,1,0)),+C56,+C56+1) -> 46 | D57: Tragella Claudio | E57: 0 | F57: 0 | G57: 0
C58: =IF(ISERROR(VLOOKUP(D58,'Elenco Atleti'!A:A,1,0)),+C57,+C57+1) -> 47 | D58: Benzi Dennis | E58: 0 | F58: 0 | G58: 0
C59: =IF(ISERROR(VLOOKUP(D59,'Elenco Atleti'!A:A,1,0)),+C58,+C58+1) -> 48 | D59: Colpani Marco | E59: 0 | F59: 0 | G59: 0
C60: =IF(ISERROR(VLOOKUP(D60,'Elenco Atleti'!A:A,1,0)),+C59,+C59+1) -> 49 | D60: Bernareggi Nicolò | E60: 0 | F60: 0 | G60: 0
C61: =IF(ISERROR(VLOOKUP(D61,'Elenco Atleti'!A:A,1,0)),+C60,+C60+1) -> 50 | D61: Conegliano Marcello | E61: 0 | F61: 0 | G61: 0
C62: =IF(ISERROR(VLOOKUP(D62,'Elenco Atleti'!A:A,1,0)),+C61,+C61+1) -> 51 | D62: Colombo Lorenzo | E62: 0 | F62: 0 | G62: 0
C63: =IF(ISERROR(VLOOKUP(D63,'Elenco Atleti'!A:A,1,0)),+C62,+C62+1) -> 52 | D63: Cervellera Daniele | E63: 0 | F63: 0 | G63: 0
C64: =IF(ISERROR(VLOOKUP(D64,'Elenco Atleti'!A:A,1,0)),+C63,+C63+1) -> 53 | D64: Scapecchi Luca | E64: 0 | F64: 0 | G64: 0
C65: =IF(ISERROR(VLOOKUP(D65,'Elenco Atleti'!A:A,1,0)),+C64,+C64+1) -> 54 | D65: Cipolla Giovanni | E65: 0 | F65: 0 | G65: 0
C66: =IF(ISERROR(VLOOKUP(D66,'Elenco Atleti'!A:A,1,0)),+C65,+C65+1) -> 55 | D66: Balzarotti Paolo | E66: 0 | F66: 0 | G66: 0
C67: =IF(ISERROR(VLOOKUP(D67,'Elenco Atleti'!A:A,1,0)),+C66,+C66+1) -> 56 | D67: Coppola Matteo | E67: 0 | F67: 0 | G67: 0
C68: =IF(ISERROR(VLOOKUP(D68,'Elenco Atleti'!A:A,1,0)),+C67,+C67+1) -> 57 | D68: Ceglia Roberto | E68: 0 | F68: 0 | G68: 0
C69: =IF(ISERROR(VLOOKUP(D69,'Elenco Atleti'!A:A,1,0)),+C68,+C68+1) -> 58 | D69: Cremona Andrea | E69: 0 | F69: 0 | G69: 0
C70: =IF(ISERROR(VLOOKUP(D70,'Elenco Atleti'!A:A,1,0)),+C69,+C69+1) -> 59 | D70: Ivanov Davide | E70: 0 | F70: 0 | G70: 0
C71: =IF(ISERROR(VLOOKUP(D71,'Elenco Atleti'!A:A,1,0)),+C70,+C70+1) -> 60 | D71: Dan Fabrizio | E71: 0 | F71: 0 | G71: 0
C72: =IF(ISERROR(VLOOKUP(D72,'Elenco Atleti'!A:A,1,0)),+C71,+C71+1) -> 61 | D72: Puppi Alessandro | E72: 0 | F72: 0 | G72: 0
C73: =IF(ISERROR(VLOOKUP(D73,'Elenco Atleti'!A:A,1,0)),+C72,+C72+1) -> 62 | D73: D'Andrea Federico | E73: 0 | F73: 0 | G73: 0
C74: =IF(ISERROR(VLOOKUP(D74,'Elenco Atleti'!A:A,1,0)),+C73,+C73+1) -> 63 | D74: Sala Paolo | E74: 0 | F74: 0 | G74: 0
C75: =IF(ISERROR(VLOOKUP(D75,'Elenco Atleti'!A:A,1,0)),+C74,+C74+1) -> 64 | D75: D'Arrigo Valentina | E75: 0 | F75: 0 | G75: 0
C76: =IF(ISERROR(VLOOKUP(D76,'Elenco Atleti'!A:A,1,0)),+C75,+C75+1) -> 65 | D76: Strada Paola | E76: 0 | F76: 0 | G76: 0
C77: =IF(ISERROR(VLOOKUP(D77,'Elenco Atleti'!A:A,1,0)),+C76,+C76+1) -> 66 | D77: Del Gaudio Giuseppe | E77: 0 | F77: 0 | G77: 0
C78: =IF(ISERROR(VLOOKUP(D78,'Elenco Atleti'!A:A,1,0)),+C77,+C77+1) -> 67 | D78: Villa Maria Rosa | E78: 0 | F78: 0 | G78: 0
C79: =IF(ISERROR(VLOOKUP(D79,'Elenco Atleti'!A:A,1,0)),+C78,+C78+1) -> 68 | D79: Derlino Paola | E79: 0 | F79: 0 | G79: 0
C80: =IF(ISERROR(VLOOKUP(D80,'Elenco Atleti'!A:A,1,0)),+C79,+C79+1) -> 69 | D80: Colombo Laura | E80: 0 | F80: 0 | G80: 0
C81: =IF(ISERROR(VLOOKUP(D81,'Elenco Atleti'!A:A,1,0)),+C80,+C80+1) -> 70 | D81: Bosco Franca | E81: 0 | F81: 0 | G81: 0
C82: =IF(ISERROR(VLOOKUP(D82,'Elenco Atleti'!A:A,1,0)),+C81,+C81+1) -> 71 | D82: Pelaia Cosimo | E82: 0 | F82: 0 | G82: 0
C83: =IF(ISERROR(VLOOKUP(D83,'Elenco Atleti'!A:A,1,0)),+C82,+C82+1) -> 72 | D83: Brancati Daniele | E83: 0 | F83: 0 | G83: 0
C84: =IF(ISERROR(VLOOKUP(D84,'Elenco Atleti'!A:A,1,0)),+C83,+C83+1) -> 73 | D84: Gobbo Mattia | E84: 0 | F84: 0 | G84: 0
C85: =IF(ISERROR(VLOOKUP(D85,'Elenco Atleti'!A:A,1,0)),+C84,+C84+1) -> 74 | D85: Falco Mauro | E85: 0 | F85: 0 | G85: 0
C86: =IF(ISERROR(VLOOKUP(D86,'Elenco Atleti'!A:A,1,0)),+C85,+C85+1) -> 75 | D86: Ohazuruike Nnawuihe Luca | E86: 0 | F86: 0 | G86: 0
C87: =IF(ISERROR(VLOOKUP(D87,'Elenco Atleti'!A:A,1,0)),+C86,+C86+1) -> 76 | D87: Farci Giuseppe | E87: 0 | F87: 0 | G87: 0
C88: =IF(ISERROR(VLOOKUP(D88,'Elenco Atleti'!A:A,1,0)),+C87,+C87+1) -> 77 | D88: Pieri Silvia | E88: 0 | F88: 0 | G88: 0
C89: =IF(ISERROR(VLOOKUP(D89,'Elenco Atleti'!A:A,1,0)),+C88,+C88+1) -> 78 | D89: Pintus Patrizio | E89: 0 | F89: 0 | G89: 0
C90: =IF(ISERROR(VLOOKUP(D90,'Elenco Atleti'!A:A,1,0)),+C89,+C89+1) -> 79 | D90: Piuri Fabio | E90: 0 | F90: 0 | G90: 0
C91: =IF(ISERROR(VLOOKUP(D91,'Elenco Atleti'!A:A,1,0)),+C90,+C90+1) -> 80 | D91: Polidori Vidal Giovanni | E91: 0 | F91: 0 | G91: 0
C92: =IF(ISERROR(VLOOKUP(D92,'Elenco Atleti'!A:A,1,0)),+C91,+C91+1) -> 81 | D92: Ferrara Silvia | E92: 0 | F92: 0 | G92: 0
C93: =IF(ISERROR(VLOOKUP(D93,'Elenco Atleti'!A:A,1,0)),+C92,+C92+1) -> 82 | D93: Raimondi Marco | E93: 0 | F93: 0 | G93: 0
C94: =IF(ISERROR(VLOOKUP(D94,'Elenco Atleti'!A:A,1,0)),+C93,+C93+1) -> 83 | D94: Finotto Francesco | E94: 0 | F94: 0 | G94: 0
C95: =IF(ISERROR(VLOOKUP(D95,'Elenco Atleti'!A:A,1,0)),+C94,+C94+1) -> 84 | D95: Rossini Alessandro | E95: 0 | F95: 0 | G95: 0
C96: =IF(ISERROR(VLOOKUP(D96,'Elenco Atleti'!A:A,1,0)),+C95,+C95+1) -> 85 | D96: Beretta Alberto | E96: 0 | F96: 0 | G96: 0
C97: =IF(ISERROR(VLOOKUP(D97,'Elenco Atleti'!A:A,1,0)),+C96,+C96+1) -> 86 | D97: Sambrotta Ovidio | E97: 0 | F97: 0 | G97: 0
C98: =IF(ISERROR(VLOOKUP(D98,'Elenco Atleti'!A:A,1,0)),+C97,+C97+1) -> 87 | D98: Fisicaro Giuseppe | E98: 0 | F98: 0 | G98: 0
C99: =IF(ISERROR(VLOOKUP(D99,'Elenco Atleti'!A:A,1,0)),+C98,+C98+1) -> 88 | D99: Settembrini Gemma | E99: 0 | F99: 0 | G99: 0
C100: =IF(ISERROR(VLOOKUP(D100,'Elenco Atleti'!A:A,1,0)),+C99,+C99+1) -> 89 | D100: Cipriano Antonio | E100: 0 | F100: 0 | G100: 0
C101: =IF(ISERROR(VLOOKUP(D101,'Elenco Atleti'!A:A,1,0)),+C100,+C100+1) -> 90 | D101: Antonini Marco | E101: 0 | F101: 0 | G101: 0
C102: =IF(ISERROR(VLOOKUP(D102,'Elenco Atleti'!A:A,1,0)),+C101,+C101+1) -> 91 | D102: Franchi Raffaella | E102: 0 | F102: 0 | G102: 0
C103: =IF(ISERROR(VLOOKUP(D103,'Elenco Atleti'!A:A,1,0)),+C102,+C102+1) -> 92 | D103: Vago Paola | E103: 0 | F103: 0 | G103: 0
C104: =IF(ISERROR(VLOOKUP(D104,'Elenco Atleti'!A:A,1,0)),+C103,+C103+1) -> 93 | D104: Frascadore Angelo | E104: 0 | F104: 0 | G104: 0
C105: =IF(ISERROR(VLOOKUP(D105,'Elenco Atleti'!A:A,1,0)),+C104,+C104+1) -> 94 | D105: Arcerito Lorenzo | E105: 0 | F105: 0 | G105: 0
C106: =IF(ISERROR(VLOOKUP(D106,'Elenco Atleti'!A:A,1,0)),+C105,+C105+1) -> 95 | D106: Agnelli Fabrizio | E106: 0 | F106: 0 | G106: 0
C107: =IF(ISERROR(VLOOKUP(D107,'Elenco Atleti'!A:A,1,0)),+C106,+C106+1) -> 96 | D107: Zamagna Augusto | E107: 0 | F107: 0 | G107: 0
C108: =IF(ISERROR(VLOOKUP(D108,'Elenco Atleti'!A:A,1,0)),+C107,+C107+1) -> 97 | D108: Fusi Cesare | E108: 0 | F108: 0 | G108: 0
C109: =IF(ISERROR(VLOOKUP(D109,'Elenco Atleti'!A:A,1,0)),+C108,+C108+1) -> 98 | D109: Croci Stefano | E109: 0 | F109: 0 | G109: 0
C110: =IF(ISERROR(VLOOKUP(D110,'Elenco Atleti'!A:A,1,0)),+C109,+C109+1) -> 99 | D110: Bernasconi Carlo | E110: 0 | F110: 0 | G110: 0
C111: =IF(ISERROR(VLOOKUP(D111,'Elenco Atleti'!A:A,1,0)),+C110,+C110+1) -> 100 | D111: Cattaneo Fabio | E111: 0 | F111: 0 | G111: 0
C112: =IF(ISERROR(VLOOKUP(D112,'Elenco Atleti'!A:A,1,0)),+C111,+C111+1) -> 101 | D112: Galli Andrea | E112: 0 | F112: 0 | G112: 0
C113: =IF(ISERROR(VLOOKUP(D113,'Elenco Atleti'!A:A,1,0)),+C112,+C112+1) -> 102 | D113: Accardi Angela | E113: 0 | F113: 0 | G113: 0
C114: =IF(ISERROR(VLOOKUP(D114,'Elenco Atleti'!A:A,1,0)),+C113,+C113+1) -> 103 | D114: Gallinaro Maria Laura | E114: 0 | F114: 0 | G114: 0
C115: =IF(ISERROR(VLOOKUP(D115,'Elenco Atleti'!A:A,1,0)),+C114,+C114+1) -> 104 | D115: Cattaneo Valerio | E115: 0 | F115: 0 | G115: 0
C116: =IF(ISERROR(VLOOKUP(D116,'Elenco Atleti'!A:A,1,0)),+C115,+C115+1) -> 105 | D116: Gambirasi Stefano | E116: 0 | F116: 0 | G116: 0
C117: =IF(ISERROR(VLOOKUP(D117,'Elenco Atleti'!A:A,1,0)),+C116,+C116+1) -> 106 | D117: Paglialonga Daniele | E117: 0 | F117: 0 | G117: 0
C118: =IF(ISERROR(VLOOKUP(D118,'Elenco Atleti'!A:A,1,0)),+C117,+C117+1) -> 107 | D118: Gigante Rocco | E118: 0 | F118: 0 | G118: 0
C119: =IF(ISERROR(VLOOKUP(D119,'Elenco Atleti'!A:A,1,0)),+C118,+C118+1) -> 108 | D119: Virlan Liliana | E119: 0 | F119: 0 | G119: 0
C120: =IF(ISERROR(VLOOKUP(D120,'Elenco Atleti'!A:A,1,0)),+C119,+C119+1) -> 109 | D120: Giudici Alberto | E120: 0 | F120: 0 | G120: 0
C121: =IF(ISERROR(VLOOKUP(D121,'Elenco Atleti'!A:A,1,0)),+C120,+C120+1) -> 110 | D121: Decima Irene | E121: 0 | F121: 0 | G121: 0
C122: =IF(ISERROR(VLOOKUP(D122,'Elenco Atleti'!A:A,1,0)),+C121,+C121+1) -> 111 | D122: Khoujji Bouchra | E122: 0 | F122: 0 | G122: 0
C123: =IF(ISERROR(VLOOKUP(D123,'Elenco Atleti'!A:A,1,0)),+C122,+C122+1) -> 112 | D123: Pieri Ilaria | E123: 0 | F123: 0 | G123: 0
C124: =IF(ISERROR(VLOOKUP(D124,'Elenco Atleti'!A:A,1,0)),+C123,+C123+1) -> 113 | D124: La Duca Debora | E124: 0 | F124: 0 | G124: 0
C125: =IF(ISERROR(VLOOKUP(D125,'Elenco Atleti'!A:A,1,0)),+C124,+C124+1) -> 114 | D125: Cecchini Claudia | E125: 0 | F125: 0 | G125: 0
C126: =IF(ISERROR(VLOOKUP(D126,'Elenco Atleti'!A:A,1,0)),+C125,+C125+1) -> 115 | D126: Lapa Orihuela Hubert | E126: 0 | F126: 0 | G126: 0
C127: =IF(ISERROR(VLOOKUP(D127,'Elenco Atleti'!A:A,1,0)),+C126,+C126+1) -> 116 | D127: Pittoni Cristian | E127: 0 | F127: 0 | G127: 0
C128: =IF(ISERROR(VLOOKUP(D128,'Elenco Atleti'!A:A,1,0)),+C127,+C127+1) -> 117 | D128: Legnani Katia | E128: 0 | F128: 0 | G128: 0
C129: =IF(ISERROR(VLOOKUP(D129,'Elenco Atleti'!A:A,1,0)),+C128,+C128+1) -> 118 | D129: Cappelletti Marco | E129: 0 | F129: 0 | G129: 0
C130: =IF(ISERROR(VLOOKUP(D130,'Elenco Atleti'!A:A,1,0)),+C129,+C129+1) -> 119 | D130: Lettieri Umberto | E130: 0 | F130: 0 | G130: 0
C131: =IF(ISERROR(VLOOKUP(D131,'Elenco Atleti'!A:A,1,0)),+C130,+C130+1) -> 120 | D131: Ambrosi Stefano | E131: 0 | F131: 0 | G131: 0
C132: =IF(ISERROR(VLOOKUP(D132,'Elenco Atleti'!A:A,1,0)),+C131,+C131+1) -> 121 | D132: Licata Francesco | E132: 0 | F132: 0 | G132: 0
C133: =IF(ISERROR(VLOOKUP(D133,'Elenco Atleti'!A:A,1,0)),+C132,+C132+1) -> 122 | D133: Raimondi Elena | E133: 0 | F133: 0 | G133: 0
C134: =IF(ISERROR(VLOOKUP(D134,'Elenco Atleti'!A:A,1,0)),+C133,+C133+1) -> 123 | D134: Bruni Davide | E134: 0 | F134: 0 | G134: 0
C135: =IF(ISERROR(VLOOKUP(D135,'Elenco Atleti'!A:A,1,0)),+C134,+C134+1) -> 124 | D135: Romani Federico | E135: 0 | F135: 0 | G135: 0
C136: =IF(ISERROR(VLOOKUP(D136,'Elenco Atleti'!A:A,1,0)),+C135,+C135+1) -> 125 | D136: Magnoni Marco | E136: 0 | F136: 0 | G136: 0
C137: =IF(ISERROR(VLOOKUP(D137,'Elenco Atleti'!A:A,1,0)),+C136,+C136+1) -> 126 | D137: Rosiello Maria Cristina | E137: 0 | F137: 0 | G137: 0
C138: =IF(ISERROR(VLOOKUP(D138,'Elenco Atleti'!A:A,1,0)),+C137,+C137+1) -> 127 | D138: Mandelli Daniela | E138: 0 | F138: 0 | G138: 0
C139: =IF(ISERROR(VLOOKUP(D139,'Elenco Atleti'!A:A,1,0)),+C138,+C138+1) -> 128 | D139: Sala Fabrizio | E139: 0 | F139: 0 | G139: 0
C140: =IF(ISERROR(VLOOKUP(D140,'Elenco Atleti'!A:A,1,0)),+C139,+C139+1) -> 129 | D140: Mantegazza Francesco | E140: 0 | F140: 0 | G140: 0
C141: =IF(ISERROR(VLOOKUP(D141,'Elenco Atleti'!A:A,1,0)),+C140,+C140+1) -> 130 | D141: Salvaggio Fabio | E141: 0 | F141: 0 | G141: 0
C142: =IF(ISERROR(VLOOKUP(D142,'Elenco Atleti'!A:A,1,0)),+C141,+C141+1) -> 131 | D142: Marcomin Lorenzo | E142: 0 | F142: 0 | G142: 0
C143: =IF(ISERROR(VLOOKUP(D143,'Elenco Atleti'!A:A,1,0)),+C142,+C142+1) -> 132 | D143: Antonietti Daris | E143: 0 | F143: 0 | G143: 0
C144: =IF(ISERROR(VLOOKUP(D144,'Elenco Atleti'!A:A,1,0)),+C143,+C143+1) -> 133 | D144: Martinelli Luigi | E144: 0 | F144: 0 | G144: 0
C145: =IF(ISERROR(VLOOKUP(D145,'Elenco Atleti'!A:A,1,0)),+C144,+C144+1) -> 134 | D145: Cassinari Roberto | E145: 0 | F145: 0 | G145: 0
C146: =IF(ISERROR(VLOOKUP(D146,'Elenco Atleti'!A:A,1,0)),+C145,+C145+1) -> 135 | D146: Calcatelli Francesco | E146: 0 | F146: 0 | G146: 0
C147: =IF(ISERROR(VLOOKUP(D147,'Elenco Atleti'!A:A,1,0)),+C146,+C146+1) -> 136 | D147: Sola Fabio | E147: 0 | F147: 0 | G147: 0
C148: =IF(ISERROR(VLOOKUP(D148,'Elenco Atleti'!A:A,1,0)),+C147,+C147+1) -> 137 | D148: Matranga Matteo | E148: 0 | F148: 0 | G148: 0
C149: =IF(ISERROR(VLOOKUP(D149,'Elenco Atleti'!A:A,1,0)),+C148,+C148+1) -> 138 | D149: Tagliabue Gaia | E149: 0 | F149: 0 | G149: 0
C150: =IF(ISERROR(VLOOKUP(D150,'Elenco Atleti'!A:A,1,0)),+C149,+C149+1) -> 139 | D150: Mazzocchi Alice | E150: 0 | F150: 0 | G150: 0
C151: =IF(ISERROR(VLOOKUP(D151,'Elenco Atleti'!A:A,1,0)),+C150,+C150+1) -> 140 | D151: Terranova Giulia | E151: 0 | F151: 0 | G151: 0
C152: =IF(ISERROR(VLOOKUP(D152,'Elenco Atleti'!A:A,1,0)),+C151,+C151+1) -> 141 | D152: Mazzocchi Claudia | E152: 0 | F152: 0 | G152: 0
C153: =IF(ISERROR(VLOOKUP(D153,'Elenco Atleti'!A:A,1,0)),+C152,+C152+1) -> 142 | D153: Urso Vincenzo | E153: 0 | F153: 0 | G153: 0
C154: =IF(ISERROR(VLOOKUP(D154,'Elenco Atleti'!A:A,1,0)),+C153,+C153+1) -> 143 | D154: Medina Adrian | E154: 0 | F154: 0 | G154: 0
C155: =IF(ISERROR(VLOOKUP(D155,'Elenco Atleti'!A:A,1,0)),+C154,+C154+1) -> 144 | D155: Vignoni Chiara | E155: 0 | F155: 0 | G155: 0
C156: =IF(ISERROR(VLOOKUP(D156,'Elenco Atleti'!A:A,1,0)),+C155,+C155+1) -> 145 | D156: Abeni Stefano | E156: 0 | F156: 0 | G156: 0
C157: =IF(ISERROR(VLOOKUP(D157,'Elenco Atleti'!A:A,1,0)),+C156,+C156+1) -> 146 | D157: Castelli Giulia | E157: 0 | F157: 0 | G157: 0
C158: =IF(ISERROR(VLOOKUP(D158,'Elenco Atleti'!A:A,1,0)),+C157,+C157+1) -> 147 | D158: Melis Sofia | E158: 0 | F158: 0 | G158: 0
C159: =IF(ISERROR(VLOOKUP(D159,'Elenco Atleti'!A:A,1,0)),+C158,+C158+1) -> 148 | D159: Vitiello Raffaela | E159: 0 | F159: 0 | G159: 0
C160: =IF(ISERROR(VLOOKUP(D160,'Elenco Atleti'!A:A,1,0)),+C159,+C159+1) -> 149 | D160: Merli Giuseppe | E160: 0 | F160: 0 | G160: 0
C161: =IF(ISERROR(VLOOKUP(D161,'Elenco Atleti'!A:A,1,0)),+C160,+C160+1) -> 150 | D161: Barzaghi Marco | E161: 0 | F161: 0 | G161: 0
C162: =IF(ISERROR(VLOOKUP(D162,'Elenco Atleti'!A:A,1,0)),+C161,+C161+1) -> 151 | D162: Minotti Vanila | E162: 0 | F162: 0 | G162: 0
C163: =IF(ISERROR(VLOOKUP(D163,'Elenco Atleti'!A:A,1,0)),+C162,+C162+1) -> 152 | D163: Zanardi Paolo | E163: 0 | F163: 0 | G163: 0
C164: =IF(ISERROR(VLOOKUP(D164,'Elenco Atleti'!A:A,1,0)),+C163,+C163+1) -> 153 | D164: Zoni Maura | E164: 0 | F164: 0 | G164: 0
C165: =IF(ISERROR(VLOOKUP(D165,'Elenco Atleti'!A:A,1,0)),+C164,+C164+1) -> 154 | D165: Pantano Enrico | E165: 0 | F165: 0 | G165: 0
C166: =IF(ISERROR(VLOOKUP(D166,'Elenco Atleti'!A:A,1,0)),+C165,+C165+1) -> 155 | D166: Azzani Tiziana | E166: 0 | F166: 0 | G166: 0
C167: =IF(ISERROR(VLOOKUP(D167,'Elenco Atleti'!A:A,1,0)),+C166,+C166+1) -> 156 | D167: Re Ferrè Piero | E167: 0 | F167: 0 | G167: 0
C168: =IF(ISERROR(VLOOKUP(D168,'Elenco Atleti'!A:A,1,0)),+C167,+C167+1) -> 157 | D168: Lamberti Ottavia | E168: 0 | F168: 0 | G168: 0
C169: =IF(ISERROR(VLOOKUP(D169,'Elenco Atleti'!A:A,1,0)),+C168,+C168+1) -> 158 | D169: Bellitti Santo | E169: 0 | F169: 0 | G169: 0
C170: =IF(ISERROR(VLOOKUP(D170,'Elenco Atleti'!A:A,1,0)),+C169,+C169+1) -> 159 | D170: Bianchessi Maurizio | E170: 0 | F170: 0 | G170: 0
C171: =IF(ISERROR(VLOOKUP(D171,'Elenco Atleti'!A:A,1,0)),+C170,+C170+1) -> 160 | D171: Monti Franco | E171: 0 | F171: 0 | G171: 0
C172: =IF(ISERROR(VLOOKUP(D172,'Elenco Atleti'!A:A,1,0)),+C171,+C171+1) -> 161 | D172: Legnani Silvia | E172: 0 | F172: 0 | G172: 0
C173: =IF(ISERROR(VLOOKUP(D173,'Elenco Atleti'!A:A,1,0)),+C172,+C172+1) -> 162 | D173: Clerici Lorenzo | E173: 0 | F173: 0 | G173: 0
C174: =IF(ISERROR(VLOOKUP(D174,'Elenco Atleti'!A:A,1,0)),+C173,+C173+1) -> 163 | D174: Cattaneo Marco | E174: 0 | F174: 0 | G174: 0
C175: =IF(ISERROR(VLOOKUP(D175,'Elenco Atleti'!A:A,1,0)),+C174,+C174+1) -> 164 | D175: Mosca Omar | E175: 0 | F175: 0 | G175: 0
C176: =IF(ISERROR(VLOOKUP(D176,'Elenco Atleti'!A:A,1,0)),+C175,+C175+1) -> 165 | D176: Agati Silvana | E176: 0 | F176: 0 | G176: 0
C177: =IF(ISERROR(VLOOKUP(D177,'Elenco Atleti'!A:A,1,0)),+C176,+C176+1) -> 166 | D177: Musti Simona | E177: 0 | F177: 0 | G177: 0
C178: =IF(ISERROR(VLOOKUP(D178,'Elenco Atleti'!A:A,1,0)),+C177,+C177+1) -> 167 | D178: Chiodini Luca | E178: 0 | F178: 0 | G178: 0
C179: =IF(ISERROR(VLOOKUP(D179,'Elenco Atleti'!A:A,1,0)),+C178,+C178+1) -> 168 | D179: Natale Lucia | E179: 0 | F179: 0 | G179: 0
C180: =IF(ISERROR(VLOOKUP(D180,'Elenco Atleti'!A:A,1,0)),+C179,+C179+1) -> 169 | D180: Federico Simone | E180: 0 | F180: 0 | G180: 0
C181: =IF(ISERROR(VLOOKUP(D181,'Elenco Atleti'!A:A,1,0)),+C180,+C180+1) -> 170 | D181: Oliva Alberto | E181: 0 | F181: 0 | G181: 0
C182: =IF(ISERROR(VLOOKUP(D182,'Elenco Atleti'!A:A,1,0)),+C181,+C181+1) -> 171 | D182: Guzzetti Luigi | E182: 0 | F182: 0 | G182: 0
C183: =IF(ISERROR(VLOOKUP(D183,'Elenco Atleti'!A:A,1,0)),+C182,+C182+1) -> 172 | D183: Orsini Graziella | E183: 0 | F183: 0 | G183: 0
C184: =IF(ISERROR(VLOOKUP(D184,'Elenco Atleti'!A:A,1,0)),+C183,+C183+1) -> 173 | D184: Scubla Andrea | E184: 0 | F184: 0 | G184: 0
C185: =IF(ISERROR(VLOOKUP(D185,'Elenco Atleti'!A:A,1,0)),+C184,+C184+1) -> 174 | D185: Palermo Silvia | E185: 0 | F185: 0 | G185: 0
C186: =IF(ISERROR(VLOOKUP(D186,'Elenco Atleti'!A:A,1,0)),+C185,+C185+1) -> 175 | D186: Vergottini Giada | E186: 0 | F186: 0 | G186: 0
C187: =IF(ISERROR(VLOOKUP(D187,'Elenco Atleti'!A:A,1,0)),+C186,+C186+1) -> 176 | D187: Moraes Pinto Michelle | E187: 0 | F187: 0 | G187: 0
C188: =IF(ISERROR(VLOOKUP(D188,'Elenco Atleti'!A:A,1,0)),+C187,+C187+1) -> 177 | D188: Boarin Daniele | E188: 0 | F188: 0 | G188: 0
C189: =IF(ISERROR(VLOOKUP(D189,'Elenco Atleti'!A:A,1,0)),+C188,+C188+1) -> 178 | D189: Piazza Simone | E189: 0 | F189: 0 | G189: 0
C190: =IF(ISERROR(VLOOKUP(D190,'Elenco Atleti'!A:A,1,0)),+C189,+C189+1) -> 179 | D190: Benz Loris | E190: 0 | F190: 0 | G190: 0
C191: =IF(ISERROR(VLOOKUP(D191,'Elenco Atleti'!A:A,1,0)),+C190,+C190+1) -> 180 | D191: Pavan Stefania | E191: 0 | F191: 0 | G191: 0
C192: =IF(ISERROR(VLOOKUP(D192,'Elenco Atleti'!A:A,1,0)),+C191,+C191+1) -> 181 | D192: Galli Matteo | E192: 0 | F192: 0 | G192: 0
C193: =IF(ISERROR(VLOOKUP(D193,'Elenco Atleti'!A:A,1,0)),+C192,+C192+1) -> 182 | D193: Bordoni Luca | E193: 0 | F193: 0 | G193: 0
C194: =IF(ISERROR(VLOOKUP(D194,'Elenco Atleti'!A:A,1,0)),+C193,+C193+1) -> 183 | D194: Alario Francesco | E194: 0 | F194: 0 | G194: 0
C195: =IF(ISERROR(VLOOKUP(D195,'Elenco Atleti'!A:A,1,0)),+C194,+C194+1) -> 184 | D195: Algisi Nadia | E195: 0 | F195: 0 | G195: 0
C196: =IF(ISERROR(VLOOKUP(D196,'Elenco Atleti'!A:A,1,0)),+C195,+C195+1) -> 185 | D196: Parravicini Andrea | E196: 0 | F196: 0 | G196: 0
C197: =IF(ISERROR(VLOOKUP(D197,'Elenco Atleti'!A:A,1,0)),+C196,+C196+1) -> 186 | D197: Bollino Francesco | E197: 0 | F197: 0 | G197: 0
C198: =IF(ISERROR(VLOOKUP(D198,'Elenco Atleti'!A:A,1,0)),+C197,+C197+1) -> 187 | D198: Patrese Benedetta | E198: 0 | F198: 0 | G198: 0
C199: =IF(ISERROR(VLOOKUP(D199,'Elenco Atleti'!A:A,1,0)),+C198,+C198+1) -> 188 | D199: Montani Fabio | E199: 0 | F199: 0 | G199: 0
C200: =IF(ISERROR(VLOOKUP(D200,'Elenco Atleti'!A:A,1,0)),+C199,+C199+1) -> 188
C201: =IF(ISERROR(VLOOKUP(D201,'Elenco Atleti'!A:A,1,0)),+C200,+C200+1) -> 188
C202: =IF(ISERROR(VLOOKUP(D202,'Elenco Atleti'!A:A,1,0)),+C201,+C201+1) -> 188
C203: =IF(ISERROR(VLOOKUP(D203,'Elenco Atleti'!A:A,1,0)),+C202,+C202+1) -> 188
C204: =IF(ISERROR(VLOOKUP(D204,'Elenco Atleti'!A:A,1,0)),+C203,+C203+1) -> 188
C205: =IF(ISERROR(VLOOKUP(D205,'Elenco Atleti'!A:A,1,0)),+C204,+C204+1) -> 188
C206: =IF(ISERROR(VLOOKUP(D206,'Elenco Atleti'!A:A,1,0)),+C205,+C205+1) -> 188
C207: =IF(ISERROR(VLOOKUP(D207,'Elenco Atleti'!A:A,1,0)),+C206,+C206+1) -> 188
C208: =IF(ISERROR(VLOOKUP(D208,'Elenco Atleti'!A:A,1,0)),+C207,+C207+1) -> 188
... 9969 more rows

Sheet Elenco Gare
A9: DISTANZA km | B9: (Tutto)
A11: Data - Gara | B11: Crono
A12: 2024
A13: 2024-10-13
A14: Chicago Marathon
A15: Fusetti Martina | B15: 0.186412037
A16: Fittavolini Andrea | B16: 0.1529282407
A17: Bianchessi Maurizio | B17: 0.2359259259
A18: Deejay Ten
A19: Valentini Lorenzo | B19: 0.0362962963
A20: Rossetti Greco Maura | B20: 0.03628472222
A21: Pelaia Cosimo | B21: 0.04384259259
A22: Khoujji Bouchra | B22: 0.04040509259
A23: Abeni Stefano | B23: 0.03295138889
A24: Pisa Half Marathon
A25: Bruni Davide | B25: 0.06475694444
A26: Varese City Run Half Marathon
A27: Pantano Enrico | B27: 0.07957175926
A28: Licata Francesco | B28: 0.07481481481
A29: Colombo Lorenzo | B29: 0.06581018519
A30: 12^ UTLO Ultra Trail del Lago d'Orta - disl. +980 mt
A31: Sambrotta Paolo | B31: 0.1643171296
A32: Pozzi Lia | B32: 0.09019675926
A33: Castiglioni Cristina | B33: 0.1644097222
A34: Una Corsa da Re 30km
A35: Pigozzi Marta | B35: 0.1316435185
A36: Copelli Mauro | B36: 0.1316203704
A37: Neapolis Half Marathon
A38: Dan Fabrizio | B38: 0.06690972222
A39: VareseTEN
A40: Scubla Andrea | B40: 0.03234953704
A41: Scapecchi Luca | B41: 0.02571759259
A42: Gobbo Mattia | B42: 0.02717592593
A43: io21zero97
A44: Rossini Alessandro | B44: 0.07890046296
A45: Budapest Marathon
A46: Urso Vincenzo | B46: 0.1454282407
A47: Deejay Five
A48: Derlino Paola | B48: 0.03337962963
A49: 2024-10-12
A50: 12^ UTLO Ultra Trail del Lago d'Orta - disl. +2.860 mt
A51: Zaffaroni Stefano | B51: 0.2834027778
A52: Villa Simone | B52: 0.3070717593
A53: 2024-10-06
A54: 3^ M21 Meda Urban Race
A55: Urso Vincenzo | B55: 0.06061342593
A56: Monticelli Luca | B56: 0.05652777778
A57: Mantegazza Francesco | B57: 0.06271990741
A58: Lamberti Ottavia | B58: 0.06921296296
A59: Gambirasi Stefano | B59: 0.06590277778
A60: Dan Fabrizio | B60: 0.06822916667
A61: Cattaneo Fabio | B61: 0.05693287037
A62: Abeni Stefano | B62: 0.06980324074
A63: Cardiff Half Marathon
A64: Settembrini Gemma | B64: 0.08626157407
A65: Gigante Rocco | B65: 0.08621527778
A66: 6^ TdC corto Trail delle Colline - disl. +800 mt
A67: Passaro Mattia | B67: 0.08344907407
A68: 2024-09-29
A69: 14^ Salomon Running Milano Top Cup 21km
A70: Zanardi Paolo | B70: 0.0709837963
A71: Romani Federico | B71: 0.08315972222
A72: Pavan Stefania | B72: 0.09090277778
A73: Pantano Enrico | B73: 0.08479166667
A74: Dan Fabrizio | B74: 0.06961805556
A75: Bernasconi Carlo | B75: 0.06960648148
A76: Antonietti Daris | B76: 0.0908912037
A77: Abeni Stefano | B77: 0.07722222222
A78: 11^ StraSaronno
A79: Zoni Maura | B79: 0.07462962963
A80: Vignoni Chiara | B80: 0.0537037037
A81: Valentini Lorenzo | B81: 0.02884259259
A82: Vago Paola | B82: 0.04116898148
A83: Settembrini Gemma | B83: 0.0422337963
A84: Sciarappa Franco | B84: 0.0333912037
A85: Sambrotta Paolo | B85: 0.0368287037
A86: Sambrotta Ovidio | B86: 0.0462962963
A87: Sala Fabrizio | B87: 0.0458912037
A88: Rossini Alessandro | B88: 0.03722222222
A89: Rossetti Greco Maura | B89: 0.03709490741
A90: Rosiello Maria Cristina | B90: 0.04234953704
A91: Roncoroni Luisella | B91: 0.0409375
A92: Re Ferrè Piero | B92: 0.02837962963
A93: Puppi Alessandro | B93: 0.03506944444
A94: Podda Laura | B94: 0.03790509259
A95: Piuri Fabio | B95: 0.04590277778
A96: Piazza Simone | B96: 0.0331712963
A97: Pelaia Cosimo | B97: 0.04210648148
A98: Passaro Mattia | B98: 0.0325462963
A99: Parravicini Andrea | B99: 0.02956018519
A100: Palermo Silvia | B100: 0.04134259259
A101: Oliva Alberto | B101: 0.03481481481
A102: Musti Simona | B102: 0.0512962963
A103: Mosca Omar | B103: 0.03032407407
A104: Moraes Pinto Michelle | B104: 0.03947916667
A105: Monti Franco | B105: 0.03550925926
A106: Mitrano Fabio | B106: 0.04064814815
A107: Merli Giuseppe | B107: 0.0378125
A108: Medina Adrian | B108: 0.03627314815
A109: Matera Vittorio | B109: 0.0409837963
A110: Marcomin Lorenzo | B110: 0.03353009259
A111: Magnoni Marco | B111: 0.03394675926
A112: Legnani Katia | B112: 0.03924768519
A113: Lapa Orihuela Hubert | B113: 0.03075231481
A114: La Duca Debora | B114: 0.04458333333
A115: Khoujji Bouchra | B115: 0.04239583333
A116: Ivanov Davide | B116: 0.0440625
A117: Guzzetti Luigi | B117: 0.06087962963
A118: Gobbo Mattia | B118: 0.02893518519
A119: Giudici Alberto | B119: 0.04134259259
A120: Gigante Rocco | B120: 0.0421412037
A121: Gallinaro Maria Laura | B121: 0.03699074074
A122: Galli Matteo | B122: 0.03936342593
A123: Frascadore Angelo | B123: 0.0453125
A124: Fisicaro Giuseppe | B124: 0.03083333333
A125: Fiorio Bruno | B125: 0.03582175926
A126: Finotto Francesco | B126: 0.03806712963
A127: Decima Irene | B127: 0.03980324074
A128: Damiani Emanuele | B128: 0.03997685185
A129: Coppola Matteo | B129: 0.03300925926
A130: Colpani Marco | B130: 0.04689814815
A131: Chiodini Luca | B131: 0.03282407407
A132: Carlomagno Marcello | B132: 0.03305555556
A133: Bosco Franca | B133: 0.04829861111
A134: Bollino Francesco | B134: 0.03364583333
A135: Beretta Alberto | B135: 0.03207175926
A136: Benz Loris | B136: 0.04239583333
A137: Azzani Tiziana | B137: 0.04125
A138: Agnelli Fabrizio | B138: 0.0302662037
A139: Agati Silvana | B139: 0.0421875
A140: 2^ River Run Valtellina
A141: Clerici Federica | B141: 0.1123842593
A142: 18^ StraLugano Half Marathon
A143: Salvaggio Fabio | B143: 0.06612268519
A144: Galli Andrea | B144: 0.08550925926
A145: 14^ Salomon Running Milano Fast Cup 15km
A146: Montani Fabio | B146: 0.05991898148
A147: 13^ La 30 Trentina
A148: Monticelli Luca | B148: 0.08543981481
A149: 2024-09-28
A150: Marathon Trail Lago di Como K21 - disl. +1.450 mt
A151: Cavalli Luigi | B151: 0.185150463
A152: 4^ UTLM Ultra Trail Lago Maggiore Scenic 35K - disl. +1.600 mt
A153: D'Antoni Vincenzo | B153: 0.2698726852
A154: 2024-09-22
A155: SdE Sky degli Eroi - disl. +1.600 mt
A156: Sciarappa Franco | B156: 0.2221990741
A157: Sambrotta Paolo | B157: 0.2717939815
A158: Bertuolo Fabio | B158: 0.2718171296
A159: 2024-09-21
A160: 14^ 10Kappa di Monza
A161: Podda Laura | B161: 0.03547453704
A162: 2024-09-15
A163: Monza21 (km 30)
A164: Zaffaroni Stefano | B164: 0.08369212963
A165: Mantegazza Francesco | B165: 0.09142361111
A166: Fittavolini Andrea | B166: 0.1047569444
A167: Dan Fabrizio | B167: 0.096875
A168: Barzaghi Marco | B168: 0.1176736111
A169: Abeni Stefano | B169: 0.1176851852
A170: Monza21
A171: Podda Laura | B171: 0.08310185185
A172: Pantano Enrico | B172: 0.07821759259
A173: Ohazuruike Nnawuihe Luca | B173: 0.08353009259
A174: 2024-09-14
A175: 50^ BDC Baceno-Devero-Crampiolo - disl. +1.240 mt
A176: Pozzi Lia | B176: 0.05907407407
A177: 2024-09-13
A178: StraLegnanese by Night
A179: Gobbo Mattia | B179: 0.01857638889
A180: Conegliano Marcello | B180: 0.02092592593
A181: 2024-09-08
A182: 51^ Sgamela'a d'Vigezz
A183: Sambrotta Paolo | B183: 0.1519097222
A184: Roncoroni Luisella | B184: 0.1212268519
A185: Romani Federico | B185: 0.1212152778
A186: Pavan Stefania | B186: 0.1345023148
A187: Minotti Vanila | B187: 0.1238194444
A188: Merli Giuseppe | B188: 0.1238078704
A189: Legnani Katia | B189: 0.1290393519
A190: Fiorio Bruno | B190: 0.1161226852
A191: Dan Fabrizio | B191: 0.1000462963
A192: Cocomazzi Graziella | B192: 0.1275462963
A193: Castiglioni Cristina | B193: 0.1519097222
A194: Calcatelli Francesco | B194: 0.1007291667
A195: Bertuolo Fabio | B195: 0.1284953704
A196: Antonietti Daris | B196: 0.1098611111
A197: Agati Silvana | B197: 0.1344907407
A198: 10K delle Groane
A199: Scubla Andrea | B199: 0.03424768519
A200: Mosca Omar | B200: 0.02783564815
A201: Gambirasi Stefano | B201: 0.03094907407
A202: Cattaneo Fabio | B202: 0.02670138889
A203: Bollino Francesco | B203: 0.03429398148
A204: Boarin Daniele | B204: 0.02952546296
A205: Ambrosi Stefano | B205: 0.02962962963
A206: 2024-09-01
A207: 10 Miglia del Castello
A208: Alario Francesco | B208: 0.06164351852
A209: 3^ Forte di Orino Trail - disl. +1.200 mt
... 14707 more rows

Sheet Elenco Atleti
A1: Atleta | B1: Tessera | C1: Sex | D1: Gap | E1: Nascita
A2: Abeni Stefano | C2: M | D2: Socio Attivo
A3: Accardi Angela | C3: F | D3: Socio Attivo
A4: Agati Silvana | C4: F | D4: Socio Attivo
A5: Agnelli Fabrizio | C5: M | D5: Socio Attivo
A6: Alario Francesco | C6: M | D6: Socio Attivo
A7: Alberio Antonio | C7: M | D7: Socio Attivo
A8: Alberio Marco | C8: M | D8: Socio Attivo
A9: Algisi Nadia | C9: F | D9: Socio Attivo
A10: Ambrosi Stefano | C10: M | D10: Socio Attivo
A11: Antonietti Daris | C11: M | D11: Socio Attivo
A12: Antonini Marco | C12: M | D12: Socio Attivo
A13: Arcerito Lorenzo | C13: M | D13: Socio Attivo
A14: Balzarotti Paolo | C14: M | D14: Socio Attivo
A15: Barzaghi Marco | C15: M | D15: Socio Attivo
A16: Bellitti Santo | C16: M | D16: Socio Attivo
A17: Benz Loris | C17: M | D17: Socio Attivo
A18: Benzi Dennis | C18: M | D18: Socio Attivo
A19: Beretta Alberto | C19: M | D19: Socio Attivo
A20: Bernareggi Nicolò | C20: M | D20: Socio Attivo
A21: Bernasconi Carlo | C21: M | D21: Socio Attivo
A22: Bertuolo Fabio | C22: M | D22: Socio Attivo
A23: Bianchessi Maurizio | C23: M | D23: Socio Attivo
A24: Bizzozero Valeria | C24: F | D24: Socio Attivo
A25: Boarin Daniele | C25: M | D25: Socio Attivo
A26: Bollino Francesco | C26: M | D26: Socio Attivo
A27: Bordoni Luca | C27: M | D27: Socio Attivo
A28: Bosco Franca | C28: F | D28: Socio Attivo
A29: Brancati Daniele | C29: M | D29: Socio Attivo
A30: Branchini Davide | C30: M | D30: Socio Attivo
A31: Branchini Massimiliano | C31: M | D31: Socio Attivo
A32: Bruni Davide | C32: M | D32: Socio Attivo
A33: Calcatelli Francesco | C33: M | D33: Socio Attivo
A34: Cappa Marchello Dario | C34: M | D34: Socio Attivo
A35: Cappelletti Marco | C35: M | D35: Socio Attivo
A36: Carlomagno Marcello | C36: M | D36: Socio Attivo
A37: Cassinari Roberto | C37: M | D37: Socio Attivo
A38: Castelli Giulia | C38: F | D38: Socio Attivo
A39: Castiglioni Cristina | C39: F | D39: Socio Attivo
A40: Cattaneo Fabio | C40: M | D40: Socio Attivo
A41: Cattaneo Marco | C41: M | D41: Socio Attivo
A42: Cattaneo Valerio | C42: M | D42: Socio Attivo
A43: Cavalli Luigi | C43: M | D43: Socio Attivo
A44: Cecchini Claudia | C44: F | D44: Socio Attivo
A45: Ceglia Roberto | C45: M | D45: Socio Attivo
A46: Ceriani Alessandro | C46: M | D46: Socio Attivo
A47: Ceriani Giovanni | C47: M | D47: Socio Attivo
A48: Cervellera Daniele | C48: M | D48: Socio Attivo
A49: Chiodini Luca | C49: M | D49: Socio Attivo
A50: Cipolla Giovanni | C50: M | D50: Socio Attivo
A51: Cipriano Antonio | C51: M | D51: Socio Attivo
A52: Clerici Federica | C52: F | D52: Socio Attivo
A53: Clerici Lorenzo | C53: M | D53: Socio Attivo
A54: Cocomazzi Graziella | C54: F | D54: Socio Attivo
A55: Colombo Andrea 2 | C55: M | D55: Socio Attivo
A56: Colombo Annalisa | C56: F | D56: Socio Attivo
A57: Colombo Laura | C57: F | D57: Socio Attivo
A58: Colombo Lorenzo | C58: M | D58: Socio Attivo
A59: Colpani Marco | C59: M | D59: Socio Attivo
A60: Conegliano Marcello | C60: M | D60: Socio Attivo
A61: Conti Enrico | C61: M | D61: Socio Attivo
A62: Copelli Mauro | C62: M | D62: Socio Attivo
A63: Coppola Matteo | C63: M | D63: Socio Attivo
A64: Cozzi Roberto | C64: M | D64: Socio Attivo
A65: Cremona Andrea | C65: M | D65: Socio Attivo
A66: Dainotti Sandro | C66: M | D66: Socio Attivo
A67: Damiani Emanuele | C67: M | D67: Socio Attivo
A68: Dan Fabrizio | C68: M | D68: Socio Attivo
A69: D'Andrea Federico | C69: M | D69: Socio Attivo
A70: D'Antoni Vincenzo | C70: M | D70: Socio Attivo
A71: D'Arrigo Valentina | C71: F | D71: Socio Attivo
A72: Decima Irene | C72: F | D72: Socio Attivo
A73: Del Gaudio Giuseppe | C73: M | D73: Socio Attivo
A74: Derlino Paola | C74: F | D74: Socio Attivo
A75: Di Maria Vincenzo | C75: M | D75: Socio Attivo
A76: Doardo Diego | C76: M | D76: Socio Attivo
A77: Dones Silvia | C77: F | D77: Socio Attivo
A78: Falco Mauro | C78: M | D78: Socio Attivo
A79: Farci Giuseppe | C79: M | D79: Socio Attivo
A80: Fava Stefano | C80: M | D80: Socio Attivo
A81: Federico Simone | C81: M | D81: Socio Attivo
A82: Ferrara Silvia | C82: F | D82: Socio Attivo
A83: Finotto Francesco | C83: M | D83: Socio Attivo
A84: Fiorio Bruno | C84: M | D84: Socio Attivo
A85: Fisicaro Giuseppe | C85: M | D85: Socio Attivo
A86: Fittavolini Andrea | C86: M | D86: Socio Attivo
A87: Franchi Raffaella | C87: F | D87: Socio Attivo
A88: Frascadore Angelo | C88: M | D88: Socio Attivo
A89: Fusetti Martina | C89: F | D89: Socio Attivo
A90: Fusi Cesare | C90: M | D90: Socio Attivo
A91: Fusi Roberto | C91: M | D91: Socio Attivo
A92: Galli Andrea | C92: M | D92: Socio Attivo
A93: Galli Matteo | C93: M | D93: Socio Attivo
A94: Gallinaro Maria Laura | C94: F | D94: Socio Attivo
A95: Gambirasi Stefano | C95: M | D95: Socio Attivo
A96: Gigante Rocco | C96: M | D96: Socio Attivo
A97: Girola Carla | C97: F | D97: Socio Attivo
A98: Giudici Alberto | C98: M | D98: Socio Attivo
A99: Gobbo Mattia | C99: M | D99: Socio Attivo
A100: Guzzetti Luigi | C100: M | D100: Socio Attivo
A101: Ivanov Davide | C101: M | D101: Socio Attivo
A102: Khoujji Bouchra | C102: F | D102: Socio Attivo
A103: La Duca Debora | C103: F | D103: Socio Attivo
A104: Lamberti Ottavia | C104: F | D104: Socio Attivo
A105: Lanza Demetrio | C105: M | D105: Socio Attivo
A106: Lapa Orihuela Hubert | C106: M | D106: Socio Attivo
A107: Legnani Katia | C107: F | D107: Socio Attivo
A108: Legnani Silvia | C108: F | D108: Socio Attivo
A109: Lettieri Umberto | C109: M | D109: Socio Attivo
A110: Licata Francesco | C110: M | D110: Socio Attivo
A111: Lombardi Antonio | C111: M | D111: Socio Attivo
A112: Longo Andrea | C112: M | D112: Socio Attivo
A113: Magnoni Marco | C113: M | D113: Socio Attivo
A114: Mandelli Daniela | C114: F | D114: Socio Attivo
A115: Mantegazza Francesco | C115: M | D115: Socio Attivo
A116: Marcomin Lorenzo | C116: M | D116: Socio Attivo
A117: Martinelli Luigi | C117: M | D117: Socio Attivo
A118: Matera Vittorio | C118: M | D118: Socio Attivo
A119: Matranga Matteo | C119: M | D119: Socio Attivo
A120: Mazzocchi Alice | C120: F | D120: Socio Attivo
A121: Mazzocchi Claudia | C121: F | D121: Socio Attivo
A122: Medina Adrian | C122: M | D122: Socio Attivo
A123: Medugno Roberto | C123: M | D123: Socio Attivo
A124: Melis Sofia | C124: F | D124: Socio Attivo
A125: Merli Giuseppe | C125: M | D125: Socio Attivo
A126: Minotti Vanila | C126: F | D126: Socio Attivo
A127: Mitrano Fabio | C127: M | D127: Socio Attivo
A128: Moioli Andrea | C128: M | D128: Socio Attivo
A129: Mondini Elisabetta | C129: F | D129: Socio Attivo
A130: Montani Fabio | C130: M | D130: Socio Attivo
A131: Monti Franco | C131: M | D131: Socio Attivo
A132: Monticelli Luca | C132: M | D132: Socio Attivo
A133: Moraes Pinto Michelle | C133: F | D133: Socio Attivo
A134: Mosca Omar | C134: M | D134: Socio Attivo
A135: Musti Simona | C135: F | D135: Socio Attivo
A136: Natale Lucia | C136: F | D136: Socio Attivo
A137: Ohazuruike Nnawuihe Luca | C137: M | D137: Socio Attivo
A138: Oliva Alberto | C138: M | D138: Socio Attivo
A139: Orsini Graziella | C139: F | D139: Socio Attivo
A140: Paglialonga Daniele | C140: M | D140: Socio Attivo
A141: Palermo Silvia | C141: F | D141: Socio Attivo
A142: Pantano Enrico | C142: M | D142: Socio Attivo
A143: Parravicini Andrea | C143: M | D143: Socio Attivo
A144: Passaro Mattia | C144: F | D144: Socio Attivo
A145: Patrese Benedetta | C145: F | D145: Socio Attivo
A146: Pavan Stefania | C146: F | D146: Socio Attivo
A147: Pelaia Cosimo | C147: M | D147: Socio Attivo
A148: Pellati Benedetta | C148: F | D148: Socio Attivo
A149: Pellegrini Stefano | C149: M | D149: Socio Attivo
A150: Perin Valentina | C150: F | D150: Socio Attivo
A151: Piazza Simone | C151: M | D151: Socio Attivo
A152: Pieri Ilaria | C152: F | D152: Socio Attivo
A153: Pieri Silvia | C153: F | D153: Socio Attivo
A154: Pigozzi Marta | C154: F | D154: Socio Attivo
A155: Pintus Patrizio | C155: M | D155: Socio Attivo
A156: Pittoni Cristian | C156: M | D156: Socio Attivo
A157: Piuri Fabio | C157: M | D157: Socio Attivo
A158: Podda Laura | C158: F | D158: Socio Attivo
A159: Polidori Vidal Giovanni | C159: M | D159: Socio Attivo
A160: Ponzetti Cinzia | C160: F | D160: Socio Attivo
A161: Pozzi Lia | C161: F | D161: Socio Attivo
A162: Puppi Alessandro | C162: M | D162: Socio Attivo
A163: Queirolo Saenz Gonzalo | C163: M | D163: Socio Attivo
A164: Raimondi Elena | C164: F | D164: Socio Attivo
A165: Raimondi Marco | C165: M | D165: Socio Attivo
A166: Re Ferrè Piero | C166: M | D166: Socio Attivo
A167: Romani Federico | C167: M | D167: Socio Attivo
A168: Roncoroni Luisella | C168: F | D168: Socio Attivo
A169: Rosiello Maria Cristina | C169: F | D169: Socio Attivo
A170: Rossetti Greco Maura | C170: F | D170: Socio Attivo
A171: Rossini Alessandro | C171: M | D171: Socio Attivo
A172: Sala Fabrizio | C172: M | D172: Socio Attivo
A173: Sala Paolo | C173: M | D173: Socio Attivo
A174: Salvaggio Fabio | C174: M | D174: Socio Attivo
A175: Sambrotta Ovidio | C175: M | D175: Socio Attivo
A176: Sambrotta Paolo | C176: M | D176: Socio Attivo
A177: Scapecchi Luca | C177: M | D177: Socio Attivo
A178: Sciarappa Franco | C178: M | D178: Socio Attivo
A179: Scubla Andrea | C179: M | D179: Socio Attivo
A180: Settembrini Gemma | C180: F | D180: Socio Attivo
A181: Sola Fabio | C181: M | D181: Socio Attivo
A182: Strada Paola | C182: F | D182: Socio Attivo
A183: Tagliabue Gaia | C183: F | D183: Socio Attivo
A184: Tagliabue Massimiliano | C184: M | D184: Socio Attivo
A185: Terranova Giulia | C185: F | D185: Socio Attivo
A186: Tragella Claudio | C186: M | D186: Socio Attivo
A187: Urso Vincenzo | C187: M | D187: Socio Attivo
A188: Vago Paola | C188: F | D188: Socio Attivo
A189: Valentini Lorenzo | C189: M | D189: Socio Attivo
A190: Vellini Silvia | C190: F | D190: Socio Attivo
A191: Vergottini Giada | C191: F | D191: Socio Attivo
A192: Vignoni Chiara | C192: F | D192: Socio Attivo
A193: Villa Maria Rosa | C193: F | D193: Socio Attivo
A194: Villa Simone | C194: M | D194: Socio Attivo
A195: Virlan Liliana | C195: F | D195: Socio Attivo
A196: Vitiello Claudio | C196: M | D196: Socio Attivo
A197: Vitiello Raffaela | C197: F | D197: Socio Attivo
A198: Zaffaroni Chiara | C198: F | D198: Socio Attivo
A199: Zaffaroni Stefano | C199: M | D199: Socio Attivo
A200: Zamagna Augusto | C200: M | D200: Socio Attivo
... 199 more rows

Sheet Universale (hidden)
A1: ATLETA | B1: DATA | C1: GARA | D1: LUOGO | E1: PROV | F1: DISTANZA km | G1: H | H1: M | I1: S | J1: Dislivello | K1: Crono | L1: vuotoi | M1: Ordina Data | N1: test | O1: Socio-EX | P1: Anno Gara | Q1: Punti | R1: Pt Trail | S1: Km Trial
A2: Abeni Stefano | B2: 2024-12-31 | K2: =IF(CONCATENATE(IF(G2="",0,G2),":",IF(H2="",0,H2),":",IF(I2="",0,I2))+1-1=0,"",CONCATENATE(IF(G2="",0,G2),":",IF(H2="",0,H2),":",IF(I2="",0,I2))+1-1) ->  | L2: =IF(VLOOKUP(+A2,'Elenco Atleti'!A:A,1,0)=+A2,"","ERRORE") ->  | M2: =IF(B2="","",IF(N2<32,+B2,IF(LEN(B2)=13,MID(B2,4,10),"errore"))+1-1) -> 2024-12-31 | N2: =IFERROR(DAY(B2),"errore") -> 31 | O2: =VLOOKUP(Universale!A2,'Elenco Atleti'!A:D,4,0) -> Socio Attivo | P2: =IFERROR(YEAR(M2),0) -> 2024 | Q2: =INT(+F2) -> 0 | R2: =IF(J2>0,(INT(+F2*10))/10+(J2/100),0) -> 0 | S2: =IF(J2>0,+F2,0) -> 0
A3: Abeni Stefano | B3: 2024-10-13 | C3: Deejay Ten | D3: Milano | E3: MI | F3: 10.0001 | H3: 47 | I3: 27 | K3: 0.03295138889 | L3: =IF(VLOOKUP(+A3,'Elenco Atleti'!A:A,1,0)=+A3,"","ERRORE") ->  | M3: 2024-10-13 | N3: 13 | O3: =VLOOKUP(Universale!A12264,'Elenco Atleti'!A:D,4,0) -> Socio Attivo | P3: 2024 | Q3: 10 | R3: 0 | S3: 0
A4: Abeni Stefano | B4: 2024-10-06 | C4: 3^ M21 Meda Urban Race | D4: Meda | E4: MB | F4: 21.097 | G4: 1 | H4: 40 | I4: 31 | K4: 0.06980324074 | L4: =IF(VLOOKUP(+A4,'Elenco Atleti'!A:A,1,0)=+A4,"","ERRORE") ->  | M4: 2024-10-06 | N4: 6 | O4: =VLOOKUP(Universale!A12233,'Elenco Atleti'!A:D,4,0) -> Socio Attivo | P4: 2024 | Q4: 21 | R4: 0 | S4: 0
A5: Abeni Stefano | B5: 2024-09-29 | C5: 14^ Salomon Running Milano Top Cup 21km | D5: Milano | E5: MI | F5: 21 | G5: 1 | H5: 51 | I5: 12 | K5: 0.07722222222 | L5: =IF(VLOOKUP(+A5,'Elenco Atleti'!A:A,1,0)=+A5,"","ERRORE") ->  | M5: 2024-09-29 | N5: 29 | O5: =VLOOKUP(Universale!A12159,'Elenco Atleti'!A:D,4,0) -> Socio Attivo | P5: 2024 | Q5: 21 | R5: 0 | S5: 0
A6: Abeni Stefano | B6: 2024-09-15 | C6: Monza21 (km 30) | D6: Monza | E6: MB | F6: 30 | G6: 2 | H6: 49 | I6: 28 | K6: 0.1176851852 | L6: =IF(VLOOKUP(+A6,'Elenco Atleti'!A:A,1,0)=+A6,"","ERRORE") ->  | M6: 2024-09-15 | N6: 15 | O6: =VLOOKUP(Universale!A12136,'Elenco Atleti'!A:D,4,0) -> Socio Attivo | P6: 2024 | Q6: 30 | R6: 0 | S6: 0
A7: Abeni Stefano | B7: 2024-07-13 | C7: 34^ Trofeo Sempione | D7: Milano | E7: MI | F7: 9.9 | H7: 47 | I7: 52 | K7: 0.03324074074 | L7: =IF(VLOOKUP(+A7,'Elenco Atleti'!A:A,1,0)=+A7,"","ERRORE") ->  | M7: 2024-07-13 | N7: 13 | O7: =VLOOKUP(Universale!A12061,'Elenco Atleti'!A:D,4,0) -> Socio Attivo | P7: 2024 | Q7: 9 | R7: 0 | S7: 0
A8: Abeni Stefano | B8: 2024-06-28 | C8: E…state Correndo 4^ tappa | D8: Garbagnate Milanese | E8: MI | F8: 5 | H8: 23 | I8: 40 | K8: 0.01643518519 | L8: =IF(VLOOKUP(+A8,'Elenco Atleti'!A:A,1,0)=+A8,"","ERRORE") ->  | M8: 2024-06-28 | N8: 28 | O8: =VLOOKUP(Universale!A3,'Elenco Atleti'!A:D,4,0) -> Socio Attivo | P8: 2024 | Q8: 5 | R8: 0 | S8: 0
A9: Abeni Stefano | B9: 2024-06-25 | C9: E…state Correndo 3^ tappa | D9: Saronno | E9: VA | F9: 5.1 | H9: 22 | I9: 51 | K9: 0.01586805556 | L9: =IF(VLOOKUP(+A9,'Elenco Atleti'!A:A,1,0)=+A9,"","ERRORE") ->  | M9: 2024-06-25 | N9: 25 | O9: =VLOOKUP(Universale!A4,'Elenco Atleti'!A:D,4,0) -> Socio Attivo | P9: 2024 | Q9: 5 | R9: 0 | S9: 0
A10: Abeni Stefano | B10: 2024-06-08 | C10: 39^ Staffetta 24x1ora | D10: Saronno | E10: VA | F10: 12.253 | G10: 1 | H10: 0 | I10: 0 | K10: 0.04166666667 | L10: =IF(VLOOKUP(+A10,'Elenco Atleti'!A:A,1,0)=+A10,"","ERRORE") ->  | M10: 2024-06-08 | N10: 8 | O10: =VLOOKUP(Universale!A5,'Elenco Atleti'!A:D,4,0) -> Socio Attivo | P10: 2024 | Q10: 12 | R10: 0 | S10: 0
A11: Abeni Stefano | B11: 2024-05-25 | C11: 17^ Running Day | D11: Saronno | E11: VA | F11: 9.6 | H11: 44 | I11: 9 | K11: 0.03065972222 | L11: =IF(VLOOKUP(+A11,'Elenco Atleti'!A:A,1,0)=+A11,"","ERRORE") ->  | M11: 2024-05-25 | N11: 25 | O11: =VLOOKUP(Universale!A6,'Elenco Atleti'!A:D,4,0) -> Socio Attivo | P11: 2024 | Q11: 9 | R11: 0 | S11: 0
A12: Abeni Stefano | B12: 2024-05-19 | C12: Mezza Maratona del Naviglio | D12: Cernusco sul Naviglio | E12: MI | F12: 21.097 | G12: 1 | H12: 44 | I12: 45 | K12: 0.07274305556 | L12: =IF(VLOOKUP(+A12,'Elenco Atleti'!A:A,1,0)=+A12,"","ERRORE") ->  | M12: 2024-05-19 | N12: 19 | O12: =VLOOKUP(Universale!A7,'Elenco Atleti'!A:D,4,0) -> Socio Attivo | P12: 2024 | Q12: 21 | R12: 0 | S12: 0
A13: Abeni Stefano | B13: 2024-05-12 | C13: StraLegnanese 2024 | D13: Legnano | E13: MI | F13: 10.0001 | H13: 48 | I13: 4 | K13: 0.03337962963 | L13: =IF(VLOOKUP(+A13,'Elenco Atleti'!A:A,1,0)=+A13,"","ERRORE") ->  | M13: 2024-05-12 | N13: 12 | O13: =VLOOKUP(Universale!A8,'Elenco Atleti'!A:D,4,0) -> Socio Attivo | P13: 2024 | Q13: 10 | R13: 0 | S13: 0
A14: Abeni Stefano | B14: 2024-04-21 | C14: 12^ Sarnico Lovere Run | D14: Sarnico | E14: BG | F14: 25.25 | G14: 2 | H14: 14 | I14: 17 | K14: 0.09325231481 | L14: =IF(VLOOKUP(+A14,'Elenco Atleti'!A:A,1,0)=+A14,"","ERRORE") ->  | M14: 2024-04-21 | N14: 21 | O14: =VLOOKUP(Universale!A9,'Elenco Atleti'!A:D,4,0) -> Socio Attivo | P14: 2024 | Q14: 25 | R14: 0 | S14: 0
A15: Abeni Stefano | B15: 2024-04-07 | C15: 22^ Milano Marathon | D15: Milano | E15: MI | F15: 42.195 | G15: 4 | H15: 32 | I15: 52 | K15: 0.1894907407 | L15: =IF(VLOOKUP(+A15,'Elenco Atleti'!A:A,1,0)=+A15,"","ERRORE") ->  | M15: 2024-04-07 | N15: 7 | O15: =VLOOKUP(Universale!A10,'Elenco Atleti'!A:D,4,0) -> Socio Attivo | P15: 2024 | Q15: 42 | R15: 0 | S15: 0
A16: Abeni Stefano | B16: 2024-03-24 | C16: StraMilano Half Marathon | D16: Milano | E16: MI | F16: 21.097 | G16: 1 | H16: 45 | I16: 29 | K16: 0.07325231481 | L16: =IF(VLOOKUP(+A16,'Elenco Atleti'!A:A,1,0)=+A16,"","ERRORE") ->  | M16: 2024-03-24 | N16: 24 | O16: =VLOOKUP(Universale!A11,'Elenco Atleti'!A:D,4,0) -> Socio Attivo | P16: 2024 | Q16: 21 | R16: 0 | S16: 0
A17: Abeni Stefano | B17: 2024-02-04 | C17: 11^ Bergamo21 Half Marathon | D17: Bergamo | E17: BG | F17: 21.097 | G17: 1 | H17: 48 | I17: 29 | K17: 0.07533564815 | L17: =IF(VLOOKUP(+A17,'Elenco Atleti'!A:A,1,0)=+A17,"","ERRORE") ->  | M17: 2024-02-04 | N17: 4 | O17: =VLOOKUP(Universale!A12,'Elenco Atleti'!A:D,4,0) -> Socio Attivo | P17: 2024 | Q17: 21 | R17: 0 | S17: 0
A18: Abeni Stefano | B18: 2024-01-28 | C18: 3^ Novara Half Marathon | D18: Novara | E18: NO | F18: 21.097 | G18: 1 | H18: 43 | I18: 33 | K18: 0.07190972222 | L18: =IF(VLOOKUP(+A18,'Elenco Atleti'!A:A,1,0)=+A18,"","ERRORE") ->  | M18: 2024-01-28 | N18: 28 | O18: =VLOOKUP(Universale!A13,'Elenco Atleti'!A:D,4,0) -> Socio Attivo | P18: 2024 | Q18: 21 | R18: 0 | S18: 0
A19: Abeni Stefano | B19: 2023-12-31 | L19: =IF(VLOOKUP(+A19,'Elenco Atleti'!A:A,1,0)=+A19,"","ERRORE") ->  | M19: 2023-12-31 | N19: 31 | O19: =VLOOKUP(Universale!A14,'Elenco Atleti'!A:D,4,0) -> Socio Attivo | P19: 2023 | Q19: 0 | R19: 0 | S19: 0
A20: Abeni Stefano | B20: 2023-12-03 | C20: Como Lake Half Marathon | D20: Como | E20: CO | F20: 21.097 | G20: 1 | H20: 45 | I20: 3 | K20: 0.07295138889 | L20: =IF(VLOOKUP(+A20,'Elenco Atleti'!A:A,1,0)=+A20,"","ERRORE") ->  | M20: 2023-12-03 | N20: 3 | O20: =VLOOKUP(Universale!A15,'Elenco Atleti'!A:D,4,0) -> Socio Attivo | P20: 2023 | Q20: 21 | R20: 0 | S20: 0
A21: Abeni Stefano | B21: 2023-11-26 | C21: Milano21 Half Marathon | D21: Milano | E21: MI | F21: 21.097 | G21: 1 | H21: 45 | I21: 3 | K21: 0.07295138889 | L21: =IF(VLOOKUP(+A21,'Elenco Atleti'!A:A,1,0)=+A21,"","ERRORE") ->  | M21: 2023-11-26 | N21: 26 | O21: =VLOOKUP(Universale!A16,'Elenco Atleti'!A:D,4,0) -> Socio Attivo | P21: 2023 | Q21: 21 | R21: 0 | S21: 0
A22: Abeni Stefano | B22: 2023-11-12 | C22: 30^ Maratonina Citta' di Busto Arsizio | D22: Busto Arsizio | E22: VA | F22: 21.097 | G22: 1 | H22: 43 | I22: 41 | K22: 0.07200231481 | L22: =IF(VLOOKUP(+A22,'Elenco Atleti'!A:A,1,0)=+A22,"","ERRORE") ->  | M22: 2023-11-12 | N22: 12 | O22: =VLOOKUP(Universale!A17,'Elenco Atleti'!A:D,4,0) -> Socio Attivo | P22: 2023 | Q22: 21 | R22: 0 | S22: 0
A23: Abeni Stefano | B23: 2023-10-22 | C23: 19^ Monza21 Half Marathon | D23: Monza | E23: MB | F23: 21.097 | G23: 1 | H23: 47 | I23: 1 | K23: 0.07431712963 | L23: =IF(VLOOKUP(+A23,'Elenco Atleti'!A:A,1,0)=+A23,"","ERRORE") ->  | M23: 2023-10-22 | N23: 22 | O23: =VLOOKUP(Universale!A18,'Elenco Atleti'!A:D,4,0) -> Socio Attivo | P23: 2023 | Q23: 21 | R23: 0 | S23: 0
A24: Abeni Stefano | B24: 2023-10-15 | C24: Deejay Ten | D24: Milano | E24: MI | F24: 10 | H24: 46 | I24: 24 | K24: 0.03222222222 | L24: =IF(VLOOKUP(+A24,'Elenco Atleti'!A:A,1,0)=+A24,"","ERRORE") ->  | M24: 2023-10-15 | N24: 15 | O24: =VLOOKUP(Universale!A19,'Elenco Atleti'!A:D,4,0) -> Socio Attivo | P24: 2023 | Q24: 10 | R24: 0 | S24: 0
A25: Abeni Stefano | B25: 2023-10-08 | C25: Varese City Run Half Marathon | D25: Varese | E25: VA | F25: 21.097 | G25: 1 | H25: 56 | I25: 14 | K25: 0.08071759259 | L25: =IF(VLOOKUP(+A25,'Elenco Atleti'!A:A,1,0)=+A25,"","ERRORE") ->  | M25: 2023-10-08 | N25: 8 | O25: =VLOOKUP(Universale!A20,'Elenco Atleti'!A:D,4,0) -> Socio Attivo | P25: 2023 | Q25: 21 | R25: 0 | S25: 0
A26: Abeni Stefano | B26: 2023-10-01 | C26: 13^ SRM23 Salomon Running Milano Top Cup | D26: Milano | E26: MI | F26: 21 | G26: 1 | H26: 55 | I26: 42 | K26: 0.08034722222 | L26: =IF(VLOOKUP(+A26,'Elenco Atleti'!A:A,1,0)=+A26,"","ERRORE") ->  | M26: 2023-10-01 | N26: 1 | O26: =VLOOKUP(Universale!A21,'Elenco Atleti'!A:D,4,0) -> Socio Attivo | P26: 2023 | Q26: 21 | R26: 0 | S26: 0
A27: Abeni Stefano | B27: 2023-09-24 | C27: 10^ StraSaronno | D27: Saronno | E27: VA | F27: 10.0001 | H27: 45 | I27: 28 | K27: 0.03157407407 | L27: =IF(VLOOKUP(+A27,'Elenco Atleti'!A:A,1,0)=+A27,"","ERRORE") ->  | M27: 2023-09-24 | N27: 24 | O27: =VLOOKUP(Universale!A22,'Elenco Atleti'!A:D,4,0) -> Socio Attivo | P27: 2023 | Q27: 10 | R27: 0 | S27: 0
A28: Abeni Stefano | B28: 10-11/06/2023 | C28: 38^ Staffetta 24x1ora | D28: Saronno | E28: VA | F28: 11.831 | G28: 1 | H28: 0 | I28: 0 | K28: 0.04166666667 | L28: =IF(VLOOKUP(+A28,'Elenco Atleti'!A:A,1,0)=+A28,"","ERRORE") ->  | M28: 2023-06-11 | N28: errore | O28: =VLOOKUP(Universale!A23,'Elenco Atleti'!A:D,4,0) -> Socio Attivo | P28: 2023 | Q28: 11 | R28: 0 | S28: 0
A29: Abeni Stefano | B29: 2023-05-21 | C29: 26^ Mezza Maratona del Naviglio | D29: Cernusco sul Naviglio | E29: MI | F29: 21.097 | G29: 1 | H29: 44 | I29: 49 | K29: 0.07278935185 | L29: =IF(VLOOKUP(+A29,'Elenco Atleti'!A:A,1,0)=+A29,"","ERRORE") ->  | M29: 2023-05-21 | N29: 21 | O29: =VLOOKUP(Universale!A24,'Elenco Atleti'!A:D,4,0) -> Socio Attivo | P29: 2023 | Q29: 21 | R29: 0 | S29: 0
A30: Abeni Stefano | B30: 2023-05-14 | C30: 15^ Lago Maggiore Half Marathon | D30: Verbania | E30: VB | F30: 21.097 | G30: 2 | H30: 2 | I30: 15 | K30: 0.08489583333 | L30: =IF(VLOOKUP(+A30,'Elenco Atleti'!A:A,1,0)=+A30,"","ERRORE") ->  | M30: 2023-05-14 | N30: 14 | O30: =VLOOKUP(Universale!A25,'Elenco Atleti'!A:D,4,0) -> Socio Attivo | P30: 2023 | Q30: 21 | R30: 0 | S30: 0
A31: Abeni Stefano | B31: 2023-05-13 | C31: 16^ Running Day | D31: Saronno | E31: VA | F31: 10 | H31: 46 | I31: 12 | K31: 0.03208333333 | L31: =IF(VLOOKUP(+A31,'Elenco Atleti'!A:A,1,0)=+A31,"","ERRORE") ->  | M31: 2023-05-13 | N31: 13 | O31: =VLOOKUP(Universale!A26,'Elenco Atleti'!A:D,4,0) -> Socio Attivo | P31: 2023 | Q31: 10 | R31: 0 | S31: 0
A32: Abeni Stefano | B32: 2023-05-06 | C32: Idroscalo Ten-K | D32: Segrate | E32: MI | F32: 10 | H32: 48 | I32: 33 | K32: 0.03371527778 | L32: =IF(VLOOKUP(+A32,'Elenco Atleti'!A:A,1,0)=+A32,"","ERRORE") ->  | M32: 2023-05-06 | N32: 6 | O32: =VLOOKUP(Universale!A27,'Elenco Atleti'!A:D,4,0) -> Socio Attivo | P32: 2023 | Q32: 10 | R32: 0 | S32: 0
A33: Abeni Stefano | B33: 2023-04-16 | C33: La Velocissima | D33: Arese | E33: MI | F33: 10 | H33: 45 | I33: 32 | K33: 0.03162037037 | L33: =IF(VLOOKUP(+A33,'Elenco Atleti'!A:A,1,0)=+A33,"","ERRORE") ->  | M33: 2023-04-16 | N33: 16 | O33: =VLOOKUP(Universale!A28,'Elenco Atleti'!A:D,4,0) -> Socio Attivo | P33: 2023 | Q33: 10 | R33: 0 | S33: 0
A34: Abeni Stefano | B34: 2023-04-02 | C34: 21^ Milano Marathon | D34: Milano | E34: MI | F34: 42.195 | G34: 4 | H34: 19 | I34: 28 | K34: 0.1801851852 | L34: =IF(VLOOKUP(+A34,'Elenco Atleti'!A:A,1,0)=+A34,"","ERRORE") ->  | M34: 2023-04-02 | N34: 2 | O34: =VLOOKUP(Universale!A29,'Elenco Atleti'!A:D,4,0) -> Socio Attivo | P34: 2023 | Q34: 42 | R34: 0 | S34: 0
A35: Abeni Stefano | B35: 2023-03-19 | C35: StraMilano Half Marathon | D35: Milano | E35: MI | F35: 21.097 | G35: 1 | H35: 40 | I35: 26 | K35: 0.06974537037 | L35: =IF(VLOOKUP(+A35,'Elenco Atleti'!A:A,1,0)=+A35,"","ERRORE") ->  | M35: 2023-03-19 | N35: 19 | O35: =VLOOKUP(Universale!A30,'Elenco Atleti'!A:D,4,0) -> Socio Attivo | P35: 2023 | Q35: 21 | R35: 0 | S35: 0
A36: Abeni Stefano | B36: 2023-03-12 | C36: 33^ Trofeo Sempione | D36: Milano | E36: MI | F36: 9.98 | H36: 44 | I36: 36 | K36: 0.03097222222 | L36: =IF(VLOOKUP(+A36,'Elenco Atleti'!A:A,1,0)=+A36,"","ERRORE") ->  | M36: 2023-03-12 | N36: 12 | O36: =VLOOKUP(Universale!A31,'Elenco Atleti'!A:D,4,0) -> Socio Attivo | P36: 2023 | Q36: 9 | R36: 0 | S36: 0
A37: Abeni Stefano | B37: 2023-03-05 | C37: Run for Life Together is Better | D37: Monza | E37: MB | F37: 20.9 | G37: 1 | H37: 41 | I37: 16 | K37: 0.07032407407 | L37: =IF(VLOOKUP(+A37,'Elenco Atleti'!A:A,1,0)=+A37,"","ERRORE") ->  | M37: 2023-03-05 | N37: 5 | O37: =VLOOKUP(Universale!A32,'Elenco Atleti'!A:D,4,0) -> Socio Attivo | P37: 2023 | Q37: 20 | R37: 0 | S37: 0
A38: Abeni Stefano | B38: 2023-02-05 | C38: Bergamo21 Half Marathon | D38: Bergamo | E38: BG | F38: 21.097 | G38: 1 | H38: 41 | I38: 48 | K38: 0.07069444444 | L38: =IF(VLOOKUP(+A38,'Elenco Atleti'!A:A,1,0)=+A38,"","ERRORE") ->  | M38: 2023-02-05 | N38: 5 | O38: =VLOOKUP(Universale!A33,'Elenco Atleti'!A:D,4,0) -> Socio Attivo | P38: 2023 | Q38: 21 | R38: 0 | S38: 0
A39: Abeni Stefano | B39: 2023-01-29 | C39: 2^ Novara Half Marathon | D39: Novara | E39: NO | F39: 21.097 | G39: 1 | H39: 40 | I39: 26 | K39: 0.06974537037 | L39: =IF(VLOOKUP(+A39,'Elenco Atleti'!A:A,1,0)=+A39,"","ERRORE") ->  | M39: 2023-01-29 | N39: 29 | O39: =VLOOKUP(Universale!A34,'Elenco Atleti'!A:D,4,0) -> Socio Attivo | P39: 2023 | Q39: 21 | R39: 0 | S39: 0
A40: Abeni Stefano | B40: 2022-12-31 | L40: =IF(VLOOKUP(+A40,'Elenco Atleti'!A:A,1,0)=+A40,"","ERRORE") ->  | M40: 2022-12-31 | N40: 31 | O40: =VLOOKUP(Universale!A35,'Elenco Atleti'!A:D,4,0) -> Socio Attivo | P40: 2022 | Q40: 0 | R40: 0 | S40: 0
A41: Abeni Stefano | B41: 2022-11-27 | C41: Ganten Milano21 Half Marathon | D41: Milano | E41: MI | F41: 21.097 | G41: 1 | H41: 44 | I41: 46 | K41: 0.07275462963 | L41: =IF(VLOOKUP(+A41,'Elenco Atleti'!A:A,1,0)=+A41,"","ERRORE") ->  | M41: 2022-11-27 | N41: 27 | O41: =VLOOKUP(Universale!A36,'Elenco Atleti'!A:D,4,0) -> Socio Attivo | P41: 2022 | Q41: 21 | R41: 0 | S41: 0
A42: Abeni Stefano | B42: 2022-11-13 | C42: 29^ Maratonina Citta' di Busto Arsizio | D42: Busto Arsizio | E42: VA | F42: 21.097 | G42: 1 | H42: 48 | I42: 39 | K42: 0.07545138889 | L42: =IF(VLOOKUP(+A42,'Elenco Atleti'!A:A,1,0)=+A42,"","ERRORE") ->  | M42: 2022-11-13 | N42: 13 | O42: =VLOOKUP(Universale!A37,'Elenco Atleti'!A:D,4,0) -> Socio Attivo | P42: 2022 | Q42: 21 | R42: 0 | S42: 0
A43: Abeni Stefano | B43: 2022-10-09 | C43: 17^ Deejay Ten | D43: Milano | E43: MI | F43: 10.0001 | H43: 46 | I43: 22 | K43: 0.03219907407 | L43: =IF(VLOOKUP(+A43,'Elenco Atleti'!A:A,1,0)=+A43,"","ERRORE") ->  | M43: 2022-10-09 | N43: 9 | O43: =VLOOKUP(Universale!A38,'Elenco Atleti'!A:D,4,0) -> Socio Attivo | P43: 2022 | Q43: 10 | R43: 0 | S43: 0
A44: Abeni Stefano | B44: 2022-10-02 | C44: Salomon Running Milano Top Cup 21K | D44: Milano | E44: MI | F44: 21 | G44: 1 | H44: 44 | I44: 53 | K44: 0.07283564815 | L44: =IF(VLOOKUP(+A44,'Elenco Atleti'!A:A,1,0)=+A44,"","ERRORE") ->  | M44: 2022-10-02 | N44: 2 | O44: =VLOOKUP(Universale!A39,'Elenco Atleti'!A:D,4,0) -> Socio Attivo | P44: 2022 | Q44: 21 | R44: 0 | S44: 0
A45: Abeni Stefano | B45: 2022-09-25 | C45: 9^ StraSaronno | D45: Saronno | E45: VA | F45: 10.0001 | H45: 46 | I45: 53 | K45: 0.03255787037 | L45: =IF(VLOOKUP(+A45,'Elenco Atleti'!A:A,1,0)=+A45,"","ERRORE") ->  | M45: 2022-09-25 | N45: 25 | O45: =VLOOKUP(Universale!A40,'Elenco Atleti'!A:D,4,0) -> Socio Attivo | P45: 2022 | Q45: 10 | R45: 0 | S45: 0
A46: Abeni Stefano | B46: 2022-06-18 | C46: 15^ Running Day | D46: Saronno | E46: VA | F46: 10 | H46: 51 | I46: 18 | K46: 0.035625 | L46: =IF(VLOOKUP(+A46,'Elenco Atleti'!A:A,1,0)=+A46,"","ERRORE") ->  | M46: 2022-06-18 | N46: 18 | O46: =VLOOKUP(Universale!A41,'Elenco Atleti'!A:D,4,0) -> Socio Attivo | P46: 2022 | Q46: 10 | R46: 0 | S46: 0
A47: Abeni Stefano | B47: 2022-05-15 | C47: 49^ StraMilano Half Marathon | D47: Milano | E47: MI | F47: 21.097 | G47: 2 | H47: 1 | I47: 42 | K47: 0.08451388889 | L47: =IF(VLOOKUP(+A47,'Elenco Atleti'!A:A,1,0)=+A47,"","ERRORE") ->  | M47: 2022-05-15 | N47: 15 | O47: =VLOOKUP(Universale!A42,'Elenco Atleti'!A:D,4,0) -> Socio Attivo | P47: 2022 | Q47: 21 | R47: 0 | S47: 0
A48: Abeni Stefano | B48: 2022-05-08 | C48: Run In Como Mezza Maratona del Lago di Como | D48: Como | E48: CO | F48: 21.097 | G48: 1 | H48: 50 | I48: 5 | K48: 0.07644675926 | L48: =IF(VLOOKUP(+A48,'Elenco Atleti'!A:A,1,0)=+A48,"","ERRORE") ->  | M48: 2022-05-08 | N48: 8 | O48: =VLOOKUP(Universale!A43,'Elenco Atleti'!A:D,4,0) -> Socio Attivo | P48: 2022 | Q48: 21 | R48: 0 | S48: 0
A49: Abeni Stefano | B49: 2022-04-10 | C49: Monza Run Free | D49: Monza | E49: MB | F49: 21.097 | G49: 1 | H49: 52 | I49: 11 | K49: 0.07790509259 | L49: =IF(VLOOKUP(+A49,'Elenco Atleti'!A:A,1,0)=+A49,"","ERRORE") ->  | M49: 2022-04-10 | N49: 10 | O49: =VLOOKUP(Universale!A44,'Elenco Atleti'!A:D,4,0) -> Socio Attivo | P49: 2022 | Q49: 21 | R49: 0 | S49: 0
A50: Abeni Stefano | B50: 2022-03-06 | C50: 6^ Run for Life Together is better | D50: Parco di Monza | E50: MB | F50: 21 | G50: 1 | H50: 50 | I50: 13 | K50: 0.07653935185 | L50: =IF(VLOOKUP(+A50,'Elenco Atleti'!A:A,1,0)=+A50,"","ERRORE") ->  | M50: 2022-03-06 | N50: 6 | O50: =VLOOKUP(Universale!A45,'Elenco Atleti'!A:D,4,0) -> Socio Attivo | P50: 2022 | Q50: 21 | R50: 0 | S50: 0
A51: Abeni Stefano | B51: 2021-12-31 | L51: =IF(VLOOKUP(+A51,'Elenco Atleti'!A:A,1,0)=+A51,"","ERRORE") ->  | M51: 2021-12-31 | N51: 31 | O51: =VLOOKUP(Universale!A46,'Elenco Atleti'!A:D,4,0) -> Socio Attivo | P51: 2021 | Q51: 0 | R51: 0 | S51: 0
A52: Abeni Stefano | B52: 2021-12-12 | C52: Run In Como Mezza Maratona Lago di Como | D52: Como | E52: CO | F52: 21.097 | G52: 2 | H52: 2 | I52: 49 | K52: 0.08528935185 | L52: =IF(VLOOKUP(+A52,'Elenco Atleti'!A:A,1,0)=+A52,"","ERRORE") ->  | M52: 2021-12-12 | N52: 12 | O52: =VLOOKUP(Universale!A47,'Elenco Atleti'!A:D,4,0) -> Socio Attivo | P52: 2021 | Q52: 21 | R52: 0 | S52: 0
A53: Accardi Angela | B53: 2024-12-31 | L53: =IF(VLOOKUP(+A53,'Elenco Atleti'!A:A,1,0)=+A53,"","ERRORE") ->  | M53: 2024-12-31 | N53: 31 | O53: =VLOOKUP(Universale!A48,'Elenco Atleti'!A:D,4,0) -> Socio Attivo | P53: 2024 | Q53: 0 | R53: 0 | S53: 0
A54: Accardi Angela | B54: 2024-06-08 | C54: 39^ Staffetta 24x1ora | D54: Saronno | E54: VA | F54: 10.986 | G54: 1 | H54: 0 | I54: 0 | K54: 0.04166666667 | L54: =IF(VLOOKUP(+A54,'Elenco Atleti'!A:A,1,0)=+A54,"","ERRORE") ->  | M54: 2024-06-08 | N54: 8 | O54: =VLOOKUP(Universale!A49,'Elenco Atleti'!A:D,4,0) -> Socio Attivo | P54: 2024 | Q54: 10 | R54: 0 | S54: 0
A55: Accardi Angela | B55: 2024-05-25 | C55: 17^ Running Day | D55: Saronno | E55: VA | F55: 9.6 | H55: 52 | I55: 41 | K55: 0.03658564815 | L55: =IF(VLOOKUP(+A55,'Elenco Atleti'!A:A,1,0)=+A55,"","ERRORE") ->  | M55: 2024-05-25 | N55: 25 | O55: =VLOOKUP(Universale!A50,'Elenco Atleti'!A:D,4,0) -> Socio Attivo | P55: 2024 | Q55: 9 | R55: 0 | S55: 0
A56: Aceti Vittorio | B56: 2015-12-31 | L56: =IF(VLOOKUP(+A56,'Elenco Atleti'!A:A,1,0)=+A56,"","ERRORE") ->  | M56: 2015-12-31 | N56: 31 | O56: =VLOOKUP(Universale!A51,'Elenco Atleti'!A:D,4,0) -> Socio Attivo | P56: 2015 | Q56: 0 | R56: 0 | S56: 0
A57: Aceti Vittorio | B57: 2015-11-08 | C57: 24^ Maratonina Citta' di Busto Arsizio | D57: Busto Arsizio | E57: VA | F57: 21.097 | G57: 1 | H57: 49 | I57: 40 | K57: 0.07615740741 | L57: =IF(VLOOKUP(+A57,'Elenco Atleti'!A:A,1,0)=+A57,"","ERRORE") ->  | M57: 2015-11-08 | N57: 8 | O57: =VLOOKUP(Universale!A52,'Elenco Atleti'!A:D,4,0) -> Socio Attivo | P57: 2015 | Q57: 21 | R57: 0 | S57: 0
A58: Aceti Vittorio | B58: 2015-09-20 | C58: 3^ StraSaronno | D58: Saronno | E58: VA | F58: 10.0001 | L58: =IF(VLOOKUP(+A58,'Elenco Atleti'!A:A,1,0)=+A58,"","ERRORE") ->  | M58: 2015-09-20 | N58: 20 | O58: =VLOOKUP(Universale!A53,'Elenco Atleti'!A:D,4,0) -> Socio Attivo | P58: 2015 | Q58: 10 | R58: 0 | S58: 0
A59: Aceti Vittorio | B59: 2015-09-13 | C59: 12^ Mezza di Monza | D59: Monza | E59: MB | F59: 21.097 | G59: 1 | H59: 49 | I59: 34 | K59: 0.07608796296 | L59: =IF(VLOOKUP(+A59,'Elenco Atleti'!A:A,1,0)=+A59,"","ERRORE") ->  | M59: 2015-09-13 | N59: 13 | O59: =VLOOKUP(Universale!A54,'Elenco Atleti'!A:D,4,0) -> Socio Attivo | P59: 2015 | Q59: 21 | R59: 0 | S59: 0
A60: Aceti Vittorio | B60: 2015-07-31 | C60: Corri a Venegono | D60: Venegono Superiore | E60: VA | F60: 7.2 | L60: =IF(VLOOKUP(+A60,'Elenco Atleti'!A:A,1,0)=+A60,"","ERRORE") ->  | M60: 2015-07-31 | N60: 31 | O60: =VLOOKUP(Universale!A55,'Elenco Atleti'!A:D,4,0) -> Socio Attivo | P60: 2015 | Q60: 7 | R60: 0 | S60: 0
A61: Aceti Vittorio | B61: 2015-05-24 | C61: 19^ Mezza Maratona del Naviglio | D61: Cernusco s/Naviglio | E61: MI | F61: 21.097 | G61: 1 | H61: 55 | I61: 16 | K61: 0.0800462963 | L61: =IF(VLOOKUP(+A61,'Elenco Atleti'!A:A,1,0)=+A61,"","ERRORE") ->  | M61: 2015-05-24 | N61: 24 | O61: =VLOOKUP(Universale!A56,'Elenco Atleti'!A:D,4,0) -> Ex Socio | P61: 2015 | Q61: 21 | R61: 0 | S61: 0
A62: Aceti Vittorio | B62: 2015-02-01 | C62: 10^ Mezza Maratona Internazionale delle Due Perle | D62: S.Margherita L. | E62: GE | F62: 21.097 | G62: 1 | H62: 47 | I62: 52 | K62: 0.07490740741 | L62: =IF(VLOOKUP(+A62,'Elenco Atleti'!A:A,1,0)=+A62,"","ERRORE") ->  | M62: 2015-02-01 | N62: 1 | O62: =VLOOKUP(Universale!A57,'Elenco Atleti'!A:D,4,0) -> Ex Socio | P62: 2015 | Q62: 21 | R62: 0 | S62: 0
A63: Agati Silvana | B63: 2024-12-31 | L63: =IF(VLOOKUP(+A63,'Elenco Atleti'!A:A,1,0)=+A63,"","ERRORE") ->  | M63: 2024-12-31 | N63: 31 | O63: =VLOOKUP(Universale!A58,'Elenco Atleti'!A:D,4,0) -> Ex Socio | P63: 2024 | Q63: 0 | R63: 0 | S63: 0
A64: Agati Silvana | B64: 2024-09-29 | C64: 11^ StraSaronno | D64: Saronno | E64: VA | F64: 10.0001 | G64: 1 | H64: 0 | I64: 45 | K64: 0.0421875 | L64: =IF(VLOOKUP(+A64,'Elenco Atleti'!A:A,1,0)=+A64,"","ERRORE") ->  | M64: 2024-09-29 | N64: 29 | O64: =VLOOKUP(Universale!A12181,'Elenco Atleti'!A:D,4,0) -> Socio Attivo | P64: 2024 | Q64: 10 | R64: 0 | S64: 0
A65: Agati Silvana | B65: 2024-09-08 | C65: 51^ Sgamela'a d'Vigezz | D65: Santa Maria Maggiore | E65: VB | F65: 25 | G65: 3 | H65: 13 | I65: 40 | K65: 0.1344907407 | L65: =IF(VLOOKUP(+A65,'Elenco Atleti'!A:A,1,0)=+A65,"","ERRORE") ->  | M65: 2024-09-08 | N65: 8 | O65: =VLOOKUP(Universale!A12127,'Elenco Atleti'!A:D,4,0) -> Socio Attivo | P65: 2024 | Q65: 25 | R65: 0 | S65: 0
A66: Agati Silvana | B66: 2024-06-08 | C66: 39^ Staffetta 24x1ora | D66: Saronno | E66: VA | F66: 10.14 | G66: 1 | H66: 0 | I66: 0 | K66: =IF(CONCATENATE(IF(G66="",0,G66),":",IF(H66="",0,H66),":",IF(I66="",0,I66))+1-1=0,"",CONCATENATE(IF(G66="",0,G66),":",IF(H66="",0,H66),":",IF(I66="",0,I66))+1-1) -> 0.04166666667 | L66: =IF(VLOOKUP(+A66,'Elenco Atleti'!A:A,1,0)=+A66,"","ERRORE") ->  | M66: =IF(B66="","",IF(N66<32,+B66,IF(LEN(B66)=13,MID(B66,4,10),"errore"))+1-1) -> 2024-06-08 | N66: =IFERROR(DAY(B66),"errore") -> 8 | O66: =VLOOKUP(Universale!A59,'Elenco Atleti'!A:D,4,0) -> Ex Socio | P66: =IFERROR(YEAR(M66),0) -> 2024 | Q66: =INT(+F66) -> 10 | R66: =IF(J66>0,(INT(+F66*10))/10+(J66/100),0) -> 0 | S66: =IF(J66>0,+F66,0) -> 0
A67: Agati Silvana | B67: 2024-04-21 | C67: 12^ Sarnico Lovere Run | D67: Sarnico | E67: BG | F67: 25.25 | G67: 2 | H67: 37 | I67: 38 | K67: 0.1094675926 | L67: =IF(VLOOKUP(+A67,'Elenco Atleti'!A:A,1,0)=+A67,"","ERRORE") ->  | M67: 2024-04-21 | N67: 21 | O67: =VLOOKUP(Universale!A60,'Elenco Atleti'!A:D,4,0) -> Ex Socio | P67: 2024 | Q67: 25 | R67: 0 | S67: 0
A68: Agati Silvana | B68: 2024-03-24 | C68: StraMilano Half Marathon | D68: Milano | E68: MI | F68: 21.097 | G68: 2 | H68: 12 | I68: 18 | K68: 0.091875 | L68: =IF(VLOOKUP(+A68,'Elenco Atleti'!A:A,1,0)=+A68,"","ERRORE") ->  | M68: 2024-03-24 | N68: 24 | O68: =VLOOKUP(Universale!A61,'Elenco Atleti'!A:D,4,0) -> Ex Socio | P68: 2024 | Q68: 21 | R68: 0 | S68: 0
A69: Agnelli Fabrizio | B69: 2024-12-31 | L69: =IF(VLOOKUP(+A69,'Elenco Atleti'!A:A,1,0)=+A69,"","ERRORE") ->  | M69: 2024-12-31 | N69: 31 | O69: =VLOOKUP(Universale!A62,'Elenco Atleti'!A:D,4,0) -> Ex Socio | P69: 2024 | Q69: 0 | R69: 0 | S69: 0
A70: Agnelli Fabrizio | B70: 2024-09-29 | C70: 11^ StraSaronno | D70: Saronno | E70: VA | F70: 10.0001 | H70: 43 | I70: 35 | K70: 0.0302662037 | L70: =IF(VLOOKUP(+A70,'Elenco Atleti'!A:A,1,0)=+A70,"","ERRORE") ->  | M70: 2024-09-29 | N70: 29 | O70: =VLOOKUP(Universale!A12220,'Elenco Atleti'!A:D,4,0) -> Socio Attivo | P70: 2024 | Q70: 10 | R70: 0 | S70: 0
A71: Agnelli Fabrizio | B71: 2023-12-31 | L71: =IF(VLOOKUP(+A71,'Elenco Atleti'!A:A,1,0)=+A71,"","ERRORE") ->  | M71: 2023-12-31 | N71: 31 | O71: =VLOOKUP(Universale!A63,'Elenco Atleti'!A:D,4,0) -> Socio Attivo | P71: 2023 | Q71: 0 | R71: 0 | S71: 0
A72: Agnelli Fabrizio | B72: 2023-11-26 | C72: Milano21 Half Marathon | D72: Milano | E72: MI | F72: 21.097 | G72: 1 | H72: 31 | I72: 51 | K72: 0.06378472222 | L72: =IF(VLOOKUP(+A72,'Elenco Atleti'!A:A,1,0)=+A72,"","ERRORE") ->  | M72: 2023-11-26 | N72: 26 | O72: =VLOOKUP(Universale!A64,'Elenco Atleti'!A:D,4,0) -> Socio Attivo | P72: 2023 | Q72: 21 | R72: 0 | S72: 0
A73: Airaghi Roberto | B73: 2008-12-31 | L73: =IF(VLOOKUP(+A73,'Elenco Atleti'!A:A,1,0)=+A73,"","ERRORE") ->  | M73: 2008-12-31 | N73: 31 | O73: =VLOOKUP(Universale!A65,'Elenco Atleti'!A:D,4,0) -> Socio Attivo | P73: 2008 | Q73: 0 | R73: 0 | S73: 0
A74: Airaghi Roberto | B74: 2008-11-09 | C74: 17^ Maratonina Citta' di Busto Arsizio - Campionato sociale | D74: Busto Arsizio | E74: VA | F74: 21.097 | G74: 2 | H74: 0 | I74: 40 | K74: 0.0837962963 | L74: =IF(VLOOKUP(+A74,'Elenco Atleti'!A:A,1,0)=+A74,"","ERRORE") ->  | M74: 2008-11-09 | N74: 9 | O74: =VLOOKUP(Universale!A66,'Elenco Atleti'!A:D,4,0) -> Socio Attivo | P74: 2008 | Q74: 21 | R74: 0 | S74: 0
A75: Airaghi Roberto | B75: 2008-10-05 | C75: 4^ DeeJay Ten | D75: Milano | E75: MI | F75: 10 | H75: 47 | I75: 54 | K75: 0.03326388889 | L75: =IF(VLOOKUP(+A75,'Elenco Atleti'!A:A,1,0)=+A75,"","ERRORE") ->  | M75: 2008-10-05 | N75: 5 | O75: =VLOOKUP(Universale!A67,'Elenco Atleti'!A:D,4,0) -> Socio Attivo | P75: 2008 | Q75: 10 | R75: 0 | S75: 0
A76: Airaghi Roberto | B76: 14-15/06/2008 | C76: 25^ Staffetta 24 x 1 ora | D76: Saronno | E76: VA | F76: 10.588 | G76: 1 | H76: 0 | I76: 0 | K76: 0.04166666667 | L76: =IF(VLOOKUP(+A76,'Elenco Atleti'!A:A,1,0)=+A76,"","ERRORE") ->  | M76: 2008-06-15 | N76: errore | O76: =VLOOKUP(Universale!A68,'Elenco Atleti'!A:D,4,0) -> Socio Attivo | P76: 2008 | Q76: 10 | R76: 0 | S76: 0
A77: Airaghi Roberto | B77: 10-11/05/2008 | C77: 24 x 1 ora Maxi Staffetta | D77: Peschiera B. | E77: MI | F77: 10.8 | G77: 1 | H77: 0 | I77: 0 | K77: 0.04166666667 | L77: =IF(VLOOKUP(+A77,'Elenco Atleti'!A:A,1,0)=+A77,"","ERRORE") ->  | M77: 2008-05-11 | N77: errore | O77: =VLOOKUP(Universale!A69,'Elenco Atleti'!A:D,4,0) -> Socio Attivo | P77: 2008 | Q77: 10 | R77: 0 | S77: 0
A78: Airaghi Roberto | B78: 2008-05-10 | C78: Running Day | D78: Saronno | E78: VA | F78: 10 | H78: 52 | I78: 10 | K78: 0.03622685185 | L78: =IF(VLOOKUP(+A78,'Elenco Atleti'!A:A,1,0)=+A78,"","ERRORE") ->  | M78: 2008-05-10 | N78: 10 | O78: =VLOOKUP(Universale!A70,'Elenco Atleti'!A:D,4,0) -> Socio Attivo | P78: 2008 | Q78: 10 | R78: 0 | S78: 0
A79: Airaghi Roberto | B79: 2008-04-06 | C79: 37^ Stramilano Agonistica Int. Half Marathon | D79: Milano | E79: MI | F79: 21.097 | G79: 1 | H79: 53 | I79: 55 | K79: 0.0791087963 | L79: =IF(VLOOKUP(+A79,'Elenco Atleti'!A:A,1,0)=+A79,"","ERRORE") ->  | M79: 2008-04-06 | N79: 6 | O79: =VLOOKUP(Universale!A71,'Elenco Atleti'!A:D,4,0) -> Socio Attivo | P79: 2008 | Q79: 21 | R79: 0 | S79: 0
A80: Airaghi Roberto | B80: 2008-03-30 | C80: 2^ Mezza dei Boschi | D80: Uboldo | E80: VA | F80: 21.0969 | G80: 1 | H80: 56 | I80: 0 | K80: 0.08055555556 | L80: =IF(VLOOKUP(+A80,'Elenco Atleti'!A:A,1,0)=+A80,"","ERRORE") ->  | M80: 2008-03-30 | N80: 30 | O80: =VLOOKUP(Universale!A72,'Elenco Atleti'!A:D,4,0) -> Socio Attivo | P80: 2008 | Q80: 21 | R80: 0 | S80: 0
A81: Airaghi Roberto | B81: 2007-12-31 | L81: =IF(VLOOKUP(+A81,'Elenco Atleti'!A:A,1,0)=+A81,"","ERRORE") ->  | M81: 2007-12-31 | N81: 31 | O81: =VLOOKUP(Universale!A73,'Elenco Atleti'!A:D,4,0) -> Ex Socio | P81: 2007 | Q81: 0 | R81: 0 | S81: 0
A82: Airaghi Roberto | B82: 2007-10-28 | C82: 5a Trecate Half Marathon | D82: Trecate | E82: NO | F82: 21.097 | G82: 1 | H82: 53 | I82: 17 | K82: 0.07866898148 | L82: =IF(VLOOKUP(+A82,'Elenco Atleti'!A:A,1,0)=+A82,"","ERRORE") ->  | M82: 2007-10-28 | N82: 28 | O82: =VLOOKUP(Universale!A74,'Elenco Atleti'!A:D,4,0) -> Ex Socio | P82: 2007 | Q82: 21 | R82: 0 | S82: 0
A83: Airaghi Roberto | B83: 2007-09-30 | C83: Deejay Ten | D83: Milano | E83: MI | F83: 10 | H83: 48 | I83: 32 | K83: 0.0337037037 | L83: =IF(VLOOKUP(+A83,'Elenco Atleti'!A:A,1,0)=+A83,"","ERRORE") ->  | M83: 2007-09-30 | N83: 30 | O83: =VLOOKUP(Universale!A75,'Elenco Atleti'!A:D,4,0) -> Ex Socio | P83: 2007 | Q83: 10 | R83: 0 | S83: 0
A84: Airaghi Roberto | B84: 2007-04-01 | C84: 36a Stramilano Half Marathon | D84: Milano | E84: MI | F84: 21.097 | G84: 1 | H84: 53 | I84: 44 | K84: 0.07898148148 | L84: =IF(VLOOKUP(+A84,'Elenco Atleti'!A:A,1,0)=+A84,"","ERRORE") ->  | M84: 2007-04-01 | N84: 1 | O84: =VLOOKUP(Universale!A76,'Elenco Atleti'!A:D,4,0) -> Ex Socio | P84: 2007 | Q84: 21 | R84: 0 | S84: 0
A85: Alario Francesco | B85: 2024-12-31 | L85: =IF(VLOOKUP(+A85,'Elenco Atleti'!A:A,1,0)=+A85,"","ERRORE") ->  | M85: 2024-12-31 | N85: 31 | O85: =VLOOKUP(Universale!A77,'Elenco Atleti'!A:D,4,0) -> Ex Socio | P85: 2024 | Q85: 0 | R85: 0 | S85: 0
A86: Alario Francesco | B86: 2024-09-01 | C86: 10 Miglia del Castello | D86: Endine Gaiano | E86: BG | F86: 16.7 | G86: 1 | H86: 28 | I86: 46 | K86: 0.06164351852 | L86: =IF(VLOOKUP(+A86,'Elenco Atleti'!A:A,1,0)=+A86,"","ERRORE") ->  | M86: 2024-09-01 | N86: 1 | O86: =VLOOKUP(Universale!A3202,'Elenco Atleti'!A:D,4,0) -> Socio Attivo | P86: 2024 | Q86: 16 | R86: 0 | S86: 0
A87: Alario Francesco | B87: 2024-06-08 | C87: 39^ Staffetta 24x1ora | D87: Saronno | E87: VA | F87: 11.408 | G87: 1 | H87: 0 | I87: 0 | K87: 0.04166666667 | L87: =IF(VLOOKUP(+A87,'Elenco Atleti'!A:A,1,0)=+A87,"","ERRORE") ->  | M87: 2024-06-08 | N87: 8 | O87: =VLOOKUP(Universale!A78,'Elenco Atleti'!A:D,4,0) -> Ex Socio | P87: 2024 | Q87: 11 | R87: 0 | S87: 0
A88: Alario Francesco | B88: 2024-01-28 | C88: 3^ Novara Half Marathon | D88: Novara | E88: NO | F88: 21.097 | G88: 1 | H88: 44 | I88: 35 | K88: 0.07262731481 | L88: =IF(VLOOKUP(+A88,'Elenco Atleti'!A:A,1,0)=+A88,"","ERRORE") ->  | M88: 2024-01-28 | N88: 28 | O88: =VLOOKUP(Universale!A79,'Elenco Atleti'!A:D,4,0) -> Ex Socio | P88: 2024 | Q88: 21 | R88: 0 | S88: 0
A89: Alario Francesco | B89: 2023-12-31 | L89: =IF(VLOOKUP(+A89,'Elenco Atleti'!A:A,1,0)=+A89,"","ERRORE") ->  | M89: 2023-12-31 | N89: 31 | O89: =VLOOKUP(Universale!A80,'Elenco Atleti'!A:D,4,0) -> Ex Socio | P89: 2023 | Q89: 0 | R89: 0 | S89: 0
A90: Alario Francesco | B90: 2023-12-03 | C90: Como Lake Half Marathon | D90: Como | E90: CO | F90: 21.097 | G90: 1 | H90: 54 | I90: 34 | K90: 0.07956018519 | L90: =IF(VLOOKUP(+A90,'Elenco Atleti'!A:A,1,0)=+A90,"","ERRORE") ->  | M90: 2023-12-03 | N90: 3 | O90: =VLOOKUP(Universale!A81,'Elenco Atleti'!A:D,4,0) -> Ex Socio | P90: 2023 | Q90: 21 | R90: 0 | S90: 0
A91: Alario Francesco | B91: 10-11/06/2023 | C91: 38^ Staffetta 24x1ora | D91: Saronno | E91: VA | F91: 11.831 | G91: 1 | H91: 0 | I91: 0 | K91: 0.04166666667 | L91: =IF(VLOOKUP(+A91,'Elenco Atleti'!A:A,1,0)=+A91,"","ERRORE") ->  | M91: 2023-06-11 | N91: errore | O91: =VLOOKUP(Universale!A82,'Elenco Atleti'!A:D,4,0) -> Ex Socio | P91: 2023 | Q91: 11 | R91: 0 | S91: 0
A92: Alario Francesco | B92: 2023-04-23 | C92: Sarnico Lovere Run | D92: Sarnico | E92: BG | F92: 25.25 | G92: 2 | H92: 24 | I92: 11 | K92: 0.1001273148 | L92: =IF(VLOOKUP(+A92,'Elenco Atleti'!A:A,1,0)=+A92,"","ERRORE") ->  | M92: 2023-04-23 | N92: 23 | O92: =VLOOKUP(Universale!A83,'Elenco Atleti'!A:D,4,0) -> Ex Socio | P92: 2023 | Q92: 25 | R92: 0 | S92: 0
A93: Alario Francesco | B93: 2023-02-19 | C93: 6^ World Running Academy Half Marathon | D93: Marina di Carrara | E93: MS | F93: 21.097 | G93: 1 | H93: 49 | I93: 48 | K93: 0.07625 | L93: =IF(VLOOKUP(+A93,'Elenco Atleti'!A:A,1,0)=+A93,"","ERRORE") ->  | M93: 2023-02-19 | N93: 19 | O93: =VLOOKUP(Universale!A84,'Elenco Atleti'!A:D,4,0) -> Ex Socio | P93: 2023 | Q93: 21 | R93: 0 | S93: 0
A94: Alario Francesco | B94: 2023-01-29 | C94: 2^ Novara Half Marathon | D94: Novara | E94: NO | F94: 21.097 | G94: 1 | H94: 56 | I94: 31 | K94: 0.08091435185 | L94: =IF(VLOOKUP(+A94,'Elenco Atleti'!A:A,1,0)=+A94,"","ERRORE") ->  | M94: 2023-01-29 | N94: 29 | O94: =VLOOKUP(Universale!A85,'Elenco Atleti'!A:D,4,0) -> Socio Attivo | P94: 2023 | Q94: 21 | R94: 0 | S94: 0
A95: Alario Francesco | B95: 2019-12-31 | L95: =IF(VLOOKUP(+A95,'Elenco Atleti'!A:A,1,0)=+A95,"","ERRORE") ->  | M95: 2019-12-31 | N95: 31 | O95: =VLOOKUP(Universale!A86,'Elenco Atleti'!A:D,4,0) -> Socio Attivo | P95: 2019 | Q95: 0 | R95: 0 | S95: 0
A96: Alario Francesco | B96: 2019-10-27 | C96: 10^ EcoMaratona del Barbaresco e del Tartufo Bianco d'Alba | D96: Alba | E96: CN | F96: 42.195 | G96: 5 | H96: 50 | I96: 58 | K96: 0.2437268519 | L96: =IF(VLOOKUP(+A96,'Elenco Atleti'!A:A,1,0)=+A96,"","ERRORE") ->  | M96: 2019-10-27 | N96: 27 | O96: =VLOOKUP(Universale!A87,'Elenco Atleti'!A:D,4,0) -> Socio Attivo | P96: 2019 | Q96: 42 | R96: 0 | S96: 0
A97: Alario Francesco | B97: 2019-10-05 | C97: 1^ Barabina Run - disl. +800 mt | D97: Valmadrera | E97: LC | F97: 8.5 | G97: 1 | H97: 47 | I97: 59 | J97: 800 | K97: 0.07498842593 | L97: =IF(VLOOKUP(+A97,'Elenco Atleti'!A:A,1,0)=+A97,"","ERRORE") ->  | M97: 2019-10-05 | N97: 5 | O97: =VLOOKUP(Universale!A88,'Elenco Atleti'!A:D,4,0) -> Socio Attivo | P97: 2019 | Q97: 8 | R97: 16.5 | S97: 8.5
A98: Alario Francesco | B98: 2019-09-15 | C98: 9^ Salomon Running Top Cup | D98: Milano | E98: MI | F98: 25 | G98: 2 | H98: 48 | I98: 51 | K98: 0.1172569444 | L98: =IF(VLOOKUP(+A98,'Elenco Atleti'!A:A,1,0)=+A98,"","ERRORE") ->  | M98: 2019-09-15 | N98: 15 | O98: =VLOOKUP(Universale!A89,'Elenco Atleti'!A:D,4,0) -> Socio Attivo | P98: 2019 | Q98: 25 | R98: 0 | S98: 0
A99: Alario Francesco | B99: 2019-06-28 | C99: 2^ 6 H di Corsa | D99: Cesate | E99: MI | F99: 44.4 | G99: 6 | H99: 2 | I99: 7 | K99: 0.2514699074 | L99: =IF(VLOOKUP(+A99,'Elenco Atleti'!A:A,1,0)=+A99,"","ERRORE") ->  | M99: 2019-06-28 | N99: 28 | O99: =VLOOKUP(Universale!A90,'Elenco Atleti'!A:D,4,0) -> Socio Attivo | P99: 2019 | Q99: 44 | R99: 0 | S99: 0
A100: Alario Francesco | B100: 08-09/06/2019 | C100: 36^ Staffetta 24 x 1 ora | D100: Saronno | E100: VA | F100: 11.658 | G100: 1 | H100: 0 | I100: 0 | K100: 0.04166666667 | L100: =IF(VLOOKUP(+A100,'Elenco Atleti'!A:A,1,0)=+A100,"","ERRORE") ->  | M100: 2019-06-09 | N100: errore | O100: =VLOOKUP(Universale!A91,'Elenco Atleti'!A:D,4,0) -> Socio Attivo | P100: 2019 | Q100: 11 | R100: 0 | S100: 0
A101: Alario Francesco | B101: 2019-05-04 | C101: 12^ Running Day | D101: Saronno | E101: VA | F101: 10 | H101: 47 | I101: 13 | K101: 0.03278935185 | L101: =IF(VLOOKUP(+A101,'Elenco Atleti'!A:A,1,0)=+A101,"","ERRORE") ->  | M101: 2019-05-04 | N101: 4 | O101: =VLOOKUP(Universale!A92,'Elenco Atleti'!A:D,4,0) -> Socio Attivo | P101: 2019 | Q101: 10 | R101: 0 | S101: 0
A102: Alario Francesco | B102: 2019-04-25 | C102: SLM Trail Sui Sentieri e Luoghi della Memoria - disl. +1.250 mt | D102: Saint-Vincent | E102: AO | F102: 17 | G102: 2 | H102: 35 | I102: 7 | J102: 1250 | K102: 0.1077199074 | L102: =IF(VLOOKUP(+A102,'Elenco Atleti'!A:A,1,0)=+A102,"","ERRORE") ->  | M102: 2019-04-25 | N102: 25 | O102: =VLOOKUP(Universale!A93,'Elenco Atleti'!A:D,4,0) -> Socio Attivo | P102: 2019 | Q102: 17 | R102: 29.5 | S102: 17
A103: Alario Francesco | B103: 2019-04-14 | C103: 8^ Monte Barro Running - disl. +850 mt | D103: Galbiate | E103: LC | F103: 15.8 | G103: 2 | H103: 13 | I103: 15 | J103: 850 | K103: 0.09253472222 | L103: =IF(VLOOKUP(+A103,'Elenco Atleti'!A:A,1,0)=+A103,"","ERRORE") ->  | M103: 2019-04-14 | N103: 14 | O103: =VLOOKUP(Universale!A94,'Elenco Atleti'!A:D,4,0) -> Socio Attivo | P103: 2019 | Q103: 15 | R103: 24.3 | S103: 15.8
A104: Alario Francesco | B104: 2019-03-24 | C104: 48^ StraMilano Half Marathon | D104: Milano | E104: MI | F104: 21.097 | G104: 1 | H104: 56 | I104: 33 | K104: 0.0809375 | L104: =IF(VLOOKUP(+A104,'Elenco Atleti'!A:A,1,0)=+A104,"","ERRORE") ->  | M104: 2019-03-24 | N104: 24 | O104: =VLOOKUP(Universale!A95,'Elenco Atleti'!A:D,4,0) -> Socio Attivo | P104: 2019 | Q104: 21 | R104: 0 | S104: 0
A105: Alario Francesco | B105: 2018-12-31 | L105: =IF(VLOOKUP(+A105,'Elenco Atleti'!A:A,1,0)=+A105,"","ERRORE") ->  | M105: 2018-12-31 | N105: 31 | O105: =VLOOKUP(Universale!A96,'Elenco Atleti'!A:D,4,0) -> Socio Attivo | P105: 2018 | Q105: 0 | R105: 0 | S105: 0
A106: Alario Francesco | B106: 2018-12-02 | C106: 9^ Prosecco Run | D106: Vidor | E106: TV | F106: 21.097 | G106: 1 | H106: 49 | I106: 16 | K106: 0.07587962963 | L106: =IF(VLOOKUP(+A106,'Elenco Atleti'!A:A,1,0)=+A106,"","ERRORE") ->  | M106: 2018-12-02 | N106: 2 | O106: =VLOOKUP(Universale!A97,'Elenco Atleti'!A:D,4,0) -> Socio Attivo | P106: 2018 | Q106: 21 | R106: 0 | S106: 0
A107: Alario Francesco | B107: 09-10/06/2018 | C107: 35^ Staffetta 24 x 1 ora | D107: Saronno | E107: VA | F107: 12.637 | G107: 1 | H107: 0 | I107: 0 | K107: 0.04166666667 | L107: =IF(VLOOKUP(+A107,'Elenco Atleti'!A:A,1,0)=+A107,"","ERRORE") ->  | M107: 2018-06-10 | N107: errore | O107: =VLOOKUP(Universale!A98,'Elenco Atleti'!A:D,4,0) -> Socio Attivo | P107: 2018 | Q107: 12 | R107: 0 | S107: 0
A108: Alario Francesco | B108: 2017-12-31 | L108: =IF(VLOOKUP(+A108,'Elenco Atleti'!A:A,1,0)=+A108,"","ERRORE") ->  | M108: 2017-12-31 | N108: 31 | O108: =VLOOKUP(Universale!A99,'Elenco Atleti'!A:D,4,0) -> Socio Attivo | P108: 2017 | Q108: 0 | R108: 0 | S108: 0
A109: Alario Francesco | B109: 2017-11-12 | C109: 26^ Maratonina Citta' di Busto Arsizio | D109: Busto Arsizio | E109: VA | F109: 21.097 | G109: 1 | H109: 40 | I109: 13 | K109: 0.06959490741 | L109: =IF(VLOOKUP(+A109,'Elenco Atleti'!A:A,1,0)=+A109,"","ERRORE") ->  | M109: 2017-11-12 | N109: 12 | O109: =VLOOKUP(Universale!A100,'Elenco Atleti'!A:D,4,0) -> Socio Attivo | P109: 2017 | Q109: 21 | R109: 0 | S109: 0
A110: Alario Francesco | B110: 2017-10-08 | C110: Tartufo Trail Running Decouverte - disl. +930 mt | D110: Calestano | E110: PR | F110: 17 | G110: 2 | H110: 8 | I110: 58 | J110: 930 | K110: 0.08956018519 | L110: =IF(VLOOKUP(+A110,'Elenco Atleti'!A:A,1,0)=+A110,"","ERRORE") ->  | M110: 2017-10-08 | N110: 8 | O110: =VLOOKUP(Universale!A101,'Elenco Atleti'!A:D,4,0) -> Socio Attivo | P110: 2017 | Q110: 17 | R110: 26.3 | S110: 17
A111: Alario Francesco | B111: 2017-10-01 | C111: 15^ CorriPavia Half Marathon | D111: Pavia | E111: PV | F111: 21.097 | G111: 1 | H111: 42 | I111: 31 | K111: 0.07119212963 | L111: =IF(VLOOKUP(+A111,'Elenco Atleti'!A:A,1,0)=+A111,"","ERRORE") ->  | M111: 2017-10-01 | N111: 1 | O111: =VLOOKUP(Universale!A102,'Elenco Atleti'!A:D,4,0) -> Socio Attivo | P111: 2017 | Q111: 21 | R111: 0 | S111: 0
A112: Alario Francesco | B112: 2017-09-17 | C112: 5^ StraSaronno | D112: Saronno | E112: VA | F112: 10.0001 | H112: 46 | I112: 51 | K112: 0.03253472222 | L112: =IF(VLOOKUP(+A112,'Elenco Atleti'!A:A,1,0)=+A112,"","ERRORE") ->  | M112: 2017-09-17 | N112: 17 | O112: =VLOOKUP(Universale!A103,'Elenco Atleti'!A:D,4,0) -> Socio Attivo | P112: 2017 | Q112: 10 | R112: 0 | S112: 0
A113: Alario Francesco | B113: 2017-06-25 | C113: 5^ Moltrasio Imperial Trail - disl. +1.450 mt | D113: Moltrasio | E113: CO | F113: 17 | G113: 3 | H113: 19 | I113: 18 | J113: 1450 | K113: 0.1384027778 | L113: =IF(VLOOKUP(+A113,'Elenco Atleti'!A:A,1,0)=+A113,"","ERRORE") ->  | M113: 2017-06-25 | N113: 25 | O113: =VLOOKUP(Universale!A104,'Elenco Atleti'!A:D,4,0) -> Socio Attivo | P113: 2017 | Q113: 17 | R113: 31.5 | S113: 17
A114: Alario Francesco | B114: 2017-06-17 | C114: Lago d'Orta Night Run | D114: Pella | E114: NO | F114: 16.5 | G114: 1 | H114: 40 | I114: 5 | K114: 0.06950231481 | L114: =IF(VLOOKUP(+A114,'Elenco Atleti'!A:A,1,0)=+A114,"","ERRORE") ->  | M114: 2017-06-17 | N114: 17 | O114: =VLOOKUP(Universale!A105,'Elenco Atleti'!A:D,4,0) -> Socio Attivo | P114: 2017 | Q114: 16 | R114: 0 | S114: 0
A115: Alario Francesco | B115: 10-11/06/2017 | C115: 34^ Staffetta 24 x 1 ora | D115: Saronno | E115: VA | F115: 11.668 | G115: 1 | H115: 0 | I115: 0 | K115: 0.04166666667 | L115: =IF(VLOOKUP(+A115,'Elenco Atleti'!A:A,1,0)=+A115,"","ERRORE") ->  | M115: 2017-06-11 | N115: errore | O115: =VLOOKUP(Universale!A106,'Elenco Atleti'!A:D,4,0) -> Socio Attivo | P115: 2017 | Q115: 11 | R115: 0 | S115: 0
A116: Alario Francesco | B116: 2017-05-07 | C116: 22^ Placentia Half Marathon for Unicef | D116: Piacenza | E116: PC | F116: 21.097 | G116: 1 | H116: 48 | I116: 13 | K116: 0.07515046296 | L116: =IF(VLOOKUP(+A116,'Elenco Atleti'!A:A,1,0)=+A116,"","ERRORE") ->  | M116: 2017-05-07 | N116: 7 | O116: =VLOOKUP(Universale!A107,'Elenco Atleti'!A:D,4,0) -> Socio Attivo | P116: 2017 | Q116: 21 | R116: 0 | S116: 0
A117: Alario Francesco | B117: 2017-04-09 | C117: 9^ Ossola Bech Trail - disl. +1.900 mt. | D117: Mergozzo | E117: VB | F117: 17.5 | G117: 3 | H117: 7 | I117: 58 | J117: 1900 | K117: 0.1305324074 | L117: =IF(VLOOKUP(+A117,'Elenco Atleti'!A:A,1,0)=+A117,"","ERRORE") ->  | M117: 2017-04-09 | N117: 9 | O117: =VLOOKUP(Universale!A108,'Elenco Atleti'!A:D,4,0) -> Socio Attivo | P117: 2017 | Q117: 17 | R117: 36.5 | S117: 17.5
A118: Alario Francesco | B118: 2017-03-12 | C118: Trail San Genesio Run - disl. +716 mt. | D118: Galbiate | E118: LC | F118: 23 | G118: 2 | H118: 53 | I118: 24 | J118: 716 | K118: 0.1204166667 | L118: =IF(VLOOKUP(+A118,'Elenco Atleti'!A:A,1,0)=+A118,"","ERRORE") ->  | M118: 2017-03-12 | N118: 12 | O118: =VLOOKUP(Universale!A109,'Elenco Atleti'!A:D,4,0) -> Socio Attivo | P118: 2017 | Q118: 23 | R118: 30.16 | S118: 23
A119: Alario Francesco | B119: 2017-01-22 | C119: 21^ Mezza Maratona di San Gaudenzio | D119: Novara | E119: NO | F119: 21.097 | G119: 1 | H119: 44 | I119: 7 | K119: 0.07230324074 | L119: =IF(VLOOKUP(+A119,'Elenco Atleti'!A:A,1,0)=+A119,"","ERRORE") ->  | M119: 2017-01-22 | N119: 22 | O119: =VLOOKUP(Universale!A110,'Elenco Atleti'!A:D,4,0) -> Socio Attivo | P119: 2017 | Q119: 21 | R119: 0 | S119: 0
A120: Alario Francesco | B120: 2016-12-31 | L120: =IF(VLOOKUP(+A120,'Elenco Atleti'!A:A,1,0)=+A120,"","ERRORE") ->  | M120: 2016-12-31 | N120: 31 | O120: =VLOOKUP(Universale!A111,'Elenco Atleti'!A:D,4,0) -> Socio Attivo | P120: 2016 | Q120: 0 | R120: 0 | S120: 0
A121: Alario Francesco | B121: 2016-10-16 | C121: 1^ Parma Marathon | D121: Parma | E121: PR | F121: 42.195 | G121: 4 | H121: 41 | I121: 2 | K121: 0.195162037 | L121: =IF(VLOOKUP(+A121,'Elenco Atleti'!A:A,1,0)=+A121,"","ERRORE") ->  | M121: 2016-10-16 | N121: 16 | O121: =VLOOKUP(Universale!A112,'Elenco Atleti'!A:D,4,0) -> Socio Attivo | P121: 2016 | Q121: 42 | R121: 0 | S121: 0
A122: Alario Francesco | B122: 2016-07-20 | C122: 3^ Coppa Cobram - Gap Saronno | D122: Saronno - Parco Lura | E122: VA | F122: 6.75 | L122: =IF(VLOOKUP(+A122,'Elenco Atleti'!A:A,1,0)=+A122,"","ERRORE") ->  | M122: 2016-07-20 | N122: 20 | O122: =VLOOKUP(Universale!A113,'Elenco Atleti'!A:D,4,0) -> Socio Attivo | P122: 2016 | Q122: 6 | R122: 0 | S122: 0
A123: Alario Francesco | B123: 2016-06-02 | C123: 3^ StraGroane Love Runner | D123: Cesate | E123: MI | F123: 15 | L123: =IF(VLOOKUP(+A123,'Elenco Atleti'!A:A,1,0)=+A123,"","ERRORE") ->  | M123: 2016-06-02 | N123: 2 | O123: =VLOOKUP(Universale!A114,'Elenco Atleti'!A:D,4,0) -> Socio Attivo | P123: 2016 | Q123: 15 | R123: 0 | S123: 0
A124: Alario Francesco | B124: 2016-05-22 | C124: 20^ Mezza Maratona del Naviglio | D124: Cernusco sul Naviglio | E124: MI | F124: 21.097 | G124: 1 | H124: 53 | I124: 19 | K124: 0.07869212963 | L124: =IF(VLOOKUP(+A124,'Elenco Atleti'!A:A,1,0)=+A124,"","ERRORE") ->  | M124: 2016-05-22 | N124: 22 | O124: =VLOOKUP(Universale!A115,'Elenco Atleti'!A:D,4,0) -> Socio Attivo | P124: 2016 | Q124: 21 | R124: 0 | S124: 0
A125: Alario Francesco | B125: 2016-05-08 | C125: 6^ Mezza Maratona Lago di Como Run in Como | D125: Como | E125: CO | F125: 21.097 | G125: 1 | H125: 52 | I125: 52 | K125: 0.07837962963 | L125: =IF(VLOOKUP(+A125,'Elenco Atleti'!A:A,1,0)=+A125,"","ERRORE") ->  | M125: 2016-05-08 | N125: 8 | O125: =VLOOKUP(Universale!A116,'Elenco Atleti'!A:D,4,0) -> Socio Attivo | P125: 2016 | Q125: 21 | R125: 0 | S125: 0
A126: Alberio Antonio | B126: 2022-12-31 | L126: =IF(VLOOKUP(+A126,'Elenco Atleti'!A:A,1,0)=+A126,"","ERRORE") ->  | M126: 2022-12-31 | N126: 31 | O126: =VLOOKUP(Universale!A118,'Elenco Atleti'!A:D,4,0) -> Socio Attivo | P126: 2022 | Q126: 0 | R126: 0 | S126: 0
A127: Alberio Antonio | B127: 2022-01-30 | C127: 90^ Cinque Mulini World Cross Country | D127: San Vittore Olona | E127: MI | F127: 4.2 | H127: 19 | I127: 4 | K127: 0.01324074074 | L127: =IF(VLOOKUP(+A127,'Elenco Atleti'!A:A,1,0)=+A127,"","ERRORE") ->  | M127: 2022-01-30 | N127: 30 | O127: =VLOOKUP(Universale!A119,'Elenco Atleti'!A:D,4,0) -> Socio Attivo | P127: 2022 | Q127: 4 | R127: 0 | S127: 0
A128: Alberio Marco | B128: 2024-12-31 | L128: =IF(VLOOKUP(+A128,'Elenco Atleti'!A:A,1,0)=+A128,"","ERRORE") ->  | M128: 2024-12-31 | N128: 31 | O128: =VLOOKUP(Universale!A120,'Elenco Atleti'!A:D,4,0) -> Socio Attivo | P128: 2024 | Q128: 0 | R128: 0 | S128: 0
A129: Alberio Marco | B129: 2024-06-28 | C129: E…state Correndo 4^ tappa | D129: Garbagnate Milanese | E129: MI | F129: 5 | H129: 16 | I129: 18 | K129: 0.01131944444 | L129: =IF(VLOOKUP(+A129,'Elenco Atleti'!A:A,1,0)=+A129,"","ERRORE") ->  | M129: 2024-06-28 | N129: 28 | O129: =VLOOKUP(Universale!A121,'Elenco Atleti'!A:D,4,0) -> Socio Attivo | P129: 2024 | Q129: 5 | R129: 0 | S129: 0
A130: Alberio Marco | B130: 2024-06-25 | C130: E…state Correndo 3^ tappa | D130: Saronno | E130: VA | F130: 5.1 | H130: 16 | I130: 17 | K130: =IF(CONCATENATE(IF(G130="",0,G130),":",IF(H130="",0,H130),":",IF(I130="",0,I130))+1-1=0,"",CONCATENATE(IF(G130="",0,G130),":",IF(H130="",0,H130),":",IF(I130="",0,I130))+1-1) -> 0.01130787037 | L130: =IF(VLOOKUP(+A130,'Elenco Atleti'!A:A,1,0)=+A130,"","ERRORE") ->  | M130: =IF(B130="","",IF(N130<32,+B130,IF(LEN(B130)=13,MID(B130,4,10),"errore"))+1-1) -> 2024-06-25 | N130: =IFERROR(DAY(B130),"errore") -> 25 | O130: =VLOOKUP(Universale!A122,'Elenco Atleti'!A:D,4,0) -> Socio Attivo | P130: =IFERROR(YEAR(M130),0) -> 2024 | Q130: =INT(+F130) -> 5 | R130: =IF(J130>0,(INT(+F130*10))/10+(J130/100),0) -> 0 | S130: =IF(J130>0,+F130,0) -> 0
A131: Alberio Marco | B131: 2024-06-21 | C131: E…state Correndo 2^ tappa | D131: Senago | E131: MI | F131: 5 | H131: 16 | I131: 25 | K131: 0.01140046296 | L131: =IF(VLOOKUP(+A131,'Elenco Atleti'!A:A,1,0)=+A131,"","ERRORE") ->  | M131: 2024-06-21 | N131: 21 | O131: =VLOOKUP(Universale!A123,'Elenco Atleti'!A:D,4,0) -> Socio Attivo | P131: 2024 | Q131: 5 | R131: 0 | S131: 0
A132: Alberio Marco | B132: 2024-06-18 | C132: E…state Correndo 1^ tappa | D132: Nerviano | E132: MI | F132: 5.2 | H132: 17 | I132: 19 | K132: 0.01202546296 | L132: =IF(VLOOKUP(+A132,'Elenco Atleti'!A:A,1,0)=+A132,"","ERRORE") ->  | M132: 2024-06-18 | N132: 18 | O132: =VLOOKUP(Universale!A124,'Elenco Atleti'!A:D,4,0) -> Socio Attivo | P132: 2024 | Q132: 5 | R132: 0 | S132: 0
A133: Alberio Marco | B133: 2024-06-08 | C133: 39^ Staffetta 24x1ora | D133: Saronno | E133: VA | F133: 16.478 | G133: 1 | H133: 0 | I133: 0 | K133: 0.04166666667 | L133: =IF(VLOOKUP(+A133,'Elenco Atleti'!A:A,1,0)=+A133,"","ERRORE") ->  | M133: 2024-06-08 | N133: 8 | O133: =VLOOKUP(Universale!A125,'Elenco Atleti'!A:D,4,0) -> Socio Attivo | P133: 2024 | Q133: 16 | R133: 0 | S133: 0
A134: Alberio Marco | B134: 2024-05-31 | C134: 24^ Giro Podistico del Varesotto 4^ tappa | D134: Casorate Sempione | E134: VA | F134: 5 | H134: 16 | I134: 4 | K134: 0.01115740741 | L134: =IF(VLOOKUP(+A134,'Elenco Atleti'!A:A,1,0)=+A134,"","ERRORE") ->  | M134: 2024-05-31 | N134: 31 | O134: =VLOOKUP(Universale!A126,'Elenco Atleti'!A:D,4,0) -> Socio Attivo | P134: 2024 | Q134: 5 | R134: 0 | S134: 0
A135: Alberio Marco | B135: 2024-05-25 | C135: 17^ Running Day | D135: Saronno | E135: VA | F135: 9.6 | H135: 32 | I135: 27 | K135: 0.02253472222 | L135: =IF(VLOOKUP(+A135,'Elenco Atleti'!A:A,1,0)=+A135,"","ERRORE") ->  | M135: 2024-05-25 | N135: 25 | O135: =VLOOKUP(Universale!A127,'Elenco Atleti'!A:D,4,0) -> Socio Attivo | P135: 2024 | Q135: 9 | R135: 0 | S135: 0
A136: Alberio Marco | B136: 2024-05-21 | C136: 24^ Giro Podistico del Varesotto 1^ tappa | D136: Busto Arsizio | E136: VA | F136: 5 | H136: 16 | I136: 22 | K136: 0.01136574074 | L136: =IF(VLOOKUP(+A136,'Elenco Atleti'!A:A,1,0)=+A136,"","ERRORE") ->  | M136: 2024-05-21 | N136: 21 | O136: =VLOOKUP(Universale!A128,'Elenco Atleti'!A:D,4,0) -> Socio Attivo | P136: 2024 | Q136: 5 | R136: 0 | S136: 0
A137: Alberio Marco | B137: 2024-05-19 | C137: VLC Vertical del Lago di Como - disl. +1.150 mt | D137: Carate Urio | E137: CO | F137: 4.7 | H137: 50 | I137: 37 | J137: 1150 | K137: 0.03515046296 | L137: =IF(VLOOKUP(+A137,'Elenco Atleti'!A:A,1,0)=+A137,"","ERRORE") ->  | M137: 2024-05-19 | N137: 19 | O137: =VLOOKUP(Universale!A129,'Elenco Atleti'!A:D,4,0) -> Socio Attivo | P137: 2024 | Q137: 4 | R137: 16.2 | S137: 4.7
A138: Alberio Marco | B138: 2024-03-24 | C138: StraMilano Half Marathon | D138: Milano | E138: MI | F138: 21.097 | G138: 1 | H138: 13 | I138: 56 | K138: 0.05134259259 | L138: =IF(VLOOKUP(+A138,'Elenco Atleti'!A:A,1,0)=+A138,"","ERRORE") ->  | M138: 2024-03-24 | N138: 24 | O138: =VLOOKUP(Universale!A130,'Elenco Atleti'!A:D,4,0) -> Socio Attivo | P138: 2024 | Q138: 21 | R138: 0 | S138: 0
A139: Alberio Marco | B139: 2023-12-31 | L139: =IF(VLOOKUP(+A139,'Elenco Atleti'!A:A,1,0)=+A139,"","ERRORE") ->  | M139: 2023-12-31 | N139: 31 | O139: =VLOOKUP(Universale!A131,'Elenco Atleti'!A:D,4,0) -> Socio Attivo | P139: 2023 | Q139: 0 | R139: 0 | S139: 0
A140: Alberio Marco | B140: 2023-09-24 | C140: 10^ StraSaronno | D140: Saronno | E140: VA | F140: 10.0001 | H140: 33 | I140: 19 | K140: 0.02313657407 | L140: =IF(VLOOKUP(+A140,'Elenco Atleti'!A:A,1,0)=+A140,"","ERRORE") ->  | M140: 2023-09-24 | N140: 24 | O140: =VLOOKUP(Universale!A132,'Elenco Atleti'!A:D,4,0) -> Socio Attivo | P140: 2023 | Q140: 10 | R140: 0 | S140: 0
A141: Alberio Marco | B141: 2023-07-16 | C141: 41^ Transcivetta Karpos - disl. +1.950 mt | D141: Alleghe | E141: BL | F141: 23.5 | G141: 2 | H141: 36 | I141: 31 | J141: 1950 | K141: 0.1086921296 | L141: =IF(VLOOKUP(+A141,'Elenco Atleti'!A:A,1,0)=+A141,"","ERRORE") ->  | M141: 2023-07-16 | N141: 16 | O141: =VLOOKUP(Universale!A133,'Elenco Atleti'!A:D,4,0) -> Socio Attivo | P141: 2023 | Q141: 23 | R141: 43 | S141: 23.5
A142: Alberio Marco | B142: 2023-07-04 | C142: E…state Correndo 3^ tappa | D142: Saronno | E142: VA | F142: 5.2 | H142: 16 | I142: 58 | K142: 0.01178240741 | L142: =IF(VLOOKUP(+A142,'Elenco Atleti'!A:A,1,0)=+A142,"","ERRORE") ->  | M142: 2023-07-04 | N142: 4 | O142: =VLOOKUP(Universale!A134,'Elenco Atleti'!A:D,4,0) -> Socio Attivo | P142: 2023 | Q142: 5 | R142: 0 | S142: 0
A143: Alberio Marco | B143: 2023-06-14 | C143: 23^ Giro Podistico del Varesotto - 6^ tappa | D143: Cardano al Campo | E143: VA | F143: 5 | H143: 16 | I143: 10 | K143: 0.01122685185 | L143: =IF(VLOOKUP(+A143,'Elenco Atleti'!A:A,1,0)=+A143,"","ERRORE") ->  | M143: 2023-06-14 | N143: 14 | O143: =VLOOKUP(Universale!A135,'Elenco Atleti'!A:D,4,0) -> Socio Attivo | P143: 2023 | Q143: 5 | R143: 0 | S143: 0
A144: Alberio Marco | B144: 10-11/06/2023 | C144: 38^ Staffetta 24x1ora | D144: Saronno | E144: VA | F144: 16.478 | G144: 1 | H144: 0 | I144: 0 | K144: 0.04166666667 | L144: =IF(VLOOKUP(+A144,'Elenco Atleti'!A:A,1,0)=+A144,"","ERRORE") ->  | M144: 2023-06-11 | N144: errore | O144: =VLOOKUP(Universale!A136,'Elenco Atleti'!A:D,4,0) -> Socio Attivo | P144: 2023 | Q144: 16 | R144: 0 | S144: 0
A145: Alberio Marco | B145: 2023-06-03 | C145: 44^ Stockolm Marathon | D145: Stoccolma | E145: S | F145: 42.195 | G145: 2 | H145: 49 | I145: 41 | K145: 0.1178356481 | L145: =IF(VLOOKUP(+A145,'Elenco Atleti'!A:A,1,0)=+A145,"","ERRORE") ->  | M145: 2023-06-03 | N145: 3 | O145: =VLOOKUP(Universale!A137,'Elenco Atleti'!A:D,4,0) -> Socio Attivo | P145: 2023 | Q145: 42 | R145: 0 | S145: 0
A146: Alberio Marco | B146: 2023-05-23 | C146: 23^ Giro Podistico del Varesotto - 1^ tappa | D146: Busto Arsizio | E146: VA | F146: 5 | H146: 15 | I146: 46 | K146: 0.01094907407 | L146: =IF(VLOOKUP(+A146,'Elenco Atleti'!A:A,1,0)=+A146,"","ERRORE") ->  | M146: 2023-05-23 | N146: 23 | O146: =VLOOKUP(Universale!A138,'Elenco Atleti'!A:D,4,0) -> Socio Attivo | P146: 2023 | Q146: 5 | R146: 0 | S146: 0
A147: Alberio Marco | B147: 2023-05-13 | C147: 16^ Running Day | D147: Saronno | E147: VA | F147: 10 | H147: 32 | I147: 58 | K147: 0.02289351852 | L147: =IF(VLOOKUP(+A147,'Elenco Atleti'!A:A,1,0)=+A147,"","ERRORE") ->  | M147: 2023-05-13 | N147: 13 | O147: =VLOOKUP(Universale!A139,'Elenco Atleti'!A:D,4,0) -> Socio Attivo | P147: 2023 | Q147: 10 | R147: 0 | S147: 0
A148: Alberio Marco | B148: 2023-03-19 | C148: StraMilano Half Marathon | D148: Milano | E148: MI | F148: 21.097 | G148: 1 | H148: 16 | I148: 29 | K148: 0.05311342593 | L148: =IF(VLOOKUP(+A148,'Elenco Atleti'!A:A,1,0)=+A148,"","ERRORE") ->  | M148: 2023-03-19 | N148: 19 | O148: =VLOOKUP(Universale!A140,'Elenco Atleti'!A:D,4,0) -> Socio Attivo | P148: 2023 | Q148: 21 | R148: 0 | S148: 0
A149: Alberio Marco | B149: 2022-12-31 | L149: =IF(VLOOKUP(+A149,'Elenco Atleti'!A:A,1,0)=+A149,"","ERRORE") ->  | M149: 2022-12-31 | N149: 31 | O149: =VLOOKUP(Universale!A141,'Elenco Atleti'!A:D,4,0) -> Socio Attivo | P149: 2022 | Q149: 0 | R149: 0 | S149: 0
A150: Alberio Marco | B150: 11-12/06/2022 | C150: 37^ Staffetta 24x1 ora | D150: Saronno | E150: VA | F150: 16.279 | G150: 1 | H150: 0 | I150: 0 | K150: 0.04166666667 | L150: =IF(VLOOKUP(+A150,'Elenco Atleti'!A:A,1,0)=+A150,"","ERRORE") ->  | M150: 2022-06-12 | N150: errore | O150: =VLOOKUP(Universale!A142,'Elenco Atleti'!A:D,4,0) -> Socio Attivo | P150: 2022 | Q150: 16 | R150: 0 | S150: 0
A151: Alberio Marco | B151: 2022-05-24 | C151: 22^ Giro Podistico del Varesotto - 34^ In Gir par Besna' - tappa 1 | D151: Besnate | E151: VA | F151: 5 | H151: 16 | I151: 22 | K151: 0.01136574074 | L151: =IF(VLOOKUP(+A151,'Elenco Atleti'!A:A,1,0)=+A151,"","ERRORE") ->  | M151: 2022-05-24 | N151: 24 | O151: =VLOOKUP(Universale!A143,'Elenco Atleti'!A:D,4,0) -> Socio Attivo | P151: 2022 | Q151: 5 | R151: 0 | S151: 0
A152: Algisi Nadia | B152: 2024-12-31 | L152: =IF(VLOOKUP(+A152,'Elenco Atleti'!A:A,1,0)=+A152,"","ERRORE") ->  | M152: 2024-12-31 | N152: 31 | O152: =VLOOKUP(Universale!A144,'Elenco Atleti'!A:D,4,0) -> Socio Attivo | P152: 2024 | Q152: 0 | R152: 0 | S152: 0
A153: Algisi Nadia | B153: 2024-05-25 | C153: 17^ Running Day | D153: Saronno | E153: VA | F153: 9.6 | H153: 47 | I153: 52 | K153: 0.03324074074 | L153: =IF(VLOOKUP(+A153,'Elenco Atleti'!A:A,1,0)=+A153,"","ERRORE") ->  | M153: 2024-05-25 | N153: 25 | O153: =VLOOKUP(Universale!A145,'Elenco Atleti'!A:D,4,0) -> Socio Attivo | P153: 2024 | Q153: 9 | R153: 0 | S153: 0
A154: Algisi Nadia | B154: 2024-04-21 | C154: 12^ Sarnico Lovere Run | D154: Sarnico | E154: BG | F154: 25.25 | G154: 2 | H154: 19 | I154: 33 | K154: 0.09690972222 | L154: =IF(VLOOKUP(+A154,'Elenco Atleti'!A:A,1,0)=+A154,"","ERRORE") ->  | M154: 2024-04-21 | N154: 21 | O154: =VLOOKUP(Universale!A146,'Elenco Atleti'!A:D,4,0) -> Socio Attivo | P154: 2024 | Q154: 25 | R154: 0 | S154: 0
A155: Algisi Nadia | B155: 2024-04-07 | C155: 22^ Milano Marathon | D155: Milano | E155: MI | F155: 42.195 | G155: 4 | H155: 25 | I155: 1 | K155: 0.1840393519 | L155: =IF(VLOOKUP(+A155,'Elenco Atleti'!A:A,1,0)=+A155,"","ERRORE") ->  | M155: 2024-04-07 | N155: 7 | O155: =VLOOKUP(Universale!A147,'Elenco Atleti'!A:D,4,0) -> Socio Attivo | P155: 2024 | Q155: 42 | R155: 0 | S155: 0
A156: Algisi Nadia | B156: 2024-01-28 | C156: 3^ Novara Half Marathon | D156: Novara | E156: NO | F156: 21.097 | G156: 1 | H156: 44 | I156: 16 | K156: 0.07240740741 | L156: =IF(VLOOKUP(+A156,'Elenco Atleti'!A:A,1,0)=+A156,"","ERRORE") ->  | M156: 2024-01-28 | N156: 28 | O156: =VLOOKUP(Universale!A148,'Elenco Atleti'!A:D,4,0) -> Socio Attivo | P156: 2024 | Q156: 21 | R156: 0 | S156: 0
A157: Algisi Nadia | B157: 2023-12-31 | L157: =IF(VLOOKUP(+A157,'Elenco Atleti'!A:A,1,0)=+A157,"","ERRORE") ->  | M157: 2023-12-31 | N157: 31 | O157: =VLOOKUP(Universale!A149,'Elenco Atleti'!A:D,4,0) -> Socio Attivo | P157: 2023 | Q157: 0 | R157: 0 | S157: 0
A158: Algisi Nadia | B158: 2023-11-05 | C158: TCS New York City Marathon | D158: New York | E158: USA | F158: 42.195 | G158: 4 | H158: 13 | I158: 6 | K158: 0.1757638889 | L158: =IF(VLOOKUP(+A158,'Elenco Atleti'!A:A,1,0)=+A158,"","ERRORE") ->  | M158: 2023-11-05 | N158: 5 | O158: =VLOOKUP(Universale!A150,'Elenco Atleti'!A:D,4,0) -> Socio Attivo | P158: 2023 | Q158: 42 | R158: 0 | S158: 0
A159: Algisi Nadia | B159: 2023-09-24 | C159: 10^ StraSaronno | D159: Saronno | E159: VA | F159: 10.0001 | H159: 46 | I159: 13 | K159: 0.03209490741 | L159: =IF(VLOOKUP(+A159,'Elenco Atleti'!A:A,1,0)=+A159,"","ERRORE") ->  | M159: 2023-09-24 | N159: 24 | O159: =VLOOKUP(Universale!A151,'Elenco Atleti'!A:D,4,0) -> Socio Attivo | P159: 2023 | Q159: 10 | R159: 0 | S159: 0
A160: Algisi Nadia | B160: 10-11/06/2023 | C160: 38^ Staffetta 24x1ora | D160: Saronno | E160: VA | F160: 11.831 | G160: 1 | H160: 0 | I160: 0 | K160: 0.04166666667 | L160: =IF(VLOOKUP(+A160,'Elenco Atleti'!A:A,1,0)=+A160,"","ERRORE") ->  | M160: 2023-06-11 | N160: errore | O160: =VLOOKUP(Universale!A152,'Elenco Atleti'!A:D,4,0) -> Socio Attivo | P160: 2023 | Q160: 11 | R160: 0 | S160: 0
A161: Algisi Nadia | B161: 2023-05-21 | C161: VLC Vertical del Lago di Como - disl. + 1.150 mt | D161: Carate Urio | E161: CO | F161: 4.7 | G161: 1 | H161: 26 | I161: 34 | J161: 1150 | K161: 0.06011574074 | L161: =IF(VLOOKUP(+A161,'Elenco Atleti'!A:A,1,0)=+A161,"","ERRORE") ->  | M161: 2023-05-21 | N161: 21 | O161: =VLOOKUP(Universale!A153,'Elenco Atleti'!A:D,4,0) -> Socio Attivo | P161: 2023 | Q161: 4 | R161: 16.2 | S161: 4.7
A162: Algisi Nadia | B162: 2023-04-16 | C162: 4^ EcoRun Varese 21100 Half Marathon | D162: Varese | E162: VA | F162: 21.097 | G162: 1 | H162: 44 | I162: 5 | K162: 0.07228009259 | L162: =IF(VLOOKUP(+A162,'Elenco Atleti'!A:A,1,0)=+A162,"","ERRORE") ->  | M162: 2023-04-16 | N162: 16 | O162: =VLOOKUP(Universale!A154,'Elenco Atleti'!A:D,4,0) -> Socio Attivo | P162: 2023 | Q162: 21 | R162: 0 | S162: 0
A163: Algisi Nadia | B163: 2023-01-29 | C163: 2^ Novara Half Marathon | D163: Novara | E163: NO | F163: 21.097 | G163: 1 | H163: 43 | I163: 27 | K163: 0.07184027778 | L163: =IF(VLOOKUP(+A163,'Elenco Atleti'!A:A,1,0)=+A163,"","ERRORE") ->  | M163: 2023-01-29 | N163: 29 | O163: =VLOOKUP(Universale!A155,'Elenco Atleti'!A:D,4,0) -> Socio Attivo | P163: 2023 | Q163: 21 | R163: 0 | S163: 0
A164: Aliperti Carlo | B164: 2011-12-31 | L164: =IF(VLOOKUP(+A164,'Elenco Atleti'!A:A,1,0)=+A164,"","ERRORE") ->  | M164: 2011-12-31 | N164: 31 | O164: =VLOOKUP(Universale!A156,'Elenco Atleti'!A:D,4,0) -> Socio Attivo | P164: 2011 | Q164: 0 | R164: 0 | S164: 0
A165: Aliperti Carlo | B165: 2011-06-04 | C165: 28^ Staffetta 24 x 1 ora | D165: Saronno | E165: VA | F165: 12.449 | G165: 1 | H165: 0 | I165: 0 | K165: 0.04166666667 | L165: =IF(VLOOKUP(+A165,'Elenco Atleti'!A:A,1,0)=+A165,"","ERRORE") ->  | M165: 2011-06-04 | N165: 4 | O165: =VLOOKUP(Universale!A157,'Elenco Atleti'!A:D,4,0) -> Socio Attivo | P165: 2011 | Q165: 12 | R165: 0 | S165: 0
A166: Ambrosi Stefano | B166: 2024-12-31 | L166: =IF(VLOOKUP(+A166,'Elenco Atleti'!A:A,1,0)=+A166,"","ERRORE") ->  | M166: 2024-12-31 | N166: 31 | O166: =VLOOKUP(Universale!A158,'Elenco Atleti'!A:D,4,0) -> Socio Attivo | P166: 2024 | Q166: 0 | R166: 0 | S166: 0
A167: Ambrosi Stefano | B167: 2024-09-08 | C167: 10K delle Groane | D167: Solaro | E167: MI | F167: 10 | H167: 42 | I167: 40 | K167: 0.02962962963 | L167: =IF(VLOOKUP(+A167,'Elenco Atleti'!A:A,1,0)=+A167,"","ERRORE") ->  | M167: 2024-09-08 | N167: 8 | O167: =VLOOKUP(Universale!A5297,'Elenco Atleti'!A:D,4,0) -> Socio Attivo | P167: 2024 | Q167: 10 | R167: 0 | S167: 0
A168: Ambrosi Stefano | B168: 2023-12-31 | L168: =IF(VLOOKUP(+A168,'Elenco Atleti'!A:A,1,0)=+A168,"","ERRORE") ->  | M168: 2023-12-31 | N168: 31 | O168: =VLOOKUP(Universale!A159,'Elenco Atleti'!A:D,4,0) -> Socio Attivo | P168: 2023 | Q168: 0 | R168: 0 | S168: 0
A169: Ambrosi Stefano | B169: 2023-09-24 | C169: 10^ StraSaronno | D169: Saronno | E169: VA | F169: 10.0001 | H169: 41 | I169: 53 | K169: 0.02908564815 | L169: =IF(VLOOKUP(+A169,'Elenco Atleti'!A:A,1,0)=+A169,"","ERRORE") ->  | M169: 2023-09-24 | N169: 24 | O169: =VLOOKUP(Universale!A160,'Elenco Atleti'!A:D,4,0) -> Socio Attivo | P169: 2023 | Q169: 10 | R169: 0 | S169: 0
A170: Ambrosi Stefano | B170: 2023-05-27 | C170: 2^ 10K delle Groane | D170: Solaro | E170: MI | F170: 10 | H170: 43 | I170: 7 | K170: 0.02994212963 | L170: =IF(VLOOKUP(+A170,'Elenco Atleti'!A:A,1,0)=+A170,"","ERRORE") ->  | M170: 2023-05-27 | N170: 27 | O170: =VLOOKUP(Universale!A161,'Elenco Atleti'!A:D,4,0) -> Socio Attivo | P170: 2023 | Q170: 10 | R170: 0 | S170: 0
A171: Ambrosi Stefano | B171: 2023-04-02 | C171: 21^ Milano Marathon | D171: Milano | E171: MI | F171: 42.195 | G171: 3 | H171: 27 | I171: 57 | K171: 0.1444097222 | L171: =IF(VLOOKUP(+A171,'Elenco Atleti'!A:A,1,0)=+A171,"","ERRORE") ->  | M171: 2023-04-02 | N171: 2 | O171: =VLOOKUP(Universale!A162,'Elenco Atleti'!A:D,4,0) -> Socio Attivo | P171: 2023 | Q171: 42 | R171: 0 | S171: 0
A172: Ambrosi Stefano | B172: 2022-12-31 | L172: =IF(VLOOKUP(+A172,'Elenco Atleti'!A:A,1,0)=+A172,"","ERRORE") ->  | M172: 2022-12-31 | N172: 31 | O172: =VLOOKUP(Universale!A163,'Elenco Atleti'!A:D,4,0) -> Socio Attivo | P172: 2022 | Q172: 0 | R172: 0 | S172: 0
A173: Ambrosi Stefano | B173: 2022-11-13 | C173: 29^ Maratonina Citta' di Busto Arsizio | D173: Busto Arsizio | E173: VA | F173: 21.097 | G173: 1 | H173: 34 | I173: 55 | K173: 0.06591435185 | L173: =IF(VLOOKUP(+A173,'Elenco Atleti'!A:A,1,0)=+A173,"","ERRORE") ->  | M173: 2022-11-13 | N173: 13 | O173: =VLOOKUP(Universale!A164,'Elenco Atleti'!A:D,4,0) -> Ex Socio | P173: 2022 | Q173: 21 | R173: 0 | S173: 0
A174: Ambrosi Stefano | B174: 2022-10-23 | C174: 36^ Venicemarathon | D174: Venezia | E174: VE | F174: 42.195 | G174: 3 | H174: 44 | I174: 54 | K174: 0.1561805556 | L174: =IF(VLOOKUP(+A174,'Elenco Atleti'!A:A,1,0)=+A174,"","ERRORE") ->  | M174: 2022-10-23 | N174: 23 | O174: =VLOOKUP(Universale!A165,'Elenco Atleti'!A:D,4,0) -> Ex Socio | P174: 2022 | Q174: 42 | R174: 0 | S174: 0
A175: Ambrosi Stefano | B175: 2022-09-25 | C175: 9^ StraSaronno | D175: Saronno | E175: VA | F175: 10.0001 | H175: 44 | I175: 55 | K175: 0.03119212963 | L175: =IF(VLOOKUP(+A175,'Elenco Atleti'!A:A,1,0)=+A175,"","ERRORE") ->  | M175: 2022-09-25 | N175: 25 | O175: =VLOOKUP(Universale!A166,'Elenco Atleti'!A:D,4,0) -> Socio Attivo | P175: 2022 | Q175: 10 | R175: 0 | S175: 0
A176: Ambrosi Stefano | B176: 2022-06-18 | C176: 15^ Running Day | D176: Saronno | E176: VA | F176: 10 | H176: 45 | I176: 59 | K176: 0.03193287037 | L176: =IF(VLOOKUP(+A176,'Elenco Atleti'!A:A,1,0)=+A176,"","ERRORE") ->  | M176: 2022-06-18 | N176: 18 | O176: =VLOOKUP(Universale!A167,'Elenco Atleti'!A:D,4,0) -> Socio Attivo | P176: 2022 | Q176: 10 | R176: 0 | S176: 0
A177: Ambrosi Stefano | B177: 11-12/06/2022 | C177: 37^ Staffetta 24x1 ora | D177: Saronno | E177: VA | F177: 12.387 | G177: 1 | H177: 0 | I177: 0 | K177: 0.04166666667 | L177: =IF(VLOOKUP(+A177,'Elenco Atleti'!A:A,1,0)=+A177,"","ERRORE") ->  | M177: 2022-06-12 | N177: errore | O177: =VLOOKUP(Universale!A168,'Elenco Atleti'!A:D,4,0) -> Socio Attivo | P177: 2022 | Q177: 12 | R177: 0 | S177: 0
A178: Ambrosi Stefano | B178: 2022-04-03 | C178: 20^ Milano Marathon | D178: Milano | E178: MI | F178: 42.195 | G178: 3 | H178: 55 | I178: 33 | K178: 0.1635763889 | L178: =IF(VLOOKUP(+A178,'Elenco Atleti'!A:A,1,0)=+A178,"","ERRORE") ->  | M178: 2022-04-03 | N178: 3 | O178: =VLOOKUP(Universale!A169,'Elenco Atleti'!A:D,4,0) -> Socio Attivo | P178: 2022 | Q178: 42 | R178: 0 | S178: 0
A179: Ambrosi Stefano | B179: 2021-12-31 | L179: =IF(VLOOKUP(+A179,'Elenco Atleti'!A:A,1,0)=+A179,"","ERRORE") ->  | M179: 2021-12-31 | N179: 31 | O179: =VLOOKUP(Universale!A170,'Elenco Atleti'!A:D,4,0) -> Socio Attivo | P179: 2021 | Q179: 0 | R179: 0 | S179: 0
A180: Ambrosi Stefano | B180: 2021-10-24 | C180: 4^ CorriBicocca | D180: Milano | E180: MI | F180: 10 | H180: 42 | I180: 18 | K180: 0.029375 | L180: =IF(VLOOKUP(+A180,'Elenco Atleti'!A:A,1,0)=+A180,"","ERRORE") ->  | M180: 2021-10-24 | N180: 24 | O180: =VLOOKUP(Universale!A171,'Elenco Atleti'!A:D,4,0) -> Socio Attivo | P180: 2021 | Q180: 10 | R180: 0 | S180: 0
A181: Ambrosi Stefano | B181: 2021-06-12 | C181: 14^ Running Day | D181: Saronno | E181: VA | F181: 10 | H181: 45 | I181: 53 | K181: 0.03186342593 | L181: =IF(VLOOKUP(+A181,'Elenco Atleti'!A:A,1,0)=+A181,"","ERRORE") ->  | M181: 2021-06-12 | N181: 12 | O181: =VLOOKUP(Universale!A172,'Elenco Atleti'!A:D,4,0) -> Socio Attivo | P181: 2021 | Q181: 10 | R181: 0 | S181: 0
A182: Ambrosi Stefano | B182: 2021-05-02 | C182: 14^ Scarpa d'Oro Half Marathon | D182: Vigevano | E182: PV | F182: 21.097 | G182: 1 | H182: 31 | I182: 51 | K182: 0.06378472222 | L182: =IF(VLOOKUP(+A182,'Elenco Atleti'!A:A,1,0)=+A182,"","ERRORE") ->  | M182: 2021-05-02 | N182: 2 | O182: =VLOOKUP(Universale!A173,'Elenco Atleti'!A:D,4,0) -> Socio Attivo | P182: 2021 | Q182: 21 | R182: 0 | S182: 0
A183: Annucci Roberto | B183: 2022-12-31 | L183: =IF(VLOOKUP(+A183,'Elenco Atleti'!A:A,1,0)=+A183,"","ERRORE") ->  | M183: 2022-12-31 | N183: 31 | O183: =VLOOKUP(Universale!A174,'Elenco Atleti'!A:D,4,0) -> Socio Attivo | P183: 2022 | Q183: 0 | R183: 0 | S183: 0
A184: Annucci Roberto | B184: 2022-11-27 | C184: Ganten Milano21 Half Marathon | D184: Milano | E184: MI | F184: 21.097 | G184: 2 | H184: 1 | I184: 45 | K184: 0.08454861111 | L184: =IF(VLOOKUP(+A184,'Elenco Atleti'!A:A,1,0)=+A184,"","ERRORE") ->  | M184: 2022-11-27 | N184: 27 | O184: =VLOOKUP(Universale!A175,'Elenco Atleti'!A:D,4,0) -> Socio Attivo | P184: 2022 | Q184: 21 | R184: 0 | S184: 0
A185: Annucci Roberto | B185: 2022-10-23 | C185: 1^ M21 Meda Urban Race | D185: Meda | E185: MB | F185: 21.097 | G185: 1 | H185: 45 | I185: 13 | K185: 0.07306712963 | L185: =IF(VLOOKUP(+A185,'Elenco Atleti'!A:A,1,0)=+A185,"","ERRORE") ->  | M185: 2022-10-23 | N185: 23 | O185: =VLOOKUP(Universale!A176,'Elenco Atleti'!A:D,4,0) -> Socio Attivo | P185: 2022 | Q185: 21 | R185: 0 | S185: 0
A186: Annucci Roberto | B186: 2022-10-16 | C186: 21^ Half Marathon Cremona | D186: Cremona | E186: CR | F186: 21.097 | G186: 1 | H186: 44 | I186: 50 | K186: 0.07280092593 | L186: =IF(VLOOKUP(+A186,'Elenco Atleti'!A:A,1,0)=+A186,"","ERRORE") ->  | M186: 2022-10-16 | N186: 16 | O186: =VLOOKUP(Universale!A177,'Elenco Atleti'!A:D,4,0) -> Socio Attivo | P186: 2022 | Q186: 21 | R186: 0 | S186: 0
A187: Annucci Roberto | B187: 2022-08-13 | C187: Orta 10 in 10 tappa 8 | D187: Lido di Gozzano | E187: NO | F187: 21.097 | G187: 1 | H187: 51 | I187: 19 | K187: 0.07730324074 | L187: =IF(VLOOKUP(+A187,'Elenco Atleti'!A:A,1,0)=+A187,"","ERRORE") ->  | M187: 2022-08-13 | N187: 13 | O187: =VLOOKUP(Universale!A178,'Elenco Atleti'!A:D,4,0) -> Socio Attivo | P187: 2022 | Q187: 21 | R187: 0 | S187: 0
A188: Annucci Roberto | B188: 2022-06-18 | C188: 15^ Running Day | D188: Saronno | E188: VA | F188: 10 | H188: 48 | I188: 16 | K188: 0.03351851852 | L188: =IF(VLOOKUP(+A188,'Elenco Atleti'!A:A,1,0)=+A188,"","ERRORE") ->  | M188: 2022-06-18 | N188: 18 | O188: =VLOOKUP(Universale!A179,'Elenco Atleti'!A:D,4,0) -> Socio Attivo | P188: 2022 | Q188: 10 | R188: 0 | S188: 0
A189: Annucci Roberto | B189: 11-12/06/2022 | C189: 37^ Staffetta 24x1 ora | D189: Saronno | E189: VA | F189: 12.514 | G189: 1 | H189: 0 | I189: 0 | K189: 0.04166666667 | L189: =IF(VLOOKUP(+A189,'Elenco Atleti'!A:A,1,0)=+A189,"","ERRORE") ->  | M189: 2022-06-12 | N189: errore | O189: =VLOOKUP(Universale!A180,'Elenco Atleti'!A:D,4,0) -> Socio Attivo | P189: 2022 | Q189: 12 | R189: 0 | S189: 0
A190: Annucci Roberto | B190: 2022-05-15 | C190: 49^ StraMilano Half Marathon | D190: Milano | E190: MI | F190: 21.097 | G190: 1 | H190: 50 | I190: 41 | K190: 0.07686342593 | L190: =IF(VLOOKUP(+A190,'Elenco Atleti'!A:A,1,0)=+A190,"","ERRORE") ->  | M190: 2022-05-15 | N190: 15 | O190: =VLOOKUP(Universale!A181,'Elenco Atleti'!A:D,4,0) -> Socio Attivo | P190: 2022 | Q190: 21 | R190: 0 | S190: 0
A191: Annucci Roberto | B191: 2022-04-10 | C191: 14^ Mezza dei Boschi | D191: Uboldo | E191: VA | F191: 10.54 | H191: 52 | I191: 43 | K191: 0.0366087963 | L191: =IF(VLOOKUP(+A191,'Elenco Atleti'!A:A,1,0)=+A191,"","ERRORE") ->  | M191: 2022-04-10 | N191: 10 | O191: =VLOOKUP(Universale!A182,'Elenco Atleti'!A:D,4,0) -> Socio Attivo | P191: 2022 | Q191: 10 | R191: 0 | S191: 0
A192: Annucci Roberto | B192: 2022-02-27 | C192: Napoli City Half Marathon | D192: Napoli | E192: NA | F192: 21.097 | G192: 1 | H192: 51 | I192: 31 | K192: 0.07744212963 | L192: =IF(VLOOKUP(+A192,'Elenco Atleti'!A:A,1,0)=+A192,"","ERRORE") ->  | M192: 2022-02-27 | N192: 27 | O192: =VLOOKUP(Universale!A183,'Elenco Atleti'!A:D,4,0) -> Ex Socio | P192: 2022 | Q192: 21 | R192: 0 | S192: 0
A193: Annucci Roberto | B193: 2021-12-31 | L193: =IF(VLOOKUP(+A193,'Elenco Atleti'!A:A,1,0)=+A193,"","ERRORE") ->  | M193: 2021-12-31 | N193: 31 | O193: =VLOOKUP(Universale!A184,'Elenco Atleti'!A:D,4,0) -> Ex Socio | P193: 2021 | Q193: 0 | R193: 0 | S193: 0
A194: Annucci Roberto | B194: 2021-12-12 | C194: Run In Como Mezza Maratona Lago di Como | D194: Como | E194: CO | F194: 21.097 | G194: 1 | H194: 52 | I194: 54 | K194: =IF(CONCATENATE(IF(G194="",0,G194),":",IF(H194="",0,H194),":",IF(I194="",0,I194))+1-1=0,"",CONCATENATE(IF(G194="",0,G194),":",IF(H194="",0,H194),":",IF(I194="",0,I194))+1-1) -> 0.07840277778 | L194: =IF(VLOOKUP(+A194,'Elenco Atleti'!A:A,1,0)=+A194,"","ERRORE") ->  | M194: =IF(B194="","",IF(N194<32,+B194,IF(LEN(B194)=13,MID(B194,4,10),"errore"))+1-1) -> 2021-12-12 | N194: =IFERROR(DAY(B194),"errore") -> 12 | O194: =VLOOKUP(Universale!A185,'Elenco Atleti'!A:D,4,0) -> Ex Socio | P194: =IFERROR(YEAR(M194),0) -> 2021 | Q194: =INT(+F194) -> 21 | R194: =IF(J194>0,(INT(+F194*10))/10+(J194/100),0) -> 0 | S194: =IF(J194>0,+F194,0) -> 0
A195: Annucci Roberto | B195: 2021-11-14 | C195: 10^ Ravenna Half Marathon Citta' d'Arte | D195: Ravenna | E195: RA | F195: 21.097 | G195: 1 | H195: 44 | I195: 24 | K195: 0.0725 | L195: =IF(VLOOKUP(+A195,'Elenco Atleti'!A:A,1,0)=+A195,"","ERRORE") ->  | M195: 2021-11-14 | N195: 14 | O195: =VLOOKUP(Universale!A186,'Elenco Atleti'!A:D,4,0) -> Ex Socio | P195: 2021 | Q195: 21 | R195: 0 | S195: 0
A196: Annucci Roberto | B196: 2021-10-31 | C196: Half Marathon Firenze | D196: Firenze | E196: FI | F196: 21.097 | G196: 1 | H196: 47 | I196: 26 | K196: 0.07460648148 | L196: =IF(VLOOKUP(+A196,'Elenco Atleti'!A:A,1,0)=+A196,"","ERRORE") ->  | M196: 2021-10-31 | N196: 31 | O196: =VLOOKUP(Universale!A187,'Elenco Atleti'!A:D,4,0) -> Ex Socio | P196: 2021 | Q196: 21 | R196: 0 | S196: 0
A197: Annucci Roberto | B197: 2021-07-24 | C197: StraLivigno | D197: Livigno | E197: SO | F197: 21 | G197: 2 | H197: 17 | I197: 13 | K197: 0.09528935185 | L197: =IF(VLOOKUP(+A197,'Elenco Atleti'!A:A,1,0)=+A197,"","ERRORE") ->  | M197: 2021-07-24 | N197: 24 | O197: =VLOOKUP(Universale!A188,'Elenco Atleti'!A:D,4,0) -> Ex Socio | P197: 2021 | Q197: 21 | R197: 0 | S197: 0
A198: Annucci Roberto | B198: 2021-06-19 | C198: 6^ La Mezza di Torino | D198: Torino | E198: TO | F198: 21.097 | G198: 1 | H198: 44 | I198: 55 | K198: 0.0728587963 | L198: =IF(VLOOKUP(+A198,'Elenco Atleti'!A:A,1,0)=+A198,"","ERRORE") ->  | M198: 2021-06-19 | N198: 19 | O198: =VLOOKUP(Universale!A189,'Elenco Atleti'!A:D,4,0) -> Ex Socio | P198: 2021 | Q198: 21 | R198: 0 | S198: 0
A199: Annucci Roberto | B199: 2021-06-12 | C199: 14^ Running Day | D199: Saronno | E199: VA | F199: 10 | H199: 45 | I199: 7 | K199: 0.03133101852 | L199: =IF(VLOOKUP(+A199,'Elenco Atleti'!A:A,1,0)=+A199,"","ERRORE") ->  | M199: 2021-06-12 | N199: 12 | O199: =VLOOKUP(Universale!A190,'Elenco Atleti'!A:D,4,0) -> Ex Socio | P199: 2021 | Q199: 10 | R199: 0 | S199: 0
A200: Annucci Roberto | B200: 2020-12-31 | L200: =IF(VLOOKUP(+A200,'Elenco Atleti'!A:A,1,0)=+A200,"","ERRORE") ->  | M200: 2020-12-31 | N200: 31 | O200: =VLOOKUP(Universale!A191,'Elenco Atleti'!A:D,4,0) -> Ex Socio | P200: 2020 | Q200: 0 | R200: 0 | S200: 0
... 4300 more rows
